Organisation Code,Organisation Label,Effective Date,Organisational Unit,Service Division Label,Category Internal Name,Purpose,Detailed Expenditure Code,Payment Date,Transaction Number,Irrecoverable VAT Amount,Amount,Capital Or Revenue,Benificiary Name,Procurement Card
Http://opendatacommunities.org/id/metropolitan-district-council/leeds,Leeds City Council,31/07/2019,Communities and Environment,Benefits  Wlefare And Poverty  ,Supplies and Services,Telephones,213,31/05/2019,1907-00001,0.00,80.00,R,(Aq) Limited,Yes
Http://opendatacommunities.org/id/metropolitan-district-council/leeds,Leeds City Council,31/07/2019,Adults and Health,Services For Older People Under 65 P/Dis,Third Party Payments,Sheltered Accommodation,569,24/07/2019,1907-00002,0.00,10350.00,R,A & V Transitional Homes,No
Http://opendatacommunities.org/id/metropolitan-district-council/leeds,Leeds City Council,31/07/2019,Resources and Housing,HRA Housing Leeds,Capital,Other Costs,7,11/07/2019,1907-00003,0.00,249.22,C,REDACTED PERSONAL DATA,No
Http://opendatacommunities.org/id/metropolitan-district-council/leeds,Leeds City Council,31/07/2019,Resources and Housing,Leeds Building Services,Supplies and Services,Operational Materials,205,16/07/2019,1907-00004,0.00,31.92,R,A Andrews & Sons (Marbles & Tiles),No
Http://opendatacommunities.org/id/metropolitan-district-council/leeds,Leeds City Council,31/07/2019,Resources and Housing,Leeds Building Services,Supplies and Services,Operational Materials,205,16/07/2019,1907-00005,0.00,-20.25,R,A Andrews & Sons (Marbles & Tiles),No
Http://opendatacommunities.org/id/metropolitan-district-council/leeds,Leeds City Council,31/07/2019,Resources and Housing,Leeds Building Services,Supplies and Services,Operational Materials,205,31/07/2019,1907-00006,0.00,217.00,R,A Andrews & Sons (Marbles & Tiles),No
Http://opendatacommunities.org/id/metropolitan-district-council/leeds,Leeds City Council,31/07/2019,Resources and Housing,Leeds Building Services,Supplies and Services,Operational Materials,205,31/07/2019,1907-00007,0.00,39.28,R,A Andrews & Sons (Marbles & Tiles),No
Http://opendatacommunities.org/id/metropolitan-district-council/leeds,Leeds City Council,31/07/2019,Insurance,Insurance,Supplies and Services,Insurance Claims,248,05/07/2019,1907-00008,0.00,269.64,R,REDACTED PERSONAL DATA,No
Http://opendatacommunities.org/id/metropolitan-district-council/leeds,Leeds City Council,31/07/2019,Resources and Housing,Leeds Building Services,Supplies and Services,Other Hired And Contracted Services,265,19/07/2019,1907-00009,0.00,6780.00,R,A Buckler (Haulage) Ltd,No
Http://opendatacommunities.org/id/metropolitan-district-council/leeds,Leeds City Council,31/07/2019,Resources and Housing,Leeds Building Services,Supplies and Services,Other Hired And Contracted Services,265,26/07/2019,1907-00010,0.00,134820.00,R,A Buckler (Haulage) Ltd,No
Http://opendatacommunities.org/id/metropolitan-district-council/leeds,Leeds City Council,31/07/2019,City Development,Libraries  Arts & Heritage,Supplies and Services,Operational Materials,205,25/07/2019,1907-00011,0.00,411.50,R,A C Entertainment Technologies Ltd,No
Http://opendatacommunities.org/id/metropolitan-district-council/leeds,Leeds City Council,31/07/2019,Children and Families,Social Care,Third Party Payments,Services Rendered By Other Organisations,511,05/07/2019,1907-00012,0.00,89.44,R,REDACTED PERSONAL DATA,No
Http://opendatacommunities.org/id/metropolitan-district-council/leeds,Leeds City Council,31/07/2019,Children and Families,Social Care,Third Party Payments,Services Rendered By Other Organisations,511,03/07/2019,1907-00013,0.00,202.80,R,REDACTED PERSONAL DATA,No
Http://opendatacommunities.org/id/metropolitan-district-council/leeds,Leeds City Council,31/07/2019,Children and Families,Social Care,Third Party Payments,Services Rendered By Other Organisations,511,05/07/2019,1907-00014,0.00,838.50,R,REDACTED PERSONAL DATA,No
Http://opendatacommunities.org/id/metropolitan-district-council/leeds,Leeds City Council,31/07/2019,Resources and Housing,HRA Housing Leeds,Capital,Construction,3,09/07/2019,1907-00015,0.00,266713.00,C,A Connolly Limited,No
Http://opendatacommunities.org/id/metropolitan-district-council/leeds,Leeds City Council,31/07/2019,Resources and Housing,Leeds Building Services,Supplies and Services,Other Hired And Contracted Services,265,24/07/2019,1907-00016,0.00,85.00,R,A Coole Electrical Ltd,No
Http://opendatacommunities.org/id/metropolitan-district-council/leeds,Leeds City Council,31/07/2019,Children and Families,Social Care,Third Party Payments,Services Rendered By Voluntary Sector,505,03/07/2019,1907-00017,0.00,1392.56,R,REDACTED PERSONAL DATA,No
Http://opendatacommunities.org/id/metropolitan-district-council/leeds,Leeds City Council,31/07/2019,Children and Families,Social Care,Third Party Payments,Services Rendered By Voluntary Sector,505,05/07/2019,1907-00018,0.00,5455.84,R,REDACTED PERSONAL DATA,No
Http://opendatacommunities.org/id/metropolitan-district-council/leeds,Leeds City Council,31/07/2019,City Development,Highways,Capital,Construction,3,01/07/2019,1907-00019,0.00,46275.20,C,A E Yates Ltd,No
Http://opendatacommunities.org/id/metropolitan-district-council/leeds,Leeds City Council,31/07/2019,City Development,Highways,Capital,Construction,3,24/07/2019,1907-00020,0.00,26691.05,C,A E Yates Ltd,No
Http://opendatacommunities.org/id/metropolitan-district-council/leeds,Leeds City Council,31/07/2019,Resources and Housing,HRA Housing Leeds,Capital,Other Costs,7,11/07/2019,1907-00021,0.00,25.00,C,REDACTED PERSONAL DATA,No
Http://opendatacommunities.org/id/metropolitan-district-council/leeds,Leeds City Council,31/07/2019,Children and Families,Social Care,Third Party Payments,Services Rendered By Other Organisations,511,05/07/2019,1907-00022,0.00,1431.04,R,REDACTED PERSONAL DATA,No
Http://opendatacommunities.org/id/metropolitan-district-council/leeds,Leeds City Council,31/07/2019,Children and Families,Social Care,Third Party Payments,Services Rendered By Other Organisations,511,05/07/2019,1907-00023,0.00,335.40,R,REDACTED PERSONAL DATA,No
Http://opendatacommunities.org/id/metropolitan-district-council/leeds,Leeds City Council,31/07/2019,Children and Families,Social Care,Third Party Payments,Services Rendered By Other Organisations,511,05/07/2019,1907-00024,0.00,167.70,R,REDACTED PERSONAL DATA,No
Http://opendatacommunities.org/id/metropolitan-district-council/leeds,Leeds City Council,31/07/2019,Children and Families,Social Care,Third Party Payments,Services Rendered By Other Organisations,511,05/07/2019,1907-00025,0.00,178.88,R,REDACTED PERSONAL DATA,No
Http://opendatacommunities.org/id/metropolitan-district-council/leeds,Leeds City Council,31/07/2019,Children and Families,Social Care,Third Party Payments,Services Rendered By Other Organisations,511,05/07/2019,1907-00026,0.00,335.40,R,REDACTED PERSONAL DATA,No
Http://opendatacommunities.org/id/metropolitan-district-council/leeds,Leeds City Council,31/07/2019,City Development,Libraries  Arts & Heritage,Supplies and Services,Other Hired And Contracted Services,265,11/07/2019,1907-00027,0.00,150.00,R,REDACTED COMMERCIAL CONFIDENTIALITY,No
Http://opendatacommunities.org/id/metropolitan-district-council/leeds,Leeds City Council,31/07/2019,Resources and Housing,Leeds Building Services,Supplies and Services,Other Hired And Contracted Services,265,05/07/2019,1907-00028,0.00,370.00,R,A J H  Pump Supply & Repair Ltd,No
Http://opendatacommunities.org/id/metropolitan-district-council/leeds,Leeds City Council,31/07/2019,Resources and Housing,Leeds Building Services,Supplies and Services,Operational Materials,205,18/07/2019,1907-00029,0.00,213.00,R,A J H  Pump Supply & Repair Ltd,No
Http://opendatacommunities.org/id/metropolitan-district-council/leeds,Leeds City Council,31/07/2019,Resources and Housing,Leeds Building Services,Supplies and Services,Operational Materials,205,18/07/2019,1907-00030,0.00,127.25,R,A J H  Pump Supply & Repair Ltd,No
Http://opendatacommunities.org/id/metropolitan-district-council/leeds,Leeds City Council,31/07/2019,Resources and Housing,Leeds Building Services,Supplies and Services,Operational Materials,205,18/07/2019,1907-00031,0.00,120.00,R,A J H  Pump Supply & Repair Ltd,No
Http://opendatacommunities.org/id/metropolitan-district-council/leeds,Leeds City Council,31/07/2019,Resources and Housing,Leeds Building Services,Supplies and Services,Operational Materials,205,18/07/2019,1907-00032,0.00,207.00,R,A J H  Pump Supply & Repair Ltd,No
Http://opendatacommunities.org/id/metropolitan-district-council/leeds,Leeds City Council,31/07/2019,Resources and Housing,Leeds Building Services,Supplies and Services,Operational Materials,205,18/07/2019,1907-00033,0.00,117.00,R,A J H  Pump Supply & Repair Ltd,No
Http://opendatacommunities.org/id/metropolitan-district-council/leeds,Leeds City Council,31/07/2019,Resources and Housing,Leeds Building Services,Supplies and Services,Operational Materials,205,18/07/2019,1907-00034,0.00,45.63,R,A J H  Pump Supply & Repair Ltd,No
Http://opendatacommunities.org/id/metropolitan-district-council/leeds,Leeds City Council,31/07/2019,Resources and Housing,Leeds Building Services,Supplies and Services,Operational Materials,205,18/07/2019,1907-00035,0.00,202.75,R,A J H  Pump Supply & Repair Ltd,No
Http://opendatacommunities.org/id/metropolitan-district-council/leeds,Leeds City Council,31/07/2019,Resources and Housing,Leeds Building Services,Supplies and Services,Operational Materials,205,18/07/2019,1907-00036,0.00,74.58,R,A J H  Pump Supply & Repair Ltd,No
Http://opendatacommunities.org/id/metropolitan-district-council/leeds,Leeds City Council,31/07/2019,Resources and Housing,Leeds Building Services,Supplies and Services,Operational Materials,205,18/07/2019,1907-00037,0.00,280.00,R,A J H  Pump Supply & Repair Ltd,No
Http://opendatacommunities.org/id/metropolitan-district-council/leeds,Leeds City Council,31/07/2019,Resources and Housing,Leeds Building Services,Supplies and Services,Operational Materials,205,18/07/2019,1907-00038,0.00,159.50,R,A J H  Pump Supply & Repair Ltd,No
Http://opendatacommunities.org/id/metropolitan-district-council/leeds,Leeds City Council,31/07/2019,Resources and Housing,Leeds Building Services,Supplies and Services,Operational Materials,205,18/07/2019,1907-00039,0.00,153.62,R,A J H  Pump Supply & Repair Ltd,No
Http://opendatacommunities.org/id/metropolitan-district-council/leeds,Leeds City Council,31/07/2019,Resources and Housing,Leeds Building Services,Supplies and Services,Operational Materials,205,18/07/2019,1907-00040,0.00,155.87,R,A J H  Pump Supply & Repair Ltd,No
Http://opendatacommunities.org/id/metropolitan-district-council/leeds,Leeds City Council,31/07/2019,Resources and Housing,Leeds Building Services,Supplies and Services,Operational Materials,205,18/07/2019,1907-00041,0.00,165.00,R,A J H  Pump Supply & Repair Ltd,No
Http://opendatacommunities.org/id/metropolitan-district-council/leeds,Leeds City Council,31/07/2019,Resources and Housing,Leeds Building Services,Supplies and Services,Operational Materials,205,18/07/2019,1907-00042,0.00,73.86,R,A J H  Pump Supply & Repair Ltd,No
Http://opendatacommunities.org/id/metropolitan-district-council/leeds,Leeds City Council,31/07/2019,Resources and Housing,Leeds Building Services,Supplies and Services,Operational Materials,205,18/07/2019,1907-00043,0.00,122.98,R,A J H  Pump Supply & Repair Ltd,No
Http://opendatacommunities.org/id/metropolitan-district-council/leeds,Leeds City Council,31/07/2019,Resources and Housing,Leeds Building Services,Supplies and Services,Operational Materials,205,18/07/2019,1907-00044,0.00,1444.00,R,A J H  Pump Supply & Repair Ltd,No
Http://opendatacommunities.org/id/metropolitan-district-council/leeds,Leeds City Council,31/07/2019,Resources and Housing,Leeds Building Services,Supplies and Services,Operational Materials,205,18/07/2019,1907-00045,0.00,60.87,R,A J H  Pump Supply & Repair Ltd,No
Http://opendatacommunities.org/id/metropolitan-district-council/leeds,Leeds City Council,31/07/2019,Resources and Housing,Leeds Building Services,Supplies and Services,Operational Materials,205,18/07/2019,1907-00046,0.00,64.28,R,A J H  Pump Supply & Repair Ltd,No
Http://opendatacommunities.org/id/metropolitan-district-council/leeds,Leeds City Council,31/07/2019,Resources and Housing,Leeds Building Services,Supplies and Services,Operational Materials,205,19/07/2019,1907-00047,0.00,120.00,R,A J H  Pump Supply & Repair Ltd,No
Http://opendatacommunities.org/id/metropolitan-district-council/leeds,Leeds City Council,31/07/2019,Resources and Housing,Leeds Building Services,Supplies and Services,Operational Materials,205,19/07/2019,1907-00048,0.00,274.95,R,A J H  Pump Supply & Repair Ltd,No
Http://opendatacommunities.org/id/metropolitan-district-council/leeds,Leeds City Council,31/07/2019,Resources and Housing,Leeds Building Services,Supplies and Services,Operational Materials,205,19/07/2019,1907-00049,0.00,58.50,R,A J H  Pump Supply & Repair Ltd,No
Http://opendatacommunities.org/id/metropolitan-district-council/leeds,Leeds City Council,31/07/2019,Resources and Housing,Leeds Building Services,Supplies and Services,Operational Materials,205,19/07/2019,1907-00050,0.00,283.07,R,A J H  Pump Supply & Repair Ltd,No
Http://opendatacommunities.org/id/metropolitan-district-council/leeds,Leeds City Council,31/07/2019,Resources and Housing,Leeds Building Services,Supplies and Services,Operational Materials,205,19/07/2019,1907-00051,0.00,95.88,R,A J H  Pump Supply & Repair Ltd,No
Http://opendatacommunities.org/id/metropolitan-district-council/leeds,Leeds City Council,31/07/2019,Resources and Housing,Leeds Building Services,Supplies and Services,Operational Materials,205,19/07/2019,1907-00052,0.00,121.00,R,A J H  Pump Supply & Repair Ltd,No
Http://opendatacommunities.org/id/metropolitan-district-council/leeds,Leeds City Council,31/07/2019,Resources and Housing,Leeds Building Services,Supplies and Services,Operational Materials,205,19/07/2019,1907-00053,0.00,55.93,R,A J H  Pump Supply & Repair Ltd,No
Http://opendatacommunities.org/id/metropolitan-district-council/leeds,Leeds City Council,31/07/2019,Resources and Housing,Leeds Building Services,Supplies and Services,Operational Materials,205,19/07/2019,1907-00054,0.00,115.00,R,A J H  Pump Supply & Repair Ltd,No
Http://opendatacommunities.org/id/metropolitan-district-council/leeds,Leeds City Council,31/07/2019,Resources and Housing,Leeds Building Services,Supplies and Services,Operational Materials,205,19/07/2019,1907-00055,0.00,208.02,R,A J H  Pump Supply & Repair Ltd,No
Http://opendatacommunities.org/id/metropolitan-district-council/leeds,Leeds City Council,31/07/2019,Resources and Housing,Leeds Building Services,Supplies and Services,Operational Materials,205,19/07/2019,1907-00056,0.00,5.95,R,A J H  Pump Supply & Repair Ltd,No
Http://opendatacommunities.org/id/metropolitan-district-council/leeds,Leeds City Council,31/07/2019,Resources and Housing,Leeds Building Services,Supplies and Services,Operational Materials,205,19/07/2019,1907-00057,0.00,415.71,R,A J H  Pump Supply & Repair Ltd,No
Http://opendatacommunities.org/id/metropolitan-district-council/leeds,Leeds City Council,31/07/2019,Resources and Housing,Leeds Building Services,Supplies and Services,Operational Materials,205,19/07/2019,1907-00058,0.00,12.95,R,A J H  Pump Supply & Repair Ltd,No
Http://opendatacommunities.org/id/metropolitan-district-council/leeds,Leeds City Council,31/07/2019,Resources and Housing,Leeds Building Services,Supplies and Services,Operational Materials,205,19/07/2019,1907-00059,0.00,35.90,R,A J H  Pump Supply & Repair Ltd,No
Http://opendatacommunities.org/id/metropolitan-district-council/leeds,Leeds City Council,31/07/2019,Resources and Housing,Leeds Building Services,Supplies and Services,Operational Materials,205,19/07/2019,1907-00060,0.00,119.15,R,A J H  Pump Supply & Repair Ltd,No
Http://opendatacommunities.org/id/metropolitan-district-council/leeds,Leeds City Council,31/07/2019,Resources and Housing,Leeds Building Services,Supplies and Services,Operational Materials,205,19/07/2019,1907-00061,0.00,49.88,R,A J H  Pump Supply & Repair Ltd,No
Http://opendatacommunities.org/id/metropolitan-district-council/leeds,Leeds City Council,31/07/2019,Resources and Housing,Leeds Building Services,Supplies and Services,Operational Materials,205,19/07/2019,1907-00062,0.00,272.29,R,A J H  Pump Supply & Repair Ltd,No
Http://opendatacommunities.org/id/metropolitan-district-council/leeds,Leeds City Council,31/07/2019,Resources and Housing,Leeds Building Services,Supplies and Services,Operational Materials,205,19/07/2019,1907-00063,0.00,129.75,R,A J H  Pump Supply & Repair Ltd,No
Http://opendatacommunities.org/id/metropolitan-district-council/leeds,Leeds City Council,31/07/2019,Resources and Housing,Leeds Building Services,Supplies and Services,Operational Materials,205,19/07/2019,1907-00064,0.00,171.33,R,A J H  Pump Supply & Repair Ltd,No
Http://opendatacommunities.org/id/metropolitan-district-council/leeds,Leeds City Council,31/07/2019,Resources and Housing,Leeds Building Services,Supplies and Services,Operational Materials,205,19/07/2019,1907-00065,0.00,426.57,R,A J H  Pump Supply & Repair Ltd,No
Http://opendatacommunities.org/id/metropolitan-district-council/leeds,Leeds City Council,31/07/2019,Resources and Housing,Leeds Building Services,Supplies and Services,Operational Materials,205,19/07/2019,1907-00066,0.00,224.57,R,A J H  Pump Supply & Repair Ltd,No
Http://opendatacommunities.org/id/metropolitan-district-council/leeds,Leeds City Council,31/07/2019,Resources and Housing,Leeds Building Services,Supplies and Services,Operational Materials,205,22/07/2019,1907-00067,0.00,228.38,R,A J H  Pump Supply & Repair Ltd,No
Http://opendatacommunities.org/id/metropolitan-district-council/leeds,Leeds City Council,31/07/2019,Resources and Housing,Leeds Building Services,Supplies and Services,Operational Materials,205,22/07/2019,1907-00068,0.00,221.00,R,A J H  Pump Supply & Repair Ltd,No
Http://opendatacommunities.org/id/metropolitan-district-council/leeds,Leeds City Council,31/07/2019,Resources and Housing,Leeds Building Services,Supplies and Services,Operational Materials,205,22/07/2019,1907-00069,0.00,3.22,R,A J H  Pump Supply & Repair Ltd,No
Http://opendatacommunities.org/id/metropolitan-district-council/leeds,Leeds City Council,31/07/2019,Resources and Housing,Leeds Building Services,Supplies and Services,Operational Materials,205,22/07/2019,1907-00070,0.00,201.83,R,A J H  Pump Supply & Repair Ltd,No
Http://opendatacommunities.org/id/metropolitan-district-council/leeds,Leeds City Council,31/07/2019,Resources and Housing,Leeds Building Services,Supplies and Services,Operational Materials,205,22/07/2019,1907-00071,0.00,140.45,R,A J H  Pump Supply & Repair Ltd,No
Http://opendatacommunities.org/id/metropolitan-district-council/leeds,Leeds City Council,31/07/2019,Resources and Housing,Leeds Building Services,Supplies and Services,Operational Materials,205,22/07/2019,1907-00072,0.00,178.75,R,A J H  Pump Supply & Repair Ltd,No
Http://opendatacommunities.org/id/metropolitan-district-council/leeds,Leeds City Council,31/07/2019,Resources and Housing,Leeds Building Services,Supplies and Services,Operational Materials,205,22/07/2019,1907-00073,0.00,174.00,R,A J H  Pump Supply & Repair Ltd,No
Http://opendatacommunities.org/id/metropolitan-district-council/leeds,Leeds City Council,31/07/2019,Resources and Housing,Leeds Building Services,Supplies and Services,Operational Materials,205,22/07/2019,1907-00074,0.00,37.50,R,A J H  Pump Supply & Repair Ltd,No
Http://opendatacommunities.org/id/metropolitan-district-council/leeds,Leeds City Council,31/07/2019,Resources and Housing,Leeds Building Services,Supplies and Services,Operational Materials,205,22/07/2019,1907-00075,0.00,74.00,R,A J H  Pump Supply & Repair Ltd,No
Http://opendatacommunities.org/id/metropolitan-district-council/leeds,Leeds City Council,31/07/2019,Resources and Housing,Leeds Building Services,Supplies and Services,Operational Materials,205,22/07/2019,1907-00076,0.00,62.02,R,A J H  Pump Supply & Repair Ltd,No
Http://opendatacommunities.org/id/metropolitan-district-council/leeds,Leeds City Council,31/07/2019,Resources and Housing,Leeds Building Services,Supplies and Services,Operational Materials,205,22/07/2019,1907-00077,0.00,82.95,R,A J H  Pump Supply & Repair Ltd,No
Http://opendatacommunities.org/id/metropolitan-district-council/leeds,Leeds City Council,31/07/2019,Resources and Housing,Leeds Building Services,Supplies and Services,Operational Materials,205,22/07/2019,1907-00078,0.00,42.73,R,A J H  Pump Supply & Repair Ltd,No
Http://opendatacommunities.org/id/metropolitan-district-council/leeds,Leeds City Council,31/07/2019,Resources and Housing,Leeds Building Services,Supplies and Services,Operational Materials,205,22/07/2019,1907-00079,0.00,243.00,R,A J H  Pump Supply & Repair Ltd,No
Http://opendatacommunities.org/id/metropolitan-district-council/leeds,Leeds City Council,31/07/2019,Resources and Housing,Leeds Building Services,Supplies and Services,Operational Materials,205,22/07/2019,1907-00080,0.00,147.50,R,A J H  Pump Supply & Repair Ltd,No
Http://opendatacommunities.org/id/metropolitan-district-council/leeds,Leeds City Council,31/07/2019,Resources and Housing,Leeds Building Services,Supplies and Services,Operational Materials,205,22/07/2019,1907-00081,0.00,321.28,R,A J H  Pump Supply & Repair Ltd,No
Http://opendatacommunities.org/id/metropolitan-district-council/leeds,Leeds City Council,31/07/2019,Resources and Housing,Leeds Building Services,Supplies and Services,Operational Materials,205,22/07/2019,1907-00082,0.00,120.00,R,A J H  Pump Supply & Repair Ltd,No
Http://opendatacommunities.org/id/metropolitan-district-council/leeds,Leeds City Council,31/07/2019,Resources and Housing,Leeds Building Services,Supplies and Services,Operational Materials,205,22/07/2019,1907-00083,0.00,1829.66,R,A J H  Pump Supply & Repair Ltd,No
Http://opendatacommunities.org/id/metropolitan-district-council/leeds,Leeds City Council,31/07/2019,Resources and Housing,Leeds Building Services,Supplies and Services,Operational Materials,205,22/07/2019,1907-00084,0.00,158.40,R,A J H  Pump Supply & Repair Ltd,No
Http://opendatacommunities.org/id/metropolitan-district-council/leeds,Leeds City Council,31/07/2019,Resources and Housing,Leeds Building Services,Supplies and Services,Operational Materials,205,22/07/2019,1907-00085,0.00,157.01,R,A J H  Pump Supply & Repair Ltd,No
Http://opendatacommunities.org/id/metropolitan-district-council/leeds,Leeds City Council,31/07/2019,Resources and Housing,Leeds Building Services,Supplies and Services,Operational Materials,205,22/07/2019,1907-00086,0.00,18.99,R,A J H  Pump Supply & Repair Ltd,No
Http://opendatacommunities.org/id/metropolitan-district-council/leeds,Leeds City Council,31/07/2019,Resources and Housing,Leeds Building Services,Supplies and Services,Operational Materials,205,22/07/2019,1907-00087,0.00,55.00,R,A J H  Pump Supply & Repair Ltd,No
Http://opendatacommunities.org/id/metropolitan-district-council/leeds,Leeds City Council,31/07/2019,Resources and Housing,Leeds Building Services,Supplies and Services,Operational Materials,205,22/07/2019,1907-00088,0.00,194.85,R,A J H  Pump Supply & Repair Ltd,No
Http://opendatacommunities.org/id/metropolitan-district-council/leeds,Leeds City Council,31/07/2019,Resources and Housing,Leeds Building Services,Supplies and Services,Operational Materials,205,22/07/2019,1907-00089,0.00,18.50,R,A J H  Pump Supply & Repair Ltd,No
Http://opendatacommunities.org/id/metropolitan-district-council/leeds,Leeds City Council,31/07/2019,Resources and Housing,Leeds Building Services,Supplies and Services,Operational Materials,205,22/07/2019,1907-00090,0.00,137.95,R,A J H  Pump Supply & Repair Ltd,No
Http://opendatacommunities.org/id/metropolitan-district-council/leeds,Leeds City Council,31/07/2019,Resources and Housing,Leeds Building Services,Supplies and Services,Operational Materials,205,22/07/2019,1907-00091,0.00,43.00,R,A J H  Pump Supply & Repair Ltd,No
Http://opendatacommunities.org/id/metropolitan-district-council/leeds,Leeds City Council,31/07/2019,Resources and Housing,Leeds Building Services,Supplies and Services,Operational Materials,205,22/07/2019,1907-00092,0.00,55.00,R,A J H  Pump Supply & Repair Ltd,No
Http://opendatacommunities.org/id/metropolitan-district-council/leeds,Leeds City Council,31/07/2019,Resources and Housing,Leeds Building Services,Supplies and Services,Operational Materials,205,22/07/2019,1907-00093,0.00,199.50,R,A J H  Pump Supply & Repair Ltd,No
Http://opendatacommunities.org/id/metropolitan-district-council/leeds,Leeds City Council,31/07/2019,Resources and Housing,Leeds Building Services,Supplies and Services,Operational Materials,205,22/07/2019,1907-00094,0.00,915.00,R,A J H  Pump Supply & Repair Ltd,No
Http://opendatacommunities.org/id/metropolitan-district-council/leeds,Leeds City Council,31/07/2019,Resources and Housing,Leeds Building Services,Supplies and Services,Operational Materials,205,22/07/2019,1907-00095,0.00,89.12,R,A J H  Pump Supply & Repair Ltd,No
Http://opendatacommunities.org/id/metropolitan-district-council/leeds,Leeds City Council,31/07/2019,Resources and Housing,Leeds Building Services,Supplies and Services,Operational Materials,205,22/07/2019,1907-00096,0.00,303.00,R,A J H  Pump Supply & Repair Ltd,No
Http://opendatacommunities.org/id/metropolitan-district-council/leeds,Leeds City Council,31/07/2019,Resources and Housing,Leeds Building Services,Supplies and Services,Operational Materials,205,22/07/2019,1907-00097,0.00,247.65,R,A J H  Pump Supply & Repair Ltd,No
Http://opendatacommunities.org/id/metropolitan-district-council/leeds,Leeds City Council,31/07/2019,Resources and Housing,Leeds Building Services,Supplies and Services,Operational Materials,205,23/07/2019,1907-00098,0.00,74.00,R,A J H  Pump Supply & Repair Ltd,No
Http://opendatacommunities.org/id/metropolitan-district-council/leeds,Leeds City Council,31/07/2019,Resources and Housing,Leeds Building Services,Supplies and Services,Operational Materials,205,23/07/2019,1907-00099,0.00,130.00,R,A J H  Pump Supply & Repair Ltd,No
Http://opendatacommunities.org/id/metropolitan-district-council/leeds,Leeds City Council,31/07/2019,Resources and Housing,Leeds Building Services,Supplies and Services,Operational Materials,205,24/07/2019,1907-00100,0.00,48.00,R,A J H  Pump Supply & Repair Ltd,No
Http://opendatacommunities.org/id/metropolitan-district-council/leeds,Leeds City Council,31/07/2019,Resources and Housing,Leeds Building Services,Supplies and Services,Operational Materials,205,24/07/2019,1907-00101,0.00,27.75,R,A J H  Pump Supply & Repair Ltd,No
Http://opendatacommunities.org/id/metropolitan-district-council/leeds,Leeds City Council,31/07/2019,Resources and Housing,Leeds Building Services,Supplies and Services,Operational Materials,205,24/07/2019,1907-00102,0.00,52.25,R,A J H  Pump Supply & Repair Ltd,No
Http://opendatacommunities.org/id/metropolitan-district-council/leeds,Leeds City Council,31/07/2019,Resources and Housing,Leeds Building Services,Supplies and Services,Operational Materials,205,24/07/2019,1907-00103,0.00,31.84,R,A J H  Pump Supply & Repair Ltd,No
Http://opendatacommunities.org/id/metropolitan-district-council/leeds,Leeds City Council,31/07/2019,Resources and Housing,Leeds Building Services,Supplies and Services,Operational Materials,205,24/07/2019,1907-00104,0.00,398.04,R,A J H  Pump Supply & Repair Ltd,No
Http://opendatacommunities.org/id/metropolitan-district-council/leeds,Leeds City Council,31/07/2019,Resources and Housing,Leeds Building Services,Supplies and Services,Operational Materials,205,24/07/2019,1907-00105,0.00,172.73,R,A J H  Pump Supply & Repair Ltd,No
Http://opendatacommunities.org/id/metropolitan-district-council/leeds,Leeds City Council,31/07/2019,Children and Families,Social Care,Supplies and Services,Advertising,211,18/07/2019,1907-00106,0.00,771.00,R,A J Print And Promotional Sevices,No
Http://opendatacommunities.org/id/metropolitan-district-council/leeds,Leeds City Council,31/07/2019,Communities and Environment,Parks and Countryside,Supplies and Services,Resaleable Materials,204,02/07/2019,1907-00107,0.00,570.00,R,A J Promotions,No
Http://opendatacommunities.org/id/metropolitan-district-council/leeds,Leeds City Council,31/07/2019,Communities and Environment,Parks and Countryside,Supplies and Services,Resaleable Materials,204,11/07/2019,1907-00108,0.00,302.40,R,A J Promotions,No
Http://opendatacommunities.org/id/metropolitan-district-council/leeds,Leeds City Council,31/07/2019,Communities and Environment,Parks and Countryside,Supplies and Services,Resaleable Materials,204,11/07/2019,1907-00109,0.00,1572.14,R,A J Promotions,No
Http://opendatacommunities.org/id/metropolitan-district-council/leeds,Leeds City Council,31/07/2019,City Development,Libraries  Arts & Heritage,Supplies and Services,Art Galleries Total Stores,3,11/07/2019,1907-00110,0.00,586.95,R,A J Promotions,No
Http://opendatacommunities.org/id/metropolitan-district-council/leeds,Leeds City Council,31/07/2019,Communities and Environment,Parks and Countryside,Supplies and Services,Resaleable Materials,204,12/07/2019,1907-00111,0.00,170.00,R,A J Promotions,No
Http://opendatacommunities.org/id/metropolitan-district-council/leeds,Leeds City Council,31/07/2019,Communities and Environment,Parks and Countryside,Supplies and Services,Resaleable Materials,204,24/07/2019,1907-00112,0.00,670.00,R,A J Promotions,No
Http://opendatacommunities.org/id/metropolitan-district-council/leeds,Leeds City Council,31/07/2019,Communities and Environment,Parks and Countryside,Supplies and Services,Resaleable Materials,204,31/07/2019,1907-00113,0.00,1612.42,R,A J Promotions,No
Http://opendatacommunities.org/id/metropolitan-district-council/leeds,Leeds City Council,31/07/2019,Children and Families,Social Care,Third Party Payments,Services Rendered By Other Organisations,511,03/07/2019,1907-00114,0.00,608.40,R,REDACTED PERSONAL DATA,No
Http://opendatacommunities.org/id/metropolitan-district-council/leeds,Leeds City Council,31/07/2019,Children and Families,Social Care,Third Party Payments,Services Rendered By Other Organisations,511,05/07/2019,1907-00115,0.00,2224.82,R,REDACTED PERSONAL DATA,No
Http://opendatacommunities.org/id/metropolitan-district-council/leeds,Leeds City Council,31/07/2019,Resources and Housing,HRA Housing Leeds,Capital,Other Costs,7,16/07/2019,1907-00116,0.00,100.00,C,REDACTED PERSONAL DATA,No
Http://opendatacommunities.org/id/metropolitan-district-council/leeds,Leeds City Council,31/07/2019,Children and Families,Social Care,Third Party Payments,Services Rendered By Voluntary Sector,505,02/07/2019,1907-00117,0.00,822.50,R,A Little Something Extra Ltd,No
Http://opendatacommunities.org/id/metropolitan-district-council/leeds,Leeds City Council,31/07/2019,Children and Families,Social Care,Third Party Payments,Services Rendered By Voluntary Sector,505,16/07/2019,1907-00118,0.00,1181.25,R,A Little Something Extra Ltd,No
Http://opendatacommunities.org/id/metropolitan-district-council/leeds,Leeds City Council,31/07/2019,Children and Families,Social Care,Third Party Payments,Services Rendered By Voluntary Sector,505,16/07/2019,1907-00119,0.00,1050.00,R,A Little Something Extra Ltd,No
Http://opendatacommunities.org/id/metropolitan-district-council/leeds,Leeds City Council,31/07/2019,Children and Families,Social Care,Third Party Payments,Services Rendered By Voluntary Sector,505,16/07/2019,1907-00120,0.00,787.50,R,A Little Something Extra Ltd,No
Http://opendatacommunities.org/id/metropolitan-district-council/leeds,Leeds City Council,31/07/2019,Children and Families,Social Care,Third Party Payments,Services Rendered By Voluntary Sector,505,16/07/2019,1907-00121,0.00,1050.00,R,A Little Something Extra Ltd,No
Http://opendatacommunities.org/id/metropolitan-district-council/leeds,Leeds City Council,31/07/2019,Children and Families,Social Care,Third Party Payments,Services Rendered By Other Organisations,511,16/07/2019,1907-00122,0.00,775.00,R,A Little Something Extra Ltd,No
Http://opendatacommunities.org/id/metropolitan-district-council/leeds,Leeds City Council,31/07/2019,Children and Families,Social Care,Third Party Payments,Services Rendered By Other Organisations,511,16/07/2019,1907-00123,0.00,558.00,R,A Little Something Extra Ltd,No
Http://opendatacommunities.org/id/metropolitan-district-council/leeds,Leeds City Council,31/07/2019,Children and Families,Social Care,Third Party Payments,Section 17,551,22/07/2019,1907-00124,0.00,630.00,R,A Little Something Extra Ltd,No
Http://opendatacommunities.org/id/metropolitan-district-council/leeds,Leeds City Council,31/07/2019,Children and Families,Social Care,Third Party Payments,Section 17,551,22/07/2019,1907-00125,0.00,796.25,R,A Little Something Extra Ltd,No
Http://opendatacommunities.org/id/metropolitan-district-council/leeds,Leeds City Council,31/07/2019,Children and Families,Social Care,Third Party Payments,Services Rendered By Voluntary Sector,505,22/07/2019,1907-00126,0.00,700.00,R,A Little Something Extra Ltd,No
Http://opendatacommunities.org/id/metropolitan-district-council/leeds,Leeds City Council,31/07/2019,Children and Families,Social Care,Third Party Payments,Services Rendered By Other Organisations,511,22/07/2019,1907-00127,0.00,620.00,R,A Little Something Extra Ltd,No
Http://opendatacommunities.org/id/metropolitan-district-council/leeds,Leeds City Council,31/07/2019,Communities and Environment,Communities,Supplies and Services,Other Hired And Contracted Services,265,25/07/2019,1907-00128,0.00,178.00,R,A Little Something Extra Ltd,No
Http://opendatacommunities.org/id/metropolitan-district-council/leeds,Leeds City Council,31/07/2019,Children and Families,Social Care,Third Party Payments,Services Rendered By Other Organisations,511,26/07/2019,1907-00129,0.00,961.00,R,A Little Something Extra Ltd,No
Http://opendatacommunities.org/id/metropolitan-district-council/leeds,Leeds City Council,31/07/2019,Resources and Housing,HRA Housing Leeds,Capital,Other Costs,7,09/07/2019,1907-00130,0.00,100.00,C,REDACTED PERSONAL DATA,No
Http://opendatacommunities.org/id/metropolitan-district-council/leeds,Leeds City Council,31/07/2019,Communities and Environment,Customer Access,Support Services,Internal Income to corporate Governance,895,10/07/2019,1907-00131,0.00,1053.00,R,A Mohammed,No
Http://opendatacommunities.org/id/metropolitan-district-council/leeds,Leeds City Council,31/07/2019,Children and Families,Social Care,Third Party Payments,Services Rendered By Other Organisations,511,03/07/2019,1907-00132,0.00,1014.00,R,REDACTED PERSONAL DATA,No
Http://opendatacommunities.org/id/metropolitan-district-council/leeds,Leeds City Council,31/07/2019,Children and Families,Social Care,Third Party Payments,Services Rendered By Other Organisations,511,05/07/2019,1907-00133,0.00,1509.30,R,REDACTED PERSONAL DATA,No
Http://opendatacommunities.org/id/metropolitan-district-council/leeds,Leeds City Council,31/07/2019,Communities and Environment,Customer Access,Support Services,Internal Income to corporate Governance,895,10/07/2019,1907-00134,0.00,342.00,R,A Namaki,No
Http://opendatacommunities.org/id/metropolitan-district-council/leeds,Leeds City Council,31/07/2019,Communities and Environment,Parks and Countryside,Supplies and Services,Other Hired And Contracted Services,265,23/07/2019,1907-00135,0.00,1372.80,R,A Nicholls,No
Http://opendatacommunities.org/id/metropolitan-district-council/leeds,Leeds City Council,31/07/2019,Resources and Housing,HRA Housing Leeds,Capital,Other Costs,7,09/07/2019,1907-00136,0.00,100.00,C,REDACTED PERSONAL DATA,No
Http://opendatacommunities.org/id/metropolitan-district-council/leeds,Leeds City Council,31/07/2019,City Development,Libraries  Arts & Heritage,Supplies and Services,Art Galleries Total Stores,3,04/07/2019,1907-00137,0.00,266.17,R,A Oppenheimer & Co Ltd,No
Http://opendatacommunities.org/id/metropolitan-district-council/leeds,Leeds City Council,31/07/2019,City Development,Economic Development,Supplies and Services,Grants To Businesses,243,03/07/2019,1907-00138,0.00,20000.00,R,A Q Limited,No
Http://opendatacommunities.org/id/metropolitan-district-council/leeds,Leeds City Council,31/07/2019,City Development,Libraries  Arts & Heritage,Supplies and Services,Non-Recurring Grants,227,01/07/2019,1907-00139,0.00,400.00,R,A Quiet Word Ltd,No
Http://opendatacommunities.org/id/metropolitan-district-council/leeds,Leeds City Council,31/07/2019,Children and Families,Social Care,Third Party Payments,Services Rendered By Other Organisations,511,03/07/2019,1907-00140,0.00,121.68,R,REDACTED PERSONAL DATA,No
Http://opendatacommunities.org/id/metropolitan-district-council/leeds,Leeds City Council,31/07/2019,Children and Families,Social Care,Third Party Payments,Services Rendered By Other Organisations,511,05/07/2019,1907-00141,0.00,436.02,R,REDACTED PERSONAL DATA,No
Http://opendatacommunities.org/id/metropolitan-district-council/leeds,Leeds City Council,31/07/2019,Resources and Housing,Shared Services,Supplies and Services,Other Hired And Contracted Services,265,26/07/2019,1907-00142,0.00,70.00,R,A Star Couriers Ltd,No
Http://opendatacommunities.org/id/metropolitan-district-council/leeds,Leeds City Council,31/07/2019,Children and Families,Social Care,Third Party Payments,Independent Fostering Agencies,509,02/07/2019,1907-00143,0.00,1224.00,R,A Taxis,No
Http://opendatacommunities.org/id/metropolitan-district-council/leeds,Leeds City Council,31/07/2019,Communities and Environment,Customer Access,Supplies and Services,Office Consumables,210,24/07/2019,1907-00144,0.00,10222.00,R,A V Parts Master Ltd,No
Http://opendatacommunities.org/id/metropolitan-district-council/leeds,Leeds City Council,31/07/2019,Children and Families,Social Care,Third Party Payments,Services Rendered By Other Organisations,511,03/07/2019,1907-00145,0.00,202.80,R,REDACTED PERSONAL DATA,No
Http://opendatacommunities.org/id/metropolitan-district-council/leeds,Leeds City Council,31/07/2019,Children and Families,Social Care,Third Party Payments,Services Rendered By Other Organisations,511,05/07/2019,1907-00146,0.00,167.70,R,REDACTED PERSONAL DATA,No
Http://opendatacommunities.org/id/metropolitan-district-council/leeds,Leeds City Council,31/07/2019,Children and Families,Social Care,Third Party Payments,Services Rendered By Other Organisations,511,05/07/2019,1907-00147,0.00,335.40,R,REDACTED PERSONAL DATA,No
Http://opendatacommunities.org/id/metropolitan-district-council/leeds,Leeds City Council,31/07/2019,Children and Families,Social Care,Third Party Payments,General External Residential Placements,507,01/07/2019,1907-00148,0.00,1360.00,R,A Wilderness Way Ltd,No
Http://opendatacommunities.org/id/metropolitan-district-council/leeds,Leeds City Council,31/07/2019,Children and Families,Social Care,Third Party Payments,General External Residential Placements,507,03/07/2019,1907-00149,0.00,27621.30,R,A Wilderness Way Ltd,No
Http://opendatacommunities.org/id/metropolitan-district-council/leeds,Leeds City Council,31/07/2019,Children and Families,Social Care,Third Party Payments,General External Residential Placements,507,03/07/2019,1907-00150,0.00,18282.90,R,A Wilderness Way Ltd,No
Http://opendatacommunities.org/id/metropolitan-district-council/leeds,Leeds City Council,31/07/2019,Children and Families,Social Care,Third Party Payments,General External Residential Placements,507,03/07/2019,1907-00151,0.00,17828.40,R,A Wilderness Way Ltd,No
Http://opendatacommunities.org/id/metropolitan-district-council/leeds,Leeds City Council,31/07/2019,Children and Families,Social Care,Third Party Payments,General External Residential Placements,507,03/07/2019,1907-00152,0.00,28037.10,R,A Wilderness Way Ltd,No
Http://opendatacommunities.org/id/metropolitan-district-council/leeds,Leeds City Council,31/07/2019,Children and Families,Social Care,Third Party Payments,General External Residential Placements,507,03/07/2019,1907-00153,0.00,1600.00,R,A Wilderness Way Ltd,No
Http://opendatacommunities.org/id/metropolitan-district-council/leeds,Leeds City Council,31/07/2019,Children and Families,Social Care,Third Party Payments,General External Residential Placements,507,03/07/2019,1907-00154,0.00,364.50,R,A Wilderness Way Ltd,No
Http://opendatacommunities.org/id/metropolitan-district-council/leeds,Leeds City Council,31/07/2019,Children and Families,Social Care,Third Party Payments,General External Residential Placements,507,30/07/2019,1907-00155,0.00,1600.00,R,A Wilderness Way Ltd,No
Http://opendatacommunities.org/id/metropolitan-district-council/leeds,Leeds City Council,31/07/2019,Children and Families,Social Care,Third Party Payments,General External Residential Placements,507,30/07/2019,1907-00156,0.00,1600.00,R,A Wilderness Way Ltd,No
Http://opendatacommunities.org/id/metropolitan-district-council/leeds,Leeds City Council,31/07/2019,Children and Families,Social Care,Third Party Payments,General External Residential Placements,507,30/07/2019,1907-00157,0.00,178.20,R,A Wilderness Way Ltd,No
Http://opendatacommunities.org/id/metropolitan-district-council/leeds,Leeds City Council,31/07/2019,Children and Families,Social Care,Third Party Payments,General External Residential Placements,507,30/07/2019,1907-00158,0.00,475.20,R,A Wilderness Way Ltd,No
Http://opendatacommunities.org/id/metropolitan-district-council/leeds,Leeds City Council,31/07/2019,Children and Families,Social Care,Third Party Payments,Rents (non supported),552,30/07/2019,1907-00159,0.00,162.71,R,A&V Transitional Homes,No
Http://opendatacommunities.org/id/metropolitan-district-council/leeds,Leeds City Council,31/07/2019,Children and Families,Social Care,Third Party Payments,Rents (non supported),552,30/07/2019,1907-00160,0.00,2236.00,R,A&V Transitional Homes,No
Http://opendatacommunities.org/id/metropolitan-district-council/leeds,Leeds City Council,31/07/2019,Children and Families,Social Care,Third Party Payments,Rents (non supported),552,30/07/2019,1907-00161,0.00,2715.14,R,A&V Transitional Homes,No
Http://opendatacommunities.org/id/metropolitan-district-council/leeds,Leeds City Council,31/07/2019,Children and Families,Social Care,Third Party Payments,Rents (non supported),552,30/07/2019,1907-00162,0.00,-4791.43,R,A&V Transitional Homes,No
Http://opendatacommunities.org/id/metropolitan-district-council/leeds,Leeds City Council,31/07/2019,Children and Families,Social Care  ,Supplies and Services,Operational Materials,205,13/06/2019,1907-00163,0.00,56.01,R,Aardvark Archery,Yes
Http://opendatacommunities.org/id/metropolitan-district-council/leeds,Leeds City Council,31/07/2019,Adults and Health,Social Services Support Services,Transport,Public Transport Expenses,310,03/07/2019,1907-00164,0.00,228.00,R,Ab Cars,No
Http://opendatacommunities.org/id/metropolitan-district-council/leeds,Leeds City Council,31/07/2019,Adults and Health,Services For Adults Under 65 Mental/Dis,Third Party Payments,Nursing Home,570,24/07/2019,1907-00165,0.00,1852.00,R,Abbey Grange Nursing Home,No
Http://opendatacommunities.org/id/metropolitan-district-council/leeds,Leeds City Council,31/07/2019,Communities and Environment,Customer Access,Supplies and Services,Committee Expenses,254,17/07/2019,1907-00166,0.00,185.13,R,Abbey J Forster,No
Http://opendatacommunities.org/id/metropolitan-district-council/leeds,Leeds City Council,31/07/2019,Children and Families,Learning,Supplies and Services,Other Hired And Contracted Services,265,05/07/2019,1907-00167,0.00,390.00,R,Abbey Multi Academy Trust,No
Http://opendatacommunities.org/id/metropolitan-district-council/leeds,Leeds City Council,31/07/2019,Children and Families,Learning,Supplies and Services,Other Hired And Contracted Services,265,23/07/2019,1907-00168,0.00,900.00,R,Abbey Multi Academy Trust,No
Http://opendatacommunities.org/id/metropolitan-district-council/leeds,Leeds City Council,31/07/2019,Children and Families,Social Care,Third Party Payments,Allowances,546,10/07/2019,1907-00169,0.00,645.12,R,ABBIEB OMAHONY,No
Http://opendatacommunities.org/id/metropolitan-district-council/leeds,Leeds City Council,31/07/2019,Children and Families,Social Care,Third Party Payments,Services Rendered By Other Organisations,511,03/07/2019,1907-00170,0.00,1014.00,R,Abc Daycare And Ozone Out Of School,No
Http://opendatacommunities.org/id/metropolitan-district-council/leeds,Leeds City Council,31/07/2019,Children and Families,Social Care,Third Party Payments,Services Rendered By Other Organisations,511,05/07/2019,1907-00171,0.00,12074.40,R,Abc Daycare And Ozone Out Of School,No
Http://opendatacommunities.org/id/metropolitan-district-council/leeds,Leeds City Council,31/07/2019,Children and Families,Social Care,Third Party Payments,Services Rendered By Other Organisations,511,03/07/2019,1907-00172,0.00,2974.40,R,Abc Nursery At Lufc,No
Http://opendatacommunities.org/id/metropolitan-district-council/leeds,Leeds City Council,31/07/2019,Children and Families,Social Care,Third Party Payments,Services Rendered By Other Organisations,511,05/07/2019,1907-00173,0.00,6316.70,R,Abc Nursery At Lufc,No
Http://opendatacommunities.org/id/metropolitan-district-council/leeds,Leeds City Council,31/07/2019,Children and Families,Social Care,Third Party Payments,Services Rendered By Other Organisations,511,03/07/2019,1907-00174,0.00,1014.00,R,Abc@D'S Childcare Services,No
Http://opendatacommunities.org/id/metropolitan-district-council/leeds,Leeds City Council,31/07/2019,Children and Families,Social Care,Third Party Payments,Services Rendered By Other Organisations,511,05/07/2019,1907-00175,0.00,9642.75,R,Abc@D'S Childcare Services,No
Http://opendatacommunities.org/id/metropolitan-district-council/leeds,Leeds City Council,31/07/2019,Communities and Environment,Customer Access,Support Services,Internal Income to corporate Governance,895,10/07/2019,1907-00176,0.00,342.00,R,Abdulahad Denha,No
Http://opendatacommunities.org/id/metropolitan-district-council/leeds,Leeds City Council,31/07/2019,Communities and Environment,Customer Access,Support Services,Internal Income to corporate Governance,895,10/07/2019,1907-00177,0.00,396.00,R,Abdulrahim Dastyar,No
Http://opendatacommunities.org/id/metropolitan-district-council/leeds,Leeds City Council,31/07/2019,Adults and Health,Services For Older People - 65 And Over,Third Party Payments,Nursing Home,570,24/07/2019,1907-00178,0.00,29748.20,R,Aberford Hall,No
Http://opendatacommunities.org/id/metropolitan-district-council/leeds,Leeds City Council,31/07/2019,Adults and Health,Services For Older People - 65 And Over,Third Party Payments,Residential,580,24/07/2019,1907-00179,0.00,-436.34,R,Aberford Hall,No
Http://opendatacommunities.org/id/metropolitan-district-council/leeds,Leeds City Council,31/07/2019,Strategic Accounts,Miscellaneous,Supplies and Services,Non-Recurring Grants,227,29/07/2019,1907-00180,0.00,450.00,R,Aberford Horticultural Society,No
Http://opendatacommunities.org/id/metropolitan-district-council/leeds,Leeds City Council,31/07/2019,Resources and Housing,Leeds Building Services,Supplies and Services,Operational Materials,205,05/07/2019,1907-00181,0.00,260.46,R,Abi Garage Doors Ltd,No
Http://opendatacommunities.org/id/metropolitan-district-council/leeds,Leeds City Council,31/07/2019,Resources and Housing,Leeds Building Services,Supplies and Services,Operational Materials,205,18/07/2019,1907-00182,0.00,260.46,R,Abi Garage Doors Ltd,No
Http://opendatacommunities.org/id/metropolitan-district-council/leeds,Leeds City Council,31/07/2019,Resources and Housing,Leeds Building Services,Supplies and Services,Operational Materials,205,19/07/2019,1907-00183,0.00,260.46,R,Abi Garage Doors Ltd,No
Http://opendatacommunities.org/id/metropolitan-district-council/leeds,Leeds City Council,31/07/2019,Resources and Housing,Sustainable Energy & Climate Change,Capital,Other Costs,7,26/07/2019,1907-00184,0.00,1500.00,C,REDACTED COMMERCIAL CONFIDENTIALITY,No
Http://opendatacommunities.org/id/metropolitan-district-council/leeds,Leeds City Council,31/07/2019,Children and Families,Social Care  ,Supplies and Services,General Amenity For Clients/Residents,285,05/06/2019,1907-00185,0.00,496.68,R,Absolute,Yes
Http://opendatacommunities.org/id/metropolitan-district-council/leeds,Leeds City Council,31/07/2019,Children and Families,Social Care  ,Supplies and Services,General Amenity For Clients/Residents,285,08/06/2019,1907-00186,0.00,231.96,R,Absolute Home Textiles,Yes
Http://opendatacommunities.org/id/metropolitan-district-council/leeds,Leeds City Council,31/07/2019,City Development,Libraries  Arts & Heritage,Supplies and Services,Operational Materials,205,18/07/2019,1907-00187,0.00,5105.50,R,Absolute Museum & Gallery Products Ltd,No
Http://opendatacommunities.org/id/metropolitan-district-council/leeds,Leeds City Council,31/07/2019,City Development,Libraries  Arts & Heritage  ,Supplies and Services,Operational Materials,205,14/06/2019,1907-00188,0.00,128.07,R,Absoluteproduct.Co,Yes
Http://opendatacommunities.org/id/metropolitan-district-council/leeds,Leeds City Council,31/07/2019,Resources and Housing,Strategic Housing Partnership & Support,Supplies and Services,Other Hired And Contracted Services,265,26/07/2019,1907-00189,0.00,960.00,R,Abson Blaza Ltd,No
Http://opendatacommunities.org/id/metropolitan-district-council/leeds,Leeds City Council,31/07/2019,Children and Families,Social Care  ,Supplies and Services,Food & Drink,231,26/06/2019,1907-00190,0.00,18.54,R,Abu Bakar Limited,Yes
Http://opendatacommunities.org/id/metropolitan-district-council/leeds,Leeds City Council,31/07/2019,Adults and Health,Services For Adults Under 65 Mental/Dis,Third Party Payments,Fees - Level 4,520,03/07/2019,1907-00191,0.00,175.00,R,Abubaker Denja Mohammed,No
Http://opendatacommunities.org/id/metropolitan-district-council/leeds,Leeds City Council,31/07/2019,Adults and Health,Services For Adults Under 65 Mental/Dis,Third Party Payments,Fees - Level 4,520,03/07/2019,1907-00192,0.00,175.00,R,Abubaker Denja Mohammed,No
Http://opendatacommunities.org/id/metropolitan-district-council/leeds,Leeds City Council,31/07/2019,Adults and Health,Services For Adults Under 65 Mental/Dis,Third Party Payments,Fees - Level 4,520,03/07/2019,1907-00193,0.00,223.48,R,Abubaker Denja Mohammed,No
Http://opendatacommunities.org/id/metropolitan-district-council/leeds,Leeds City Council,31/07/2019,Adults and Health,Services For Adults Under 65 Mental/Dis,Third Party Payments,Fees - Level 4,520,03/07/2019,1907-00194,0.00,175.00,R,Abubaker Denja Mohammed,No
Http://opendatacommunities.org/id/metropolitan-district-council/leeds,Leeds City Council,31/07/2019,Adults and Health,Services For Adults Under 65 Mental/Dis,Third Party Payments,Fees - Level 4,520,03/07/2019,1907-00195,0.00,175.00,R,Abubaker Denja Mohammed,No
Http://opendatacommunities.org/id/metropolitan-district-council/leeds,Leeds City Council,31/07/2019,Adults and Health,Services For Adults Under 65 Mental/Dis,Third Party Payments,Fees - Level 4,520,03/07/2019,1907-00196,0.00,175.00,R,Abubaker Denja Mohammed,No
Http://opendatacommunities.org/id/metropolitan-district-council/leeds,Leeds City Council,31/07/2019,Adults and Health,Services For Adults Under 65 Mental/Dis,Third Party Payments,Fees - Level 4,520,03/07/2019,1907-00197,0.00,1095.48,R,Abubaker Denja Mohammed,No
Http://opendatacommunities.org/id/metropolitan-district-council/leeds,Leeds City Council,31/07/2019,Adults and Health,Services For Adults Under 65 Mental/Dis,Third Party Payments,Fees - Level 4,520,03/07/2019,1907-00198,0.00,175.00,R,Abubaker Denja Mohammed,No
Http://opendatacommunities.org/id/metropolitan-district-council/leeds,Leeds City Council,31/07/2019,Children and Families,Social Care,Employees,Agency Staff,8,03/07/2019,1907-00199,0.00,265.60,R,Academic Appointments Ltd,No
Http://opendatacommunities.org/id/metropolitan-district-council/leeds,Leeds City Council,31/07/2019,Children and Families,Social Care,Employees,Agency Staff,8,03/07/2019,1907-00200,0.00,1585.00,R,Academic Appointments Ltd,No
Http://opendatacommunities.org/id/metropolitan-district-council/leeds,Leeds City Council,31/07/2019,Children and Families,Social Care,Employees,Agency Staff,8,12/07/2019,1907-00201,0.00,1585.00,R,Academic Appointments Ltd,No
Http://opendatacommunities.org/id/metropolitan-district-council/leeds,Leeds City Council,31/07/2019,Children and Families,Social Care,Employees,Agency Staff,8,19/07/2019,1907-00202,0.00,1585.00,R,Academic Appointments Ltd,No
Http://opendatacommunities.org/id/metropolitan-district-council/leeds,Leeds City Council,31/07/2019,Children and Families,Social Care,Employees,Agency Staff,8,25/07/2019,1907-00203,0.00,1268.00,R,Academic Appointments Ltd,No
Http://opendatacommunities.org/id/metropolitan-district-council/leeds,Leeds City Council,31/07/2019,Children and Families,Learning Places,Capital,Construction,3,23/07/2019,1907-00204,0.00,224565.00,C,Academies Enterprise Trust,No
Http://opendatacommunities.org/id/metropolitan-district-council/leeds,Leeds City Council,31/07/2019,Children and Families,Learning,Supplies and Services,Other Hired And Contracted Services,265,23/07/2019,1907-00205,0.00,900.00,R,Academies Enterprise Trust (Aet),No
Http://opendatacommunities.org/id/metropolitan-district-council/leeds,Leeds City Council,31/07/2019,Resources and Housing,Strategic Housing Partnerships,Capital,Construction,3,18/07/2019,1907-00206,0.00,2100.00,C,Accent Homes Ltd,No
Http://opendatacommunities.org/id/metropolitan-district-council/leeds,Leeds City Council,31/07/2019,Children and Families,Social Care  ,Premises,Maintenance Of Buildings,101,12/06/2019,1907-00207,0.00,229.00,R,Access Electrical(Serv,Yes
Http://opendatacommunities.org/id/metropolitan-district-council/leeds,Leeds City Council,31/07/2019,Communities and Environment,Parks and Countryside,Transport,External Hire -Occasional,304,10/07/2019,1907-00208,0.00,225.00,R,Access Hire Nationwide Ltd,No
Http://opendatacommunities.org/id/metropolitan-district-council/leeds,Leeds City Council,31/07/2019,Communities and Environment,Parks and Countryside,Transport,External Hire -Occasional,304,10/07/2019,1907-00209,0.00,225.00,R,Access Hire Nationwide Ltd,No
Http://opendatacommunities.org/id/metropolitan-district-council/leeds,Leeds City Council,31/07/2019,Communities and Environment,Parks and Countryside,Transport,External Hire -Occasional,304,12/07/2019,1907-00210,0.00,540.00,R,Access Hire Nationwide Ltd,No
Http://opendatacommunities.org/id/metropolitan-district-council/leeds,Leeds City Council,31/07/2019,Communities and Environment,Parks and Countryside,Transport,External Hire -Occasional,304,12/07/2019,1907-00211,0.00,225.00,R,Access Hire Nationwide Ltd,No
Http://opendatacommunities.org/id/metropolitan-district-council/leeds,Leeds City Council,31/07/2019,Communities and Environment,Parks and Countryside,Transport,External Hire -Occasional,304,22/07/2019,1907-00212,0.00,810.00,R,Access Hire Nationwide Ltd,No
Http://opendatacommunities.org/id/metropolitan-district-council/leeds,Leeds City Council,31/07/2019,Communities and Environment,Community Safety,Transport,Hire Of Movable Plant & Machinery,315,31/07/2019,1907-00213,0.00,1268.57,R,Access Hire Nationwide Ltd,No
Http://opendatacommunities.org/id/metropolitan-district-council/leeds,Leeds City Council,31/07/2019,Communities and Environment,Cleaner Neighbourhood Teams  ,Supplies and Services,Operational Furniture And Equipment,203,31/05/2019,1907-00214,0.00,38.40,R,Access Locksmiths,Yes
Http://opendatacommunities.org/id/metropolitan-district-council/leeds,Leeds City Council,31/07/2019,Communities and Environment,Environmental Action (City Centre)  ,Supplies and Services,Operational Furniture And Equipment,203,31/05/2019,1907-00215,0.00,27.36,R,Access Locksmiths,Yes
Http://opendatacommunities.org/id/metropolitan-district-council/leeds,Leeds City Council,31/07/2019,Communities and Environment,Parks And Countryside  ,Supplies and Services,Operational Materials,205,03/06/2019,1907-00216,0.00,46.47,R,Access Locksmiths,Yes
Http://opendatacommunities.org/id/metropolitan-district-council/leeds,Leeds City Council,31/07/2019,Adults and Health,Services For Adults Under 65 Learn/Dis  ,Supplies and Services,Office Furniture & Equipment,201,20/06/2019,1907-00217,0.00,68.25,R,Access Locksmiths,Yes
Http://opendatacommunities.org/id/metropolitan-district-council/leeds,Leeds City Council,31/07/2019,Resources and Housing,Leeds Building Services,Supplies and Services,Office Furniture & Equipment,201,01/07/2019,1907-00218,0.00,25.40,R,Access Locksmiths (Leeds) Limited,No
Http://opendatacommunities.org/id/metropolitan-district-council/leeds,Leeds City Council,31/07/2019,Resources and Housing,Commercial Services,Supplies and Services,Operational Furniture And Equipment,203,03/07/2019,1907-00219,0.00,201.80,R,Access Locksmiths (Leeds) Limited,No
Http://opendatacommunities.org/id/metropolitan-district-council/leeds,Leeds City Council,31/07/2019,Strategic Landlord,Property and Contracts,Premises,General Maintenance,104,03/07/2019,1907-00220,0.00,105.27,R,Access Locksmiths (Leeds) Limited,No
Http://opendatacommunities.org/id/metropolitan-district-council/leeds,Leeds City Council,31/07/2019,Strategic Landlord,Property and Contracts,Premises,General Maintenance,104,03/07/2019,1907-00221,0.00,291.80,R,Access Locksmiths (Leeds) Limited,No
Http://opendatacommunities.org/id/metropolitan-district-council/leeds,Leeds City Council,31/07/2019,Strategic Landlord,Housing Management,Supplies and Services,Resaleable Materials,204,04/07/2019,1907-00222,0.00,201.83,R,Access Locksmiths (Leeds) Limited,No
Http://opendatacommunities.org/id/metropolitan-district-council/leeds,Leeds City Council,31/07/2019,Resources and Housing,HRA Housing Leeds,Capital,Other Costs,7,05/07/2019,1907-00223,0.00,61.20,C,Access Locksmiths (Leeds) Limited,No
Http://opendatacommunities.org/id/metropolitan-district-council/leeds,Leeds City Council,31/07/2019,Strategic Landlord,Housing Management,Supplies and Services,Resaleable Materials,204,05/07/2019,1907-00224,0.00,57.00,R,Access Locksmiths (Leeds) Limited,No
Http://opendatacommunities.org/id/metropolitan-district-council/leeds,Leeds City Council,31/07/2019,Resources and Housing,Leeds Building Services,Supplies and Services,Operational Materials,205,05/07/2019,1907-00225,0.00,65.66,R,Access Locksmiths (Leeds) Limited,No
Http://opendatacommunities.org/id/metropolitan-district-council/leeds,Leeds City Council,31/07/2019,Resources and Housing,Leeds Building Services,Supplies and Services,Operational Materials,205,05/07/2019,1907-00226,0.00,287.18,R,Access Locksmiths (Leeds) Limited,No
Http://opendatacommunities.org/id/metropolitan-district-council/leeds,Leeds City Council,31/07/2019,Resources and Housing,Leeds Building Services,Supplies and Services,Operational Materials,205,05/07/2019,1907-00227,0.00,71.45,R,Access Locksmiths (Leeds) Limited,No
Http://opendatacommunities.org/id/metropolitan-district-council/leeds,Leeds City Council,31/07/2019,Resources and Housing,Leeds Building Services,Supplies and Services,Other Hired And Contracted Services,265,05/07/2019,1907-00228,0.00,9.36,R,Access Locksmiths (Leeds) Limited,No
Http://opendatacommunities.org/id/metropolitan-district-council/leeds,Leeds City Council,31/07/2019,Resources and Housing,Leeds Building Services,Supplies and Services,Operational Materials,205,05/07/2019,1907-00229,0.00,26.00,R,Access Locksmiths (Leeds) Limited,No
Http://opendatacommunities.org/id/metropolitan-district-council/leeds,Leeds City Council,31/07/2019,Resources and Housing,Leeds Building Services,Supplies and Services,Operational Materials,205,05/07/2019,1907-00230,0.00,15.64,R,Access Locksmiths (Leeds) Limited,No
Http://opendatacommunities.org/id/metropolitan-district-council/leeds,Leeds City Council,31/07/2019,Resources and Housing,Leeds Building Services,Supplies and Services,Operational Materials,205,05/07/2019,1907-00231,0.00,5.85,R,Access Locksmiths (Leeds) Limited,No
Http://opendatacommunities.org/id/metropolitan-district-council/leeds,Leeds City Council,31/07/2019,Resources and Housing,Leeds Building Services,Supplies and Services,Operational Materials,205,05/07/2019,1907-00232,0.00,20.65,R,Access Locksmiths (Leeds) Limited,No
Http://opendatacommunities.org/id/metropolitan-district-council/leeds,Leeds City Council,31/07/2019,Resources and Housing,Leeds Building Services,Supplies and Services,Other Hired And Contracted Services,265,12/07/2019,1907-00233,0.00,183.60,R,Access Locksmiths (Leeds) Limited,No
Http://opendatacommunities.org/id/metropolitan-district-council/leeds,Leeds City Council,31/07/2019,Strategic Landlord,Property and Contracts,Premises,General Maintenance,104,12/07/2019,1907-00234,0.00,447.82,R,Access Locksmiths (Leeds) Limited,No
Http://opendatacommunities.org/id/metropolitan-district-council/leeds,Leeds City Council,31/07/2019,Strategic Landlord,Property and Contracts,Premises,General Maintenance,104,17/07/2019,1907-00235,0.00,105.29,R,Access Locksmiths (Leeds) Limited,No
Http://opendatacommunities.org/id/metropolitan-district-council/leeds,Leeds City Council,31/07/2019,Strategic Landlord,Housing Management,Supplies and Services,Resaleable Materials,204,19/07/2019,1907-00236,0.00,433.20,R,Access Locksmiths (Leeds) Limited,No
Http://opendatacommunities.org/id/metropolitan-district-council/leeds,Leeds City Council,31/07/2019,Strategic Landlord,Housing Management,Supplies and Services,Resaleable Materials,204,19/07/2019,1907-00237,0.00,30.00,R,Access Locksmiths (Leeds) Limited,No
Http://opendatacommunities.org/id/metropolitan-district-council/leeds,Leeds City Council,31/07/2019,Strategic Landlord,Housing Management,Supplies and Services,Resaleable Materials,204,19/07/2019,1907-00238,0.00,13.00,R,Access Locksmiths (Leeds) Limited,No
Http://opendatacommunities.org/id/metropolitan-district-council/leeds,Leeds City Council,31/07/2019,Strategic Landlord,Housing Management,Supplies and Services,Resaleable Materials,204,19/07/2019,1907-00239,0.00,9.75,R,Access Locksmiths (Leeds) Limited,No
Http://opendatacommunities.org/id/metropolitan-district-council/leeds,Leeds City Council,31/07/2019,Resources and Housing,HRA Housing Leeds,Capital,Other Costs,7,26/07/2019,1907-00240,0.00,140.00,C,Access Locksmiths (Leeds) Limited,No
Http://opendatacommunities.org/id/metropolitan-district-council/leeds,Leeds City Council,31/07/2019,Communities and Environment,Cleaner Neighbourhood Teams,Supplies and Services,Other Hired And Contracted Services,265,26/07/2019,1907-00241,0.00,22.08,R,Access Locksmiths (Leeds) Limited,No
Http://opendatacommunities.org/id/metropolitan-district-council/leeds,Leeds City Council,31/07/2019,Resources and Housing,Leeds Building Services,Supplies and Services,Other Hired And Contracted Services,265,26/07/2019,1907-00242,0.00,128.15,R,Access Locksmiths (Leeds) Limited,No
Http://opendatacommunities.org/id/metropolitan-district-council/leeds,Leeds City Council,31/07/2019,Strategic Landlord,Housing Management,Supplies and Services,Resaleable Materials,204,26/07/2019,1907-00243,0.00,12.00,R,Access Locksmiths (Leeds) Limited,No
Http://opendatacommunities.org/id/metropolitan-district-council/leeds,Leeds City Council,31/07/2019,Resources and Housing,HRA Housing Leeds,Capital,Construction,3,26/07/2019,1907-00244,0.00,81.60,C,Access Locksmiths (Leeds) Limited,No
Http://opendatacommunities.org/id/metropolitan-district-council/leeds,Leeds City Council,31/07/2019,Resources and Housing,Leeds Building Services,Supplies and Services,Operational Materials,205,26/07/2019,1907-00245,0.00,11.00,R,Access Locksmiths (Leeds) Limited,No
Http://opendatacommunities.org/id/metropolitan-district-council/leeds,Leeds City Council,31/07/2019,Resources and Housing,Commercial Services,Supplies and Services,Operational Furniture And Equipment,203,30/07/2019,1907-00246,0.00,230.00,R,Access Locksmiths (Leeds) Limited,No
Http://opendatacommunities.org/id/metropolitan-district-council/leeds,Leeds City Council,31/07/2019,Resources and Housing,Leeds Building Services,Supplies and Services,Operational Materials,205,30/07/2019,1907-00247,0.00,49.11,R,Access Locksmiths (Leeds) Limited,No
Http://opendatacommunities.org/id/metropolitan-district-council/leeds,Leeds City Council,31/07/2019,Resources and Housing,Leeds Building Services,Supplies and Services,Operational Materials,205,30/07/2019,1907-00248,0.00,53.94,R,Access Locksmiths (Leeds) Limited,No
Http://opendatacommunities.org/id/metropolitan-district-council/leeds,Leeds City Council,31/07/2019,Resources and Housing,Leeds Building Services,Supplies and Services,Operational Materials,205,30/07/2019,1907-00249,0.00,8.20,R,Access Locksmiths (Leeds) Limited,No
Http://opendatacommunities.org/id/metropolitan-district-council/leeds,Leeds City Council,31/07/2019,Resources and Housing,Leeds Building Services,Supplies and Services,Operational Materials,205,30/07/2019,1907-00250,0.00,44.60,R,Access Locksmiths (Leeds) Limited,No
Http://opendatacommunities.org/id/metropolitan-district-council/leeds,Leeds City Council,31/07/2019,Resources and Housing,Leeds Building Services,Supplies and Services,Operational Materials,205,30/07/2019,1907-00251,0.00,237.53,R,Access Locksmiths (Leeds) Limited,No
Http://opendatacommunities.org/id/metropolitan-district-council/leeds,Leeds City Council,31/07/2019,Resources and Housing,Leeds Building Services,Supplies and Services,Operational Materials,205,30/07/2019,1907-00252,0.00,20.00,R,Access Locksmiths (Leeds) Limited,No
Http://opendatacommunities.org/id/metropolitan-district-council/leeds,Leeds City Council,31/07/2019,Resources and Housing,Leeds Building Services,Supplies and Services,Operational Materials,205,30/07/2019,1907-00253,0.00,5.83,R,Access Locksmiths (Leeds) Limited,No
Http://opendatacommunities.org/id/metropolitan-district-council/leeds,Leeds City Council,31/07/2019,City Development,Libraries  Arts & Heritage,Supplies and Services,Bought In Professional Services,277,29/07/2019,1907-00254,0.00,1000.00,R,Access Moving Image Ltd,No
Http://opendatacommunities.org/id/metropolitan-district-council/leeds,Leeds City Council,31/07/2019,Insurance,Insurance,Supplies and Services,Insurance Claims,248,12/07/2019,1907-00255,0.00,3000.00,R,Accountant General Of The Senior Courts,No
Http://opendatacommunities.org/id/metropolitan-district-council/leeds,Leeds City Council,31/07/2019,City Development,Recreation  ,Supplies and Services,Operational Materials,205,21/06/2019,1907-00256,0.00,2.33,R,Ace Cards,Yes
Http://opendatacommunities.org/id/metropolitan-district-council/leeds,Leeds City Council,31/07/2019,City Development,Recreation,Transport,External Hire -Occasional,304,30/07/2019,1907-00257,0.00,128.65,R,Ace Container Services Limited,No
Http://opendatacommunities.org/id/metropolitan-district-council/leeds,Leeds City Council,31/07/2019,City Development,Highways,Supplies and Services,Publication And Promotion,267,19/07/2019,1907-00258,0.00,235.96,R,Ace Leaflet Distribution & Print Ltd,No
Http://opendatacommunities.org/id/metropolitan-district-council/leeds,Leeds City Council,31/07/2019,Children and Families,Learning,Supplies and Services,Advertising,211,26/07/2019,1907-00259,0.00,150.00,R,Ace Leaflet Distribution & Print Ltd,No
Http://opendatacommunities.org/id/metropolitan-district-council/leeds,Leeds City Council,31/07/2019,Children and Families,Partnerships & Health,Third Party Payments,SEN Placements,566,16/07/2019,1907-00260,0.00,18033.84,R,Ackworth School,No
Http://opendatacommunities.org/id/metropolitan-district-council/leeds,Leeds City Council,31/07/2019,Children and Families,Partnerships & Health,Third Party Payments,SEN Placements,566,16/07/2019,1907-00261,0.00,18033.84,R,Ackworth School,No
Http://opendatacommunities.org/id/metropolitan-district-council/leeds,Leeds City Council,31/07/2019,Children and Families,Partnerships & Health,Third Party Payments,SEN Placements,566,16/07/2019,1907-00262,0.00,18033.84,R,Ackworth School,No
Http://opendatacommunities.org/id/metropolitan-district-council/leeds,Leeds City Council,31/07/2019,Children and Families,Partnerships & Health,Third Party Payments,SEN Placements,566,16/07/2019,1907-00263,0.00,18033.84,R,Ackworth School,No
Http://opendatacommunities.org/id/metropolitan-district-council/leeds,Leeds City Council,31/07/2019,Children and Families,Partnerships & Health,Third Party Payments,SEN Placements,566,16/07/2019,1907-00264,0.00,18033.84,R,Ackworth School,No
Http://opendatacommunities.org/id/metropolitan-district-council/leeds,Leeds City Council,31/07/2019,Children and Families,Partnerships & Health,Third Party Payments,SEN Placements,566,16/07/2019,1907-00265,0.00,18033.84,R,Ackworth School,No
Http://opendatacommunities.org/id/metropolitan-district-council/leeds,Leeds City Council,31/07/2019,Children and Families,Partnerships & Health,Third Party Payments,SEN Placements,566,16/07/2019,1907-00266,0.00,18033.84,R,Ackworth School,No
Http://opendatacommunities.org/id/metropolitan-district-council/leeds,Leeds City Council,31/07/2019,Children and Families,Partnerships & Health,Third Party Payments,SEN Placements,566,26/07/2019,1907-00267,0.00,25326.84,R,Ackworth School,No
Http://opendatacommunities.org/id/metropolitan-district-council/leeds,Leeds City Council,31/07/2019,Communities and Environment,Waste Management,Supplies and Services,Other Hired And Contracted Services,265,26/07/2019,1907-00268,0.00,200.00,R,Acorn Analytical Services Limited,No
Http://opendatacommunities.org/id/metropolitan-district-council/leeds,Leeds City Council,31/07/2019,Adults and Health,Services For Older People - 65 And Over,Third Party Payments,Residential Care Dementia,571,24/07/2019,1907-00269,0.00,5889.16,R,Acorn Nursing Home,No
Http://opendatacommunities.org/id/metropolitan-district-council/leeds,Leeds City Council,31/07/2019,Adults and Health,Services For Older People - 65 And Over,Third Party Payments,Nursing Care Dementia,574,24/07/2019,1907-00270,0.00,1646.24,R,Acorn Nursing Home,No
Http://opendatacommunities.org/id/metropolitan-district-council/leeds,Leeds City Council,31/07/2019,Children and Families,Social Care,Third Party Payments,Services Rendered By Other Organisations,511,05/07/2019,1907-00271,0.00,7546.50,R,Acorns Nursery,No
Http://opendatacommunities.org/id/metropolitan-district-council/leeds,Leeds City Council,31/07/2019,Adults and Health,Services For Older People - 65 And Over,Third Party Payments,Nursing Home,570,24/07/2019,1907-00272,0.00,23918.23,R,Acre Green,No
Http://opendatacommunities.org/id/metropolitan-district-council/leeds,Leeds City Council,31/07/2019,Adults and Health,Services For Older People - 65 And Over,Third Party Payments,Residential,580,24/07/2019,1907-00273,0.00,3614.60,R,Acre Green,No
Http://opendatacommunities.org/id/metropolitan-district-council/leeds,Leeds City Council,31/07/2019,Adults and Health,Services For Older People Under 65 P/Dis,Third Party Payments,Nursing Home,570,24/07/2019,1907-00274,0.00,3001.34,R,Acre Green,No
Http://opendatacommunities.org/id/metropolitan-district-council/leeds,Leeds City Council,31/07/2019,Adults and Health,Services For Older People Under 65 P/Dis,Third Party Payments,Residential,580,24/07/2019,1907-00275,0.00,1510.20,R,Acre Green,No
Http://opendatacommunities.org/id/metropolitan-district-council/leeds,Leeds City Council,31/07/2019,Children and Families,Social Care,Third Party Payments,Services Rendered By Other Organisations,511,03/07/2019,1907-00276,0.00,1825.20,R,Acre Wood Day Nursery,No
Http://opendatacommunities.org/id/metropolitan-district-council/leeds,Leeds City Council,31/07/2019,Children and Families,Social Care,Third Party Payments,Services Rendered By Other Organisations,511,05/07/2019,1907-00277,0.00,12234.36,R,Acre Wood Day Nursery,No
Http://opendatacommunities.org/id/metropolitan-district-council/leeds,Leeds City Council,31/07/2019,Resources and Housing,Technology  ,Supplies and Services,Computer Software & Equipment,214,12/06/2019,1907-00278,0.00,1064.95,R,Acsbusinesssupplies,Yes
Http://opendatacommunities.org/id/metropolitan-district-council/leeds,Leeds City Council,31/07/2019,Resources and Housing,Technology,Employees,Training & Development,70,12/07/2019,1907-00279,0.00,49.00,R,Act Now Training Ltd,No
Http://opendatacommunities.org/id/metropolitan-district-council/leeds,Leeds City Council,31/07/2019,Resources and Housing,Technology,Employees,Training & Development,70,19/07/2019,1907-00280,0.00,49.00,R,Act Now Training Ltd,No
Http://opendatacommunities.org/id/metropolitan-district-council/leeds,Leeds City Council,31/07/2019,Resources and Housing,Leeds Building Services,Supplies and Services,Other Hired And Contracted Services,265,05/07/2019,1907-00281,0.00,147.26,R,Actavo (Leeds H & S),No
Http://opendatacommunities.org/id/metropolitan-district-council/leeds,Leeds City Council,31/07/2019,Resources and Housing,Leeds Building Services,Supplies and Services,Operational Materials,205,26/07/2019,1907-00282,0.00,32.50,R,Actavo (Leeds H & S),No
Http://opendatacommunities.org/id/metropolitan-district-council/leeds,Leeds City Council,31/07/2019,Resources and Housing,Leeds Building Services,Supplies and Services,Operational Materials,205,26/07/2019,1907-00283,0.00,119.00,R,Actavo (Leeds H & S),No
Http://opendatacommunities.org/id/metropolitan-district-council/leeds,Leeds City Council,31/07/2019,Children and Families,Social Care,Third Party Payments,Independent Fostering Agencies,509,08/07/2019,1907-00284,0.00,4776.48,R,Action For Children,No
Http://opendatacommunities.org/id/metropolitan-district-council/leeds,Leeds City Council,31/07/2019,Children and Families,Partnerships & Health,Supplies and Services,Consultancy Services,259,26/07/2019,1907-00285,0.00,300.00,R,Action On Hearing Loss,No
Http://opendatacommunities.org/id/metropolitan-district-council/leeds,Leeds City Council,31/07/2019,Children and Families,Partnerships & Health,Supplies and Services,Consultancy Services,259,26/07/2019,1907-00286,0.00,900.00,R,Action On Hearing Loss,No
Http://opendatacommunities.org/id/metropolitan-district-council/leeds,Leeds City Council,31/07/2019,Children and Families,Partnerships & Health,Supplies and Services,Consultancy Services,259,26/07/2019,1907-00287,0.00,300.00,R,Action On Hearing Loss,No
Http://opendatacommunities.org/id/metropolitan-district-council/leeds,Leeds City Council,31/07/2019,Children and Families,Partnerships & Health,Supplies and Services,Consultancy Services,259,26/07/2019,1907-00288,0.00,300.00,R,Action On Hearing Loss,No
Http://opendatacommunities.org/id/metropolitan-district-council/leeds,Leeds City Council,31/07/2019,Children and Families,Social Care,Third Party Payments,Services Rendered By Other Organisations,511,03/07/2019,1907-00289,0.00,202.80,R,Active Kids Yeadon Llp,No
Http://opendatacommunities.org/id/metropolitan-district-council/leeds,Leeds City Council,31/07/2019,Children and Families,Social Care,Third Party Payments,Services Rendered By Other Organisations,511,05/07/2019,1907-00290,0.00,7725.38,R,Active Kids Yeadon Llp,No
Http://opendatacommunities.org/id/metropolitan-district-council/leeds,Leeds City Council,31/07/2019,Communities and Environment,Waste Management,Supplies and Services,Recycling & Reuse Charges,234,02/07/2019,1907-00291,0.00,7070.04,R,Acumen Waste Services Ltd,No
Http://opendatacommunities.org/id/metropolitan-district-council/leeds,Leeds City Council,31/07/2019,Communities and Environment,Cleaner Neighbourhood Teams,Premises,Removal Of Workplace Waste,126,02/07/2019,1907-00292,0.00,116.60,R,Acumen Waste Services Ltd,No
Http://opendatacommunities.org/id/metropolitan-district-council/leeds,Leeds City Council,31/07/2019,Communities and Environment,Cleaner Neighbourhood Teams,Premises,Removal Of Workplace Waste,126,02/07/2019,1907-00293,0.00,116.60,R,Acumen Waste Services Ltd,No
Http://opendatacommunities.org/id/metropolitan-district-council/leeds,Leeds City Council,31/07/2019,Communities and Environment,Cleaner Neighbourhood Teams,Premises,Removal Of Workplace Waste,126,02/07/2019,1907-00294,0.00,116.60,R,Acumen Waste Services Ltd,No
Http://opendatacommunities.org/id/metropolitan-district-council/leeds,Leeds City Council,31/07/2019,Communities and Environment,Cleaner Neighbourhood Teams,Premises,Removal Of Workplace Waste,126,02/07/2019,1907-00295,0.00,116.60,R,Acumen Waste Services Ltd,No
Http://opendatacommunities.org/id/metropolitan-district-council/leeds,Leeds City Council,31/07/2019,Communities and Environment,Cleaner Neighbourhood Teams,Premises,Removal Of Workplace Waste,126,03/07/2019,1907-00296,0.00,110.00,R,Acumen Waste Services Ltd,No
Http://opendatacommunities.org/id/metropolitan-district-council/leeds,Leeds City Council,31/07/2019,Communities and Environment,Cleaner Neighbourhood Teams,Premises,Removal Of Workplace Waste,126,03/07/2019,1907-00297,0.00,110.00,R,Acumen Waste Services Ltd,No
Http://opendatacommunities.org/id/metropolitan-district-council/leeds,Leeds City Council,31/07/2019,Communities and Environment,Cleaner Neighbourhood Teams,Premises,Removal Of Workplace Waste,126,03/07/2019,1907-00298,0.00,110.00,R,Acumen Waste Services Ltd,No
Http://opendatacommunities.org/id/metropolitan-district-council/leeds,Leeds City Council,31/07/2019,Communities and Environment,Cleaner Neighbourhood Teams,Premises,Removal Of Workplace Waste,126,10/07/2019,1907-00299,0.00,116.60,R,Acumen Waste Services Ltd,No
Http://opendatacommunities.org/id/metropolitan-district-council/leeds,Leeds City Council,31/07/2019,Communities and Environment,Cleaner Neighbourhood Teams,Premises,Removal Of Workplace Waste,126,10/07/2019,1907-00300,0.00,116.60,R,Acumen Waste Services Ltd,No
Http://opendatacommunities.org/id/metropolitan-district-council/leeds,Leeds City Council,31/07/2019,Communities and Environment,Cleaner Neighbourhood Teams,Premises,Removal Of Workplace Waste,126,10/07/2019,1907-00301,0.00,116.60,R,Acumen Waste Services Ltd,No
Http://opendatacommunities.org/id/metropolitan-district-council/leeds,Leeds City Council,31/07/2019,Communities and Environment,Cleaner Neighbourhood Teams,Premises,Removal Of Workplace Waste,126,10/07/2019,1907-00302,0.00,116.60,R,Acumen Waste Services Ltd,No
Http://opendatacommunities.org/id/metropolitan-district-council/leeds,Leeds City Council,31/07/2019,Communities and Environment,Cleaner Neighbourhood Teams,Premises,Removal Of Workplace Waste,126,10/07/2019,1907-00303,0.00,116.60,R,Acumen Waste Services Ltd,No
Http://opendatacommunities.org/id/metropolitan-district-council/leeds,Leeds City Council,31/07/2019,Communities and Environment,Cleaner Neighbourhood Teams,Premises,Removal Of Workplace Waste,126,10/07/2019,1907-00304,0.00,116.60,R,Acumen Waste Services Ltd,No
Http://opendatacommunities.org/id/metropolitan-district-council/leeds,Leeds City Council,31/07/2019,Communities and Environment,Cleaner Neighbourhood Teams,Premises,Removal Of Workplace Waste,126,10/07/2019,1907-00305,0.00,116.60,R,Acumen Waste Services Ltd,No
Http://opendatacommunities.org/id/metropolitan-district-council/leeds,Leeds City Council,31/07/2019,Communities and Environment,Cleaner Neighbourhood Teams,Premises,Removal Of Workplace Waste,126,10/07/2019,1907-00306,0.00,116.60,R,Acumen Waste Services Ltd,No
Http://opendatacommunities.org/id/metropolitan-district-council/leeds,Leeds City Council,31/07/2019,Communities and Environment,Cleaner Neighbourhood Teams,Premises,Removal Of Workplace Waste,126,10/07/2019,1907-00307,0.00,116.60,R,Acumen Waste Services Ltd,No
Http://opendatacommunities.org/id/metropolitan-district-council/leeds,Leeds City Council,31/07/2019,Communities and Environment,Waste Management,Supplies and Services,Recycling & Reuse Charges,234,12/07/2019,1907-00308,0.00,6001.19,R,Acumen Waste Services Ltd,No
Http://opendatacommunities.org/id/metropolitan-district-council/leeds,Leeds City Council,31/07/2019,Communities and Environment,Waste Management,Supplies and Services,Recycling & Reuse Charges,234,17/07/2019,1907-00309,0.00,5971.36,R,Acumen Waste Services Ltd,No
Http://opendatacommunities.org/id/metropolitan-district-council/leeds,Leeds City Council,31/07/2019,Communities and Environment,Cleaner Neighbourhood Teams,Premises,Removal Of Workplace Waste,126,17/07/2019,1907-00310,0.00,116.60,R,Acumen Waste Services Ltd,No
Http://opendatacommunities.org/id/metropolitan-district-council/leeds,Leeds City Council,31/07/2019,Communities and Environment,Cleaner Neighbourhood Teams,Premises,Removal Of Workplace Waste,126,17/07/2019,1907-00311,0.00,116.60,R,Acumen Waste Services Ltd,No
Http://opendatacommunities.org/id/metropolitan-district-council/leeds,Leeds City Council,31/07/2019,Communities and Environment,Cleaner Neighbourhood Teams,Premises,Removal Of Workplace Waste,126,17/07/2019,1907-00312,0.00,50.00,R,Acumen Waste Services Ltd,No
Http://opendatacommunities.org/id/metropolitan-district-council/leeds,Leeds City Council,31/07/2019,Communities and Environment,Cleaner Neighbourhood Teams,Premises,Removal Of Workplace Waste,126,19/07/2019,1907-00313,0.00,50.00,R,Acumen Waste Services Ltd,No
Http://opendatacommunities.org/id/metropolitan-district-council/leeds,Leeds City Council,31/07/2019,Communities and Environment,Cleaner Neighbourhood Teams,Premises,Removal Of Workplace Waste,126,25/07/2019,1907-00314,0.00,116.60,R,Acumen Waste Services Ltd,No
Http://opendatacommunities.org/id/metropolitan-district-council/leeds,Leeds City Council,31/07/2019,Communities and Environment,Cleaner Neighbourhood Teams,Premises,Removal Of Workplace Waste,126,25/07/2019,1907-00315,0.00,116.60,R,Acumen Waste Services Ltd,No
Http://opendatacommunities.org/id/metropolitan-district-council/leeds,Leeds City Council,31/07/2019,Communities and Environment,Cleaner Neighbourhood Teams,Premises,Removal Of Workplace Waste,126,25/07/2019,1907-00316,0.00,116.60,R,Acumen Waste Services Ltd,No
Http://opendatacommunities.org/id/metropolitan-district-council/leeds,Leeds City Council,31/07/2019,Communities and Environment,Cleaner Neighbourhood Teams,Premises,Removal Of Workplace Waste,126,25/07/2019,1907-00317,0.00,116.60,R,Acumen Waste Services Ltd,No
Http://opendatacommunities.org/id/metropolitan-district-council/leeds,Leeds City Council,31/07/2019,Communities and Environment,Cleaner Neighbourhood Teams,Premises,Removal Of Workplace Waste,126,25/07/2019,1907-00318,0.00,116.60,R,Acumen Waste Services Ltd,No
Http://opendatacommunities.org/id/metropolitan-district-council/leeds,Leeds City Council,31/07/2019,Communities and Environment,Cleaner Neighbourhood Teams,Premises,Removal Of Workplace Waste,126,25/07/2019,1907-00319,0.00,116.60,R,Acumen Waste Services Ltd,No
Http://opendatacommunities.org/id/metropolitan-district-council/leeds,Leeds City Council,31/07/2019,Communities and Environment,Cleaner Neighbourhood Teams,Premises,Removal Of Workplace Waste,126,25/07/2019,1907-00320,0.00,116.60,R,Acumen Waste Services Ltd,No
Http://opendatacommunities.org/id/metropolitan-district-council/leeds,Leeds City Council,31/07/2019,Communities and Environment,Waste Management,Supplies and Services,Recycling & Reuse Charges,234,26/07/2019,1907-00321,0.00,3986.35,R,Acumen Waste Services Ltd,No
Http://opendatacommunities.org/id/metropolitan-district-council/leeds,Leeds City Council,31/07/2019,Communities and Environment,Cleaner Neighbourhood Teams,Premises,Removal Of Workplace Waste,126,26/07/2019,1907-00322,0.00,116.60,R,Acumen Waste Services Ltd,No
Http://opendatacommunities.org/id/metropolitan-district-council/leeds,Leeds City Council,31/07/2019,Communities and Environment,Cleaner Neighbourhood Teams,Premises,Removal Of Workplace Waste,126,31/07/2019,1907-00323,0.00,116.60,R,Acumen Waste Services Ltd,No
Http://opendatacommunities.org/id/metropolitan-district-council/leeds,Leeds City Council,31/07/2019,Communities and Environment,Cleaner Neighbourhood Teams,Premises,Removal Of Workplace Waste,126,31/07/2019,1907-00324,0.00,116.60,R,Acumen Waste Services Ltd,No
Http://opendatacommunities.org/id/metropolitan-district-council/leeds,Leeds City Council,31/07/2019,Communities and Environment,Cleaner Neighbourhood Teams,Premises,Removal Of Workplace Waste,126,31/07/2019,1907-00325,0.00,116.60,R,Acumen Waste Services Ltd,No
Http://opendatacommunities.org/id/metropolitan-district-council/leeds,Leeds City Council,31/07/2019,Adults and Health,Social Services Support Services,Employees,Training & Development,70,05/07/2019,1907-00326,0.00,595.00,R,Acute Training Solutions Limited,No
Http://opendatacommunities.org/id/metropolitan-district-council/leeds,Leeds City Council,31/07/2019,Resources and Housing,Shared Services,Supplies and Services,Operational Materials,205,05/07/2019,1907-00327,0.00,147.45,R,Ad3 Envelope Printers Limited,No
Http://opendatacommunities.org/id/metropolitan-district-council/leeds,Leeds City Council,31/07/2019,Resources and Housing,Shared Services,Supplies and Services,Operational Materials,205,19/07/2019,1907-00328,0.00,366.60,R,Ad3 Envelope Printers Limited,No
Http://opendatacommunities.org/id/metropolitan-district-council/leeds,Leeds City Council,31/07/2019,Resources and Housing,Shared Services,Supplies and Services,Other Hired And Contracted Services,265,19/07/2019,1907-00329,0.00,363.50,R,Ad3 Envelope Printers Limited,No
Http://opendatacommunities.org/id/metropolitan-district-council/leeds,Leeds City Council,31/07/2019,Resources and Housing,Shared Services,Supplies and Services,Operational Materials,205,30/07/2019,1907-00330,0.00,1131.75,R,Ad3 Envelope Printers Limited,No
Http://opendatacommunities.org/id/metropolitan-district-council/leeds,Leeds City Council,31/07/2019,Communities and Environment,Elections  Licensing and Registration,Income,Admissions  Booking Fees & Ticket Sales,933,11/07/2019,1907-00331,0.00,55.00,R,REDACTED PERSONAL DATA,No
Http://opendatacommunities.org/id/metropolitan-district-council/leeds,Leeds City Council,31/07/2019,Resources and Housing,Sustainable Energy & Climate Change,Capital,Other Costs,7,02/07/2019,1907-00332,0.00,1500.00,C,REDACTED COMMERCIAL CONFIDENTIALITY,No
Http://opendatacommunities.org/id/metropolitan-district-council/leeds,Leeds City Council,31/07/2019,Adults and Health,Services For Older People - 65 And Over,Third Party Payments,Nursing Home,570,24/07/2019,1907-00333,0.00,2380.00,R,Adbolton Hall,No
Http://opendatacommunities.org/id/metropolitan-district-council/leeds,Leeds City Council,31/07/2019,City Development,Libraries  Arts & Heritage,Supplies and Services,Other Hired And Contracted Services,265,26/07/2019,1907-00334,0.00,1200.00,R,Add-A-Tone Productions Ltd,No
Http://opendatacommunities.org/id/metropolitan-district-council/leeds,Leeds City Council,31/07/2019,City Development,Libraries  Arts & Heritage,Income,Other Income,973,26/07/2019,1907-00335,0.00,1900.00,R,Add-A-Tone Productions Ltd,No
Http://opendatacommunities.org/id/metropolitan-district-council/leeds,Leeds City Council,31/07/2019,Resources and Housing,Technology  ,Employees,Agency Staff,8,07/06/2019,1907-00336,0.00,49430.59,R,Adecco Alfred Marks,Yes
Http://opendatacommunities.org/id/metropolitan-district-council/leeds,Leeds City Council,31/07/2019,Strategic Accounts,Miscellaneous,Supplies and Services,Non-Recurring Grants,227,08/07/2019,1907-00337,0.00,200.00,R,Adel & District Horticultural Society,No
Http://opendatacommunities.org/id/metropolitan-district-council/leeds,Leeds City Council,31/07/2019,Children and Families,Social Care,Third Party Payments,Services Rendered By Other Organisations,511,03/07/2019,1907-00338,0.00,3802.50,R,Adel Pre School,No
Http://opendatacommunities.org/id/metropolitan-district-council/leeds,Leeds City Council,31/07/2019,Children and Families,Social Care,Third Party Payments,Services Rendered By Voluntary Sector,505,05/07/2019,1907-00339,0.00,5845.85,R,Adel Pre School,No
Http://opendatacommunities.org/id/metropolitan-district-council/leeds,Leeds City Council,31/07/2019,Children and Families,Social Care,Third Party Payments,Section 17,551,05/07/2019,1907-00340,0.00,132.00,R,REDACTED PERSONAL DATA,No
Http://opendatacommunities.org/id/metropolitan-district-council/leeds,Leeds City Council,31/07/2019,Children and Families,Social Care,Third Party Payments,Section 17,551,19/07/2019,1907-00341,0.00,66.00,R,REDACTED PERSONAL DATA,No
Http://opendatacommunities.org/id/metropolitan-district-council/leeds,Leeds City Council,31/07/2019,Children and Families,Social Care,Third Party Payments,Section 17,551,26/07/2019,1907-00342,0.00,66.00,R,REDACTED PERSONAL DATA,No
Http://opendatacommunities.org/id/metropolitan-district-council/leeds,Leeds City Council,31/07/2019,Children and Families,Social Care,Third Party Payments,Services Rendered By Other Organisations,511,05/07/2019,1907-00343,0.00,503.10,R,REDACTED PERSONAL DATA,No
Http://opendatacommunities.org/id/metropolitan-district-council/leeds,Leeds City Council,31/07/2019,Children and Families,Social Care,Support Services,Legal Disbursements,411,24/07/2019,1907-00344,0.00,320.00,R,Adele Jenkins,No
Http://opendatacommunities.org/id/metropolitan-district-council/leeds,Leeds City Council,31/07/2019,Children and Families,Social Care,Third Party Payments,Services Rendered By Other Organisations,511,05/07/2019,1907-00345,0.00,223.60,R,REDACTED PERSONAL DATA,No
Http://opendatacommunities.org/id/metropolitan-district-council/leeds,Leeds City Council,31/07/2019,Children and Families,Social Care,Third Party Payments,Services Rendered By Other Organisations,511,05/07/2019,1907-00346,0.00,1006.20,R,REDACTED PERSONAL DATA,No
Http://opendatacommunities.org/id/metropolitan-district-council/leeds,Leeds City Council,31/07/2019,Resources and Housing,Leeds Building Services,Supplies and Services,Operational Materials,205,03/07/2019,1907-00347,0.00,137.06,R,Adi Global,No
Http://opendatacommunities.org/id/metropolitan-district-council/leeds,Leeds City Council,31/07/2019,Communities and Environment,Community Safety,Supplies and Services,Other Hired And Contracted Services,265,03/07/2019,1907-00348,0.00,10261.62,R,Adi Global,No
Http://opendatacommunities.org/id/metropolitan-district-council/leeds,Leeds City Council,31/07/2019,Communities and Environment,Community Safety,Supplies and Services,Other Hired And Contracted Services,265,03/07/2019,1907-00349,0.00,10261.62,R,Adi Global,No
Http://opendatacommunities.org/id/metropolitan-district-council/leeds,Leeds City Council,31/07/2019,Communities and Environment,Community Safety,Supplies and Services,Other Hired And Contracted Services,265,03/07/2019,1907-00350,0.00,9968.64,R,Adi Global,No
Http://opendatacommunities.org/id/metropolitan-district-council/leeds,Leeds City Council,31/07/2019,Communities and Environment,Community Safety,Supplies and Services,Other Hired And Contracted Services,265,12/07/2019,1907-00351,0.00,3359.76,R,Adi Global,No
Http://opendatacommunities.org/id/metropolitan-district-council/leeds,Leeds City Council,31/07/2019,Resources and Housing,Leeds Building Services,Supplies and Services,Operational Materials,205,19/07/2019,1907-00352,0.00,1035.72,R,Adi Global,No
Http://opendatacommunities.org/id/metropolitan-district-council/leeds,Leeds City Council,31/07/2019,Resources and Housing,Leeds Building Services,Supplies and Services,Operational Materials,205,25/07/2019,1907-00353,0.00,51.13,R,Adi Global,No
Http://opendatacommunities.org/id/metropolitan-district-council/leeds,Leeds City Council,31/07/2019,Resources and Housing,Leeds Building Services,Supplies and Services,Operational Materials,205,25/07/2019,1907-00354,0.00,191.64,R,Adi Global,No
Http://opendatacommunities.org/id/metropolitan-district-council/leeds,Leeds City Council,31/07/2019,Resources and Housing,Leeds Building Services,Supplies and Services,Operational Materials,205,26/07/2019,1907-00355,0.00,350.44,R,Adi Global,No
Http://opendatacommunities.org/id/metropolitan-district-council/leeds,Leeds City Council,31/07/2019,Resources and Housing,Leeds Building Services,Supplies and Services,Operational Materials,205,30/07/2019,1907-00356,0.00,18.41,R,Adi Global,No
Http://opendatacommunities.org/id/metropolitan-district-council/leeds,Leeds City Council,31/07/2019,Resources and Housing,Leeds Building Services,Supplies and Services,Operational Materials,205,30/07/2019,1907-00357,0.00,277.16,R,Adi Global,No
Http://opendatacommunities.org/id/metropolitan-district-council/leeds,Leeds City Council,31/07/2019,Resources and Housing,Leeds Building Services,Supplies and Services,Operational Materials,205,30/07/2019,1907-00358,0.00,255.04,R,Adi Global,No
Http://opendatacommunities.org/id/metropolitan-district-council/leeds,Leeds City Council,31/07/2019,Resources and Housing,Leeds Building Services,Supplies and Services,Operational Materials,205,30/07/2019,1907-00359,0.00,1234.40,R,Adi Global,No
Http://opendatacommunities.org/id/metropolitan-district-council/leeds,Leeds City Council,31/07/2019,Resources and Housing,Leeds Building Services,Supplies and Services,Operational Materials,205,30/07/2019,1907-00360,0.00,984.47,R,Adi Global,No
Http://opendatacommunities.org/id/metropolitan-district-council/leeds,Leeds City Council,31/07/2019,Resources and Housing,Leeds Building Services,Supplies and Services,Operational Materials,205,30/07/2019,1907-00361,0.00,153.46,R,Adi Global,No
Http://opendatacommunities.org/id/metropolitan-district-council/leeds,Leeds City Council,31/07/2019,Resources and Housing,Leeds Building Services,Supplies and Services,Operational Materials,205,30/07/2019,1907-00362,0.00,1488.28,R,Adi Global,No
Http://opendatacommunities.org/id/metropolitan-district-council/leeds,Leeds City Council,31/07/2019,Resources and Housing,Leeds Building Services,Supplies and Services,Operational Materials,205,30/07/2019,1907-00363,0.00,32.03,R,Adi Global,No
Http://opendatacommunities.org/id/metropolitan-district-council/leeds,Leeds City Council,31/07/2019,Resources and Housing,Leeds Building Services,Supplies and Services,Operational Materials,205,30/07/2019,1907-00364,0.00,2335.84,R,Adi Global,No
Http://opendatacommunities.org/id/metropolitan-district-council/leeds,Leeds City Council,31/07/2019,Resources and Housing,Leeds Building Services,Supplies and Services,Operational Materials,205,30/07/2019,1907-00365,0.00,198.31,R,Adi Global,No
Http://opendatacommunities.org/id/metropolitan-district-council/leeds,Leeds City Council,31/07/2019,Resources and Housing,Leeds Building Services,Supplies and Services,Operational Materials,205,30/07/2019,1907-00366,0.00,435.24,R,Adi Global,No
Http://opendatacommunities.org/id/metropolitan-district-council/leeds,Leeds City Council,31/07/2019,Adults and Health,Services For Adults Under 65 Mental/Dis,Third Party Payments,Home Care,568,05/07/2019,1907-00367,0.00,224.00,R,Adjuvo Care & Support Ltd,No
Http://opendatacommunities.org/id/metropolitan-district-council/leeds,Leeds City Council,31/07/2019,Adults and Health,Services For Adults Under 65 Mental/Dis,Third Party Payments,Home Care,568,19/07/2019,1907-00368,0.00,64.00,R,Adjuvo Care & Support Ltd,No
Http://opendatacommunities.org/id/metropolitan-district-council/leeds,Leeds City Council,31/07/2019,Insurance,Insurance,Supplies and Services,Insurance Claims,248,25/07/2019,1907-00369,0.00,3406.26,R,Admiral Insurance,No
Http://opendatacommunities.org/id/metropolitan-district-council/leeds,Leeds City Council,31/07/2019,City Development,Libraries  Arts & Heritage  ,Supplies and Services,Computer Software & Equipment,214,02/06/2019,1907-00370,0.00,9.98,R,Adobe Photogphy Plan,Yes
Http://opendatacommunities.org/id/metropolitan-district-council/leeds,Leeds City Council,31/07/2019,Children and Families,Social Care,Third Party Payments,Independent Fostering Agencies,509,05/07/2019,1907-00371,0.00,2945.00,R,Adolescent And Childrens Trust,No
Http://opendatacommunities.org/id/metropolitan-district-council/leeds,Leeds City Council,31/07/2019,Children and Families,Social Care,Third Party Payments,Independent Fostering Agencies,509,05/07/2019,1907-00372,0.00,3193.00,R,Adolescent And Childrens Trust,No
Http://opendatacommunities.org/id/metropolitan-district-council/leeds,Leeds City Council,31/07/2019,Children and Families,Social Care,Third Party Payments,Independent Fostering Agencies,509,05/07/2019,1907-00373,0.00,3193.00,R,Adolescent And Childrens Trust,No
Http://opendatacommunities.org/id/metropolitan-district-council/leeds,Leeds City Council,31/07/2019,Children and Families,Social Care,Third Party Payments,Independent Fostering Agencies,509,05/07/2019,1907-00374,0.00,3129.14,R,Adolescent And Childrens Trust,No
Http://opendatacommunities.org/id/metropolitan-district-council/leeds,Leeds City Council,31/07/2019,Children and Families,Social Care,Third Party Payments,Independent Fostering Agencies,509,05/07/2019,1907-00375,0.00,3129.14,R,Adolescent And Childrens Trust,No
Http://opendatacommunities.org/id/metropolitan-district-council/leeds,Leeds City Council,31/07/2019,Children and Families,Social Care,Third Party Payments,Independent Fostering Agencies,509,05/07/2019,1907-00376,0.00,3129.14,R,Adolescent And Childrens Trust,No
Http://opendatacommunities.org/id/metropolitan-district-council/leeds,Leeds City Council,31/07/2019,Children and Families,Social Care,Third Party Payments,Independent Fostering Agencies,509,05/07/2019,1907-00377,0.00,3129.14,R,Adolescent And Childrens Trust,No
Http://opendatacommunities.org/id/metropolitan-district-council/leeds,Leeds City Council,31/07/2019,Children and Families,Social Care,Third Party Payments,Independent Fostering Agencies,509,05/07/2019,1907-00378,0.00,1743.78,R,Adolescent And Childrens Trust,No
Http://opendatacommunities.org/id/metropolitan-district-council/leeds,Leeds City Council,31/07/2019,Children and Families,Social Care,Third Party Payments,Independent Fostering Agencies,509,05/07/2019,1907-00379,0.00,3384.58,R,Adolescent And Childrens Trust,No
Http://opendatacommunities.org/id/metropolitan-district-council/leeds,Leeds City Council,31/07/2019,Children and Families,Social Care,Third Party Payments,Independent Fostering Agencies,509,05/07/2019,1907-00380,0.00,3097.21,R,Adolescent And Childrens Trust,No
Http://opendatacommunities.org/id/metropolitan-district-council/leeds,Leeds City Council,31/07/2019,Children and Families,Social Care,Third Party Payments,Independent Fostering Agencies,509,05/07/2019,1907-00381,0.00,2913.78,R,Adolescent And Childrens Trust,No
Http://opendatacommunities.org/id/metropolitan-district-council/leeds,Leeds City Council,31/07/2019,Children and Families,Social Care,Third Party Payments,Independent Fostering Agencies,509,05/07/2019,1907-00382,0.00,3097.21,R,Adolescent And Childrens Trust,No
Http://opendatacommunities.org/id/metropolitan-district-council/leeds,Leeds City Council,31/07/2019,Children and Families,Social Care,Third Party Payments,Independent Fostering Agencies,509,05/07/2019,1907-00383,0.00,3129.14,R,Adolescent And Childrens Trust,No
Http://opendatacommunities.org/id/metropolitan-district-council/leeds,Leeds City Council,31/07/2019,Children and Families,Social Care,Third Party Payments,Independent Fostering Agencies,509,05/07/2019,1907-00384,0.00,3129.14,R,Adolescent And Childrens Trust,No
Http://opendatacommunities.org/id/metropolitan-district-council/leeds,Leeds City Council,31/07/2019,Strategic Landlord,Housing Management,Premises,Premises Security Services,162,03/07/2019,1907-00385,0.00,156.21,R,Adt Fire And Security Plc,No
Http://opendatacommunities.org/id/metropolitan-district-council/leeds,Leeds City Council,31/07/2019,Strategic Landlord,Housing Management,Premises,Premises Security Services,162,10/07/2019,1907-00386,0.00,1027.92,R,Adt Fire And Security Plc,No
Http://opendatacommunities.org/id/metropolitan-district-council/leeds,Leeds City Council,31/07/2019,Strategic Landlord,Housing Management,Premises,Premises Security Services,162,12/07/2019,1907-00387,0.00,163.00,R,Adt Fire And Security Plc,No
Http://opendatacommunities.org/id/metropolitan-district-council/leeds,Leeds City Council,31/07/2019,Strategic Landlord,Housing Management,Premises,Premises Security Services,162,12/07/2019,1907-00388,0.00,163.00,R,Adt Fire And Security Plc,No
Http://opendatacommunities.org/id/metropolitan-district-council/leeds,Leeds City Council,31/07/2019,Resources and Housing,Corporate Property Management,Premises,Maintenance Of Buildings,101,29/07/2019,1907-00389,0.00,165.28,R,Adt Fire And Security Plc,No
Http://opendatacommunities.org/id/metropolitan-district-council/leeds,Leeds City Council as Accountable Body,31/07/2019,Social Services Pooled Budgets,Jcs For People With Learning Disabilitie,Third Party Payments,Residential,580,10/07/2019,1907-00390,0.00,1332.20,R,Adult Placement Services,No
Http://opendatacommunities.org/id/metropolitan-district-council/leeds,Leeds City Council as Accountable Body,31/07/2019,Social Services Pooled Budgets,Jcs For People With Learning Disabilitie,Third Party Payments,Residential,580,10/07/2019,1907-00391,0.00,333.06,R,Adult Placement Services,No
Http://opendatacommunities.org/id/metropolitan-district-council/leeds,Leeds City Council as Accountable Body,31/07/2019,Social Services Pooled Budgets,Jcs For People With Learning Disabilitie,Third Party Payments,Residential,580,10/07/2019,1907-00392,0.00,285.48,R,Adult Placement Services,No
Http://opendatacommunities.org/id/metropolitan-district-council/leeds,Leeds City Council as Accountable Body,31/07/2019,Social Services Pooled Budgets,Jcs For People With Learning Disabilitie,Third Party Payments,Residential,580,10/07/2019,1907-00393,0.00,823.81,R,Adult Placement Services,No
Http://opendatacommunities.org/id/metropolitan-district-council/leeds,Leeds City Council as Accountable Body,31/07/2019,Social Services Pooled Budgets,Jcs For People With Learning Disabilitie,Third Party Payments,Residential,580,10/07/2019,1907-00394,0.00,333.06,R,Adult Placement Services,No
Http://opendatacommunities.org/id/metropolitan-district-council/leeds,Leeds City Council as Accountable Body,31/07/2019,Social Services Pooled Budgets,Jcs For People With Learning Disabilitie,Third Party Payments,Residential,580,12/07/2019,1907-00395,0.00,1332.20,R,Adult Placement Services,No
Http://opendatacommunities.org/id/metropolitan-district-council/leeds,Leeds City Council as Accountable Body,31/07/2019,Social Services Pooled Budgets,Jcs For People With Learning Disabilitie,Third Party Payments,Residential,580,17/07/2019,1907-00396,0.00,1332.24,R,Adult Placement Services,No
Http://opendatacommunities.org/id/metropolitan-district-council/leeds,Leeds City Council,31/07/2019,City Development,Recreation,Supplies and Services,External Audit Fees,261,05/07/2019,1907-00397,0.00,135.00,R,Advance Stocks Ltd,No
Http://opendatacommunities.org/id/metropolitan-district-council/leeds,Leeds City Council,31/07/2019,City Development,Recreation,Supplies and Services,External Audit Fees,261,05/07/2019,1907-00398,0.00,90.00,R,Advance Stocks Ltd,No
Http://opendatacommunities.org/id/metropolitan-district-council/leeds,Leeds City Council,31/07/2019,City Development,Libraries  Arts & Heritage,Supplies and Services,Other Hired And Contracted Services,265,05/07/2019,1907-00399,0.00,85.00,R,Advance Stocks Ltd,No
Http://opendatacommunities.org/id/metropolitan-district-council/leeds,Leeds City Council,31/07/2019,City Development,Libraries  Arts & Heritage,Supplies and Services,External Audit Fees,261,10/07/2019,1907-00400,0.00,90.00,R,Advance Stocks Ltd,No
Http://opendatacommunities.org/id/metropolitan-district-council/leeds,Leeds City Council,31/07/2019,Children and Families,Social Care,Support Services,Legal Disbursements,411,17/07/2019,1907-00401,0.00,90.80,R,Advanced Child Care Assessments Ltd,No
Http://opendatacommunities.org/id/metropolitan-district-council/leeds,Leeds City Council as Accountable Body,31/07/2019,Social Services Pooled Budgets,Jcs For People With Learning Disabilitie,Third Party Payments,Residential,580,08/07/2019,1907-00402,0.00,9475.60,R,Advitam Ltd,No
Http://opendatacommunities.org/id/metropolitan-district-council/leeds,Leeds City Council as Accountable Body,31/07/2019,Social Services Pooled Budgets,Jcs For People With Learning Disabilitie,Third Party Payments,Day Centre,564,22/07/2019,1907-00403,0.00,454.20,R,Advitam Ltd,No
Http://opendatacommunities.org/id/metropolitan-district-council/leeds,Leeds City Council as Accountable Body,31/07/2019,Social Services Pooled Budgets,Jcs For People With Learning Disabilitie,Third Party Payments,Residential,580,24/07/2019,1907-00404,0.00,17213.56,R,Advitam Ltd,No
Http://opendatacommunities.org/id/metropolitan-district-council/leeds,Leeds City Council,31/07/2019,Adults and Health,Services For Adults Under 65 Learn/Dis,Third Party Payments,Payments To Voluntary Organisations,561,19/07/2019,1907-00405,0.00,17944.96,R,Advonet,No
Http://opendatacommunities.org/id/metropolitan-district-council/leeds,Leeds City Council,31/07/2019,Adults and Health,Services For Older People - 65 And Over,Third Party Payments,Payments To Voluntary Organisations,561,25/07/2019,1907-00406,0.00,103916.67,R,Advonet,No
Http://opendatacommunities.org/id/metropolitan-district-council/leeds,Leeds City Council,31/07/2019,Adults and Health,Services For Adults Under 65 Mental/Dis,Third Party Payments,Fees - Level 4,520,26/07/2019,1907-00407,0.00,200.00,R,Ae Bia Assessments Limited,No
Http://opendatacommunities.org/id/metropolitan-district-council/leeds,Leeds City Council,31/07/2019,City Development,Highways,Capital,Other Costs,7,12/07/2019,1907-00408,0.00,37160.55,C,Aecom Limited,No
Http://opendatacommunities.org/id/metropolitan-district-council/leeds,Leeds City Council,31/07/2019,City Development,Economic Development,Capital,Other Costs,7,19/07/2019,1907-00409,0.00,4500.00,C,Aecom Limited,No
Http://opendatacommunities.org/id/metropolitan-district-council/leeds,Leeds City Council,31/07/2019,City Development,Economic Development,Capital,Other Costs,7,19/07/2019,1907-00410,0.00,8788.00,C,Aecom Limited,No
Http://opendatacommunities.org/id/metropolitan-district-council/leeds,Leeds City Council,31/07/2019,Adults and Health,Services For Adults Under 65 Mental/Dis,Third Party Payments,Home Care,568,12/07/2019,1907-00411,0.00,403.20,R,Aegis Care Solutions Ltd,No
Http://opendatacommunities.org/id/metropolitan-district-council/leeds,Leeds City Council,31/07/2019,Adults and Health,Services For Adults Under 65 Mental/Dis,Third Party Payments,Home Care,568,29/07/2019,1907-00412,0.00,763.60,R,Aegis Care Solutions Ltd,No
Http://opendatacommunities.org/id/metropolitan-district-council/leeds,Leeds City Council,31/07/2019,Adults and Health,Services For Adults Under 65 Mental/Dis,Third Party Payments,Home Care,568,31/07/2019,1907-00413,0.00,504.00,R,Aegis Care Solutions Ltd,No
Http://opendatacommunities.org/id/metropolitan-district-council/leeds,Leeds City Council,31/07/2019,Resources and Housing,Sustainable Energy & Air Quality,Supplies and Services,Publication And Promotion,267,26/07/2019,1907-00414,0.00,440.00,R,Aesg Ltd,No
Http://opendatacommunities.org/id/metropolitan-district-council/leeds,Leeds City Council,31/07/2019,Adults and Health,Services For Older People - 65 And Over,Third Party Payments,HCAIT Community Support,575,17/07/2019,1907-00415,0.00,583.27,R,Affinity Trust,No
Http://opendatacommunities.org/id/metropolitan-district-council/leeds,Leeds City Council,31/07/2019,Adults and Health,Services For Older People Under 65 P/Dis,Third Party Payments,Home Care,568,17/07/2019,1907-00416,0.00,846.94,R,Affinity Trust,No
Http://opendatacommunities.org/id/metropolitan-district-council/leeds,Leeds City Council as Accountable Body,31/07/2019,Social Services Pooled Budgets,Jcs For People With Learning Disabilitie,Third Party Payments,Home Care,568,22/07/2019,1907-00417,0.00,1086.64,R,Affinity Trust,No
Http://opendatacommunities.org/id/metropolitan-district-council/leeds,Leeds City Council as Accountable Body,31/07/2019,Social Services Pooled Budgets,Jcs For People With Learning Disabilitie,Third Party Payments,Day Centre,564,22/07/2019,1907-00418,0.00,191.76,R,Affinity Trust,No
Http://opendatacommunities.org/id/metropolitan-district-council/leeds,Leeds City Council as Accountable Body,31/07/2019,Social Services Pooled Budgets,Jcs For People With Learning Disabilitie,Third Party Payments,Home Care,568,26/07/2019,1907-00419,0.00,319.60,R,Affinity Trust,No
Http://opendatacommunities.org/id/metropolitan-district-council/leeds,Leeds City Council,31/07/2019,Adults and Health,Services For Older People - 65 And Over,Third Party Payments,Home Care,568,26/07/2019,1907-00420,0.00,503.37,R,Affinity Trust,No
Http://opendatacommunities.org/id/metropolitan-district-council/leeds,Leeds City Council as Accountable Body,31/07/2019,Social Services Pooled Budgets,Jcs For People With Learning Disabilitie,Third Party Payments,Day Centre,564,29/07/2019,1907-00421,0.00,2346.40,R,Affinity Trust,No
Http://opendatacommunities.org/id/metropolitan-district-council/leeds,Leeds City Council as Accountable Body,31/07/2019,Social Services Pooled Budgets,Jcs For People With Learning Disabilitie,Third Party Payments,Home Care,568,29/07/2019,1907-00422,0.00,894.88,R,Affinity Trust,No
Http://opendatacommunities.org/id/metropolitan-district-council/leeds,Leeds City Council as Accountable Body,31/07/2019,Social Services Pooled Budgets,Jcs For People With Learning Disabilitie,Third Party Payments,Home Care,568,29/07/2019,1907-00423,0.00,1390.26,R,Affinity Trust,No
Http://opendatacommunities.org/id/metropolitan-district-council/leeds,Leeds City Council as Accountable Body,31/07/2019,Social Services Pooled Budgets,Jcs For People With Learning Disabilitie,Third Party Payments,Home Care,568,29/07/2019,1907-00424,0.00,431.46,R,Affinity Trust,No
Http://opendatacommunities.org/id/metropolitan-district-council/leeds,Leeds City Council as Accountable Body,31/07/2019,Social Services Pooled Budgets,Jcs For People With Learning Disabilitie,Third Party Payments,Day Centre,564,29/07/2019,1907-00425,0.00,434.00,R,Affinity Trust,No
Http://opendatacommunities.org/id/metropolitan-district-council/leeds,Leeds City Council as Accountable Body,31/07/2019,Social Services Pooled Budgets,Jcs For People With Learning Disabilitie,Third Party Payments,Home Care,568,29/07/2019,1907-00426,0.00,1452.00,R,Affinity Trust,No
Http://opendatacommunities.org/id/metropolitan-district-council/leeds,Leeds City Council as Accountable Body,31/07/2019,Social Services Pooled Budgets,Jcs For People With Learning Disabilitie,Third Party Payments,Home Care,568,29/07/2019,1907-00427,0.00,1211.04,R,Affinity Trust,No
Http://opendatacommunities.org/id/metropolitan-district-council/leeds,Leeds City Council as Accountable Body,31/07/2019,Social Services Pooled Budgets,Jcs For People With Learning Disabilitie,Third Party Payments,Home Care,568,29/07/2019,1907-00428,0.00,639.20,R,Affinity Trust,No
Http://opendatacommunities.org/id/metropolitan-district-council/leeds,Leeds City Council as Accountable Body,31/07/2019,Social Services Pooled Budgets,Jcs For People With Learning Disabilitie,Third Party Payments,Home Care,568,29/07/2019,1907-00429,0.00,583.27,R,Affinity Trust,No
Http://opendatacommunities.org/id/metropolitan-district-council/leeds,Leeds City Council as Accountable Body,31/07/2019,Social Services Pooled Budgets,Jcs For People With Learning Disabilitie,Third Party Payments,Home Care,568,29/07/2019,1907-00430,0.00,306.00,R,Affinity Trust,No
Http://opendatacommunities.org/id/metropolitan-district-council/leeds,Leeds City Council as Accountable Body,31/07/2019,Social Services Pooled Budgets,Jcs For People With Learning Disabilitie,Third Party Payments,Home Care,568,29/07/2019,1907-00431,0.00,2436.95,R,Affinity Trust,No
Http://opendatacommunities.org/id/metropolitan-district-council/leeds,Leeds City Council as Accountable Body,31/07/2019,Social Services Pooled Budgets,Jcs For People With Learning Disabilitie,Third Party Payments,Home Care,568,29/07/2019,1907-00432,0.00,408.64,R,Affinity Trust,No
Http://opendatacommunities.org/id/metropolitan-district-council/leeds,Leeds City Council as Accountable Body,31/07/2019,Social Services Pooled Budgets,Jcs For People With Learning Disabilitie,Third Party Payments,Home Care,568,29/07/2019,1907-00433,0.00,824.18,R,Affinity Trust,No
Http://opendatacommunities.org/id/metropolitan-district-council/leeds,Leeds City Council as Accountable Body,31/07/2019,Social Services Pooled Budgets,Jcs For People With Learning Disabilitie,Third Party Payments,Home Care,568,29/07/2019,1907-00434,0.00,926.84,R,Affinity Trust,No
Http://opendatacommunities.org/id/metropolitan-district-council/leeds,Leeds City Council as Accountable Body,31/07/2019,Social Services Pooled Budgets,Jcs For People With Learning Disabilitie,Third Party Payments,Home Care,568,29/07/2019,1907-00435,0.00,535.33,R,Affinity Trust,No
Http://opendatacommunities.org/id/metropolitan-district-council/leeds,Leeds City Council as Accountable Body,31/07/2019,Social Services Pooled Budgets,Jcs For People With Learning Disabilitie,Third Party Payments,Home Care,568,29/07/2019,1907-00436,0.00,639.20,R,Affinity Trust,No
Http://opendatacommunities.org/id/metropolitan-district-council/leeds,Leeds City Council as Accountable Body,31/07/2019,Social Services Pooled Budgets,Jcs For People With Learning Disabilitie,Third Party Payments,Home Care,568,29/07/2019,1907-00437,0.00,255.68,R,Affinity Trust,No
Http://opendatacommunities.org/id/metropolitan-district-council/leeds,Leeds City Council as Accountable Body,31/07/2019,Social Services Pooled Budgets,Jcs For People With Learning Disabilitie,Third Party Payments,Home Care,568,29/07/2019,1907-00438,0.00,930.84,R,Affinity Trust,No
Http://opendatacommunities.org/id/metropolitan-district-council/leeds,Leeds City Council as Accountable Body,31/07/2019,Social Services Pooled Budgets,Jcs For People With Learning Disabilitie,Third Party Payments,Day Centre,564,30/07/2019,1907-00439,0.00,255.68,R,Affinity Trust,No
Http://opendatacommunities.org/id/metropolitan-district-council/leeds,Leeds City Council as Accountable Body,31/07/2019,Social Services Pooled Budgets,Jcs For People With Learning Disabilitie,Third Party Payments,Home Care,568,31/07/2019,1907-00440,0.00,319.60,R,Affinity Trust,No
Http://opendatacommunities.org/id/metropolitan-district-council/leeds,Leeds City Council as Accountable Body,31/07/2019,Social Services Pooled Budgets,Jcs For People With Learning Disabilitie,Third Party Payments,Home Care,568,31/07/2019,1907-00441,0.00,239.70,R,Affinity Trust,No
Http://opendatacommunities.org/id/metropolitan-district-council/leeds,Leeds City Council,31/07/2019,Adults and Health,Services For Older People Under 65 P/Dis,Third Party Payments,Home Care,568,31/07/2019,1907-00442,0.00,958.74,R,Affinity Trust,No
Http://opendatacommunities.org/id/metropolitan-district-council/leeds,Leeds City Council as Accountable Body,31/07/2019,Social Services Pooled Budgets,Jcs For People With Learning Disabilitie,Third Party Payments,Home Care,568,31/07/2019,1907-00443,0.00,479.40,R,Affinity Trust,No
Http://opendatacommunities.org/id/metropolitan-district-council/leeds,Leeds City Council as Accountable Body,31/07/2019,Social Services Pooled Budgets,Jcs For People With Learning Disabilitie,Third Party Payments,Day Centre,564,31/07/2019,1907-00444,0.00,1065.33,R,Affinity Trust,No
Http://opendatacommunities.org/id/metropolitan-district-council/leeds,Leeds City Council as Accountable Body,31/07/2019,Social Services Pooled Budgets,Jcs For People With Learning Disabilitie,Third Party Payments,Home Care,568,31/07/2019,1907-00445,0.00,1710.00,R,Affinity Trust,No
Http://opendatacommunities.org/id/metropolitan-district-council/leeds,Leeds City Council as Accountable Body,31/07/2019,Social Services Pooled Budgets,Jcs For People With Learning Disabilitie,Third Party Payments,Home Care,568,31/07/2019,1907-00446,0.00,437.31,R,Affinity Trust,No
Http://opendatacommunities.org/id/metropolitan-district-council/leeds,Leeds City Council as Accountable Body,31/07/2019,Social Services Pooled Budgets,Jcs For People With Learning Disabilitie,Third Party Payments,Home Care,568,31/07/2019,1907-00447,0.00,1365.00,R,Affinity Trust,No
Http://opendatacommunities.org/id/metropolitan-district-council/leeds,Leeds City Council as Accountable Body,31/07/2019,Social Services Pooled Budgets,Jcs For People With Learning Disabilitie,Third Party Payments,Home Care,568,31/07/2019,1907-00448,0.00,1670.43,R,Affinity Trust,No
Http://opendatacommunities.org/id/metropolitan-district-council/leeds,Leeds City Council as Accountable Body,31/07/2019,Social Services Pooled Budgets,Jcs For People With Learning Disabilitie,Third Party Payments,Home Care,568,31/07/2019,1907-00449,0.00,901.98,R,Affinity Trust,No
Http://opendatacommunities.org/id/metropolitan-district-council/leeds,Leeds City Council as Accountable Body,31/07/2019,Social Services Pooled Budgets,Jcs For People With Learning Disabilitie,Third Party Payments,Day Centre,564,31/07/2019,1907-00450,0.00,402.24,R,Affinity Trust,No
Http://opendatacommunities.org/id/metropolitan-district-council/leeds,Leeds City Council as Accountable Body,31/07/2019,Social Services Pooled Budgets,Jcs For People With Learning Disabilitie,Third Party Payments,Home Care,568,31/07/2019,1907-00451,0.00,454.95,R,Affinity Trust,No
Http://opendatacommunities.org/id/metropolitan-district-council/leeds,Leeds City Council as Accountable Body,31/07/2019,Social Services Pooled Budgets,Jcs For People With Learning Disabilitie,Third Party Payments,Day Centre,564,31/07/2019,1907-00452,0.00,1652.13,R,Affinity Trust,No
Http://opendatacommunities.org/id/metropolitan-district-council/leeds,Leeds City Council as Accountable Body,31/07/2019,Social Services Pooled Budgets,Jcs For People With Learning Disabilitie,Third Party Payments,Home Care,568,31/07/2019,1907-00453,0.00,754.20,R,Affinity Trust,No
Http://opendatacommunities.org/id/metropolitan-district-council/leeds,Leeds City Council as Accountable Body,31/07/2019,Social Services Pooled Budgets,Jcs For People With Learning Disabilitie,Third Party Payments,Home Care,568,31/07/2019,1907-00454,0.00,1340.85,R,Affinity Trust,No
Http://opendatacommunities.org/id/metropolitan-district-council/leeds,Leeds City Council as Accountable Body,31/07/2019,Social Services Pooled Budgets,Jcs For People With Learning Disabilitie,Third Party Payments,Home Care,568,31/07/2019,1907-00455,0.00,1665.99,R,Affinity Trust,No
Http://opendatacommunities.org/id/metropolitan-district-council/leeds,Leeds City Council as Accountable Body,31/07/2019,Social Services Pooled Budgets,Jcs For People With Learning Disabilitie,Third Party Payments,Home Care,568,31/07/2019,1907-00456,0.00,1005.60,R,Affinity Trust,No
Http://opendatacommunities.org/id/metropolitan-district-council/leeds,Leeds City Council as Accountable Body,31/07/2019,Social Services Pooled Budgets,Jcs For People With Learning Disabilitie,Third Party Payments,Day Centre,564,31/07/2019,1907-00457,0.00,583.11,R,Affinity Trust,No
Http://opendatacommunities.org/id/metropolitan-district-council/leeds,Leeds City Council as Accountable Body,31/07/2019,Social Services Pooled Budgets,Jcs For People With Learning Disabilitie,Third Party Payments,Day Centre,564,31/07/2019,1907-00458,0.00,2229.08,R,Affinity Trust,No
Http://opendatacommunities.org/id/metropolitan-district-council/leeds,Leeds City Council as Accountable Body,31/07/2019,Social Services Pooled Budgets,Jcs For People With Learning Disabilitie,Third Party Payments,Day Centre,564,31/07/2019,1907-00459,0.00,1899.81,R,Affinity Trust,No
Http://opendatacommunities.org/id/metropolitan-district-council/leeds,Leeds City Council as Accountable Body,31/07/2019,Social Services Pooled Budgets,Jcs For People With Learning Disabilitie,Third Party Payments,Home Care,568,31/07/2019,1907-00460,0.00,1418.03,R,Affinity Trust,No
Http://opendatacommunities.org/id/metropolitan-district-council/leeds,Leeds City Council as Accountable Body,31/07/2019,Social Services Pooled Budgets,Jcs For People With Learning Disabilitie,Transfer Payments,Personal Budgets,627,31/07/2019,1907-00461,0.00,627.58,R,Affinity Trust,No
Http://opendatacommunities.org/id/metropolitan-district-council/leeds,Leeds City Council,31/07/2019,Adults and Health,Services For Older People Under 65 P/Dis,Third Party Payments,Home Care,568,31/07/2019,1907-00462,0.00,526.68,R,Affinity Trust,No
Http://opendatacommunities.org/id/metropolitan-district-council/leeds,Leeds City Council as Accountable Body,31/07/2019,Social Services Pooled Budgets,Jcs For People With Learning Disabilitie,Third Party Payments,Sheltered Accommodation,569,24/07/2019,1907-00463,0.00,121478.24,R,Affinity Trust North Divisional Office,No
Http://opendatacommunities.org/id/metropolitan-district-council/leeds,Leeds City Council,31/07/2019,Communities and Environment,Parks And Countryside  ,Transport,External Hire -Occasional,304,17/06/2019,1907-00464,0.00,950.00,R,Afi Uplift,Yes
Http://opendatacommunities.org/id/metropolitan-district-council/leeds,Leeds City Council,31/07/2019,Communities and Environment,Parks And Countryside  ,Transport,External Hire -Occasional,304,17/06/2019,1907-00465,0.00,950.00,R,Afi Uplift,Yes
Http://opendatacommunities.org/id/metropolitan-district-council/leeds,Leeds City Council,31/07/2019,Communities and Environment,Parks And Countryside  ,Transport,External Hire -Occasional,304,17/06/2019,1907-00466,0.00,950.00,R,Afi Uplift,Yes
Http://opendatacommunities.org/id/metropolitan-district-council/leeds,Leeds City Council,31/07/2019,Communities and Environment,Parks And Countryside  ,Transport,External Hire -Occasional,304,17/06/2019,1907-00467,0.00,950.00,R,Afi Uplift,Yes
Http://opendatacommunities.org/id/metropolitan-district-council/leeds,Leeds City Council,31/07/2019,Communities and Environment,Parks And Countryside  ,Transport,External Hire -Occasional,304,17/06/2019,1907-00468,0.00,950.00,R,Afi Uplift,Yes
Http://opendatacommunities.org/id/metropolitan-district-council/leeds,Leeds City Council,31/07/2019,City Development,Highways,Employees,Training & Development,70,26/07/2019,1907-00469,0.00,750.00,R,Afi-Uplift Limited,No
Http://opendatacommunities.org/id/metropolitan-district-council/leeds,Leeds City Council,31/07/2019,City Development,Libraries  Arts & Heritage,Supplies and Services,Bought In Professional Services,277,19/07/2019,1907-00470,0.00,44.50,R,Age Uk Leeds,No
Http://opendatacommunities.org/id/metropolitan-district-council/leeds,Leeds City Council,31/07/2019,City Development,Recreation,Supplies and Services,Other Hired And Contracted Services,265,25/07/2019,1907-00471,0.00,3299.10,R,Age Uk Leeds,No
Http://opendatacommunities.org/id/metropolitan-district-council/leeds,Leeds City Council,31/07/2019,City Development,Highways,Capital,Construction,3,03/07/2019,1907-00472,0.00,3177.72,C,Aggregate Industries Uk Ltd,No
Http://opendatacommunities.org/id/metropolitan-district-council/leeds,Leeds City Council,31/07/2019,Communities and Environment,Elections  Licensing and Registration,Income,Admissions  Booking Fees & Ticket Sales,933,18/07/2019,1907-00473,0.00,140.00,R,REDACTED PERSONAL DATA,No
Http://opendatacommunities.org/id/metropolitan-district-council/leeds,Leeds City Council,31/07/2019,City Development,Economic Development,Supplies and Services,Consultancy Services,259,12/07/2019,1907-00474,0.00,3000.00,R,Ai Tech Events,No
Http://opendatacommunities.org/id/metropolitan-district-council/leeds,Leeds City Council as Accountable Body,31/07/2019,Social Services Pooled Budgets,Leeds Community Equip Store Pooled Budgt,Supplies and Services,Other Equipment,203,09/07/2019,1907-00475,0.00,513.00,R,Aidapt Bathrooms Ltd,No
Http://opendatacommunities.org/id/metropolitan-district-council/leeds,Leeds City Council as Accountable Body,31/07/2019,Social Services Pooled Budgets,Leeds Community Equip Store Pooled Budgt,Supplies and Services,Other Equipment,203,09/07/2019,1907-00476,0.00,2068.00,R,Aidapt Bathrooms Ltd,No
Http://opendatacommunities.org/id/metropolitan-district-council/leeds,Leeds City Council as Accountable Body,31/07/2019,Social Services Pooled Budgets,Leeds Community Equip Store Pooled Budgt,Supplies and Services,Other Equipment,203,17/07/2019,1907-00477,0.00,1287.25,R,Aidapt Bathrooms Ltd,No
Http://opendatacommunities.org/id/metropolitan-district-council/leeds,Leeds City Council as Accountable Body,31/07/2019,Social Services Pooled Budgets,Leeds Community Equip Store Pooled Budgt,Supplies and Services,Other Equipment,203,17/07/2019,1907-00478,0.00,1099.40,R,Aidapt Bathrooms Ltd,No
Http://opendatacommunities.org/id/metropolitan-district-council/leeds,Leeds City Council as Accountable Body,31/07/2019,Social Services Pooled Budgets,Leeds Community Equip Store Pooled Budgt,Supplies and Services,Other Equipment,203,19/07/2019,1907-00479,0.00,1031.60,R,Aidapt Bathrooms Ltd,No
Http://opendatacommunities.org/id/metropolitan-district-council/leeds,Leeds City Council as Accountable Body,31/07/2019,Social Services Pooled Budgets,Leeds Community Equip Store Pooled Budgt,Supplies and Services,Other Equipment,203,23/07/2019,1907-00480,0.00,2926.58,R,Aidapt Bathrooms Ltd,No
Http://opendatacommunities.org/id/metropolitan-district-council/leeds,Leeds City Council as Accountable Body,31/07/2019,Social Services Pooled Budgets,Leeds Community Equip Store Pooled Budgt,Supplies and Services,Other Equipment,203,26/07/2019,1907-00481,0.00,1235.42,R,Aidapt Bathrooms Ltd,No
Http://opendatacommunities.org/id/metropolitan-district-council/leeds,Leeds City Council as Accountable Body,31/07/2019,Social Services Pooled Budgets,Leeds Community Equip Store Pooled Budgt,Supplies and Services,Other Equipment,203,30/07/2019,1907-00482,0.00,1032.90,R,Aidapt Bathrooms Ltd,No
Http://opendatacommunities.org/id/metropolitan-district-council/leeds,Leeds City Council as Accountable Body,31/07/2019,Social Services Pooled Budgets,Leeds Community Equip Store Pooled Budgt,Supplies and Services,Other Equipment,203,30/07/2019,1907-00483,0.00,428.00,R,Aidapt Bathrooms Ltd,No
Http://opendatacommunities.org/id/metropolitan-district-council/leeds,Leeds City Council as Accountable Body,31/07/2019,Social Services Pooled Budgets,Leeds Community Equip Store Pooled Budgt,Supplies and Services,Other Equipment,203,30/07/2019,1907-00484,0.00,1022.80,R,Aidapt Bathrooms Ltd,No
Http://opendatacommunities.org/id/metropolitan-district-council/leeds,Leeds City Council as Accountable Body,31/07/2019,Social Services Pooled Budgets,Leeds Community Equip Store Pooled Budgt,Supplies and Services,Other Equipment,203,30/07/2019,1907-00485,0.00,110.00,R,Aidapt Bathrooms Ltd,No
Http://opendatacommunities.org/id/metropolitan-district-council/leeds,Leeds City Council as Accountable Body,31/07/2019,Social Services Pooled Budgets,Leeds Community Equip Store Pooled Budgt,Supplies and Services,Other Equipment,203,30/07/2019,1907-00486,0.00,110.00,R,Aidapt Bathrooms Ltd,No
Http://opendatacommunities.org/id/metropolitan-district-council/leeds,Leeds City Council,31/07/2019,Children and Families,Learning  ,Supplies and Services,Teaching Materials,202,13/06/2019,1907-00487,0.00,180.00,R,Aid-Training.Co.Uk,Yes
Http://opendatacommunities.org/id/metropolitan-district-council/leeds,Leeds City Council,31/07/2019,Resources and Housing,Leeds Building Services,Supplies and Services,Operational Materials,205,05/07/2019,1907-00488,0.00,27.97,R,Air Conditioning Accessories,No
Http://opendatacommunities.org/id/metropolitan-district-council/leeds,Leeds City Council,31/07/2019,Resources and Housing,Leeds Building Services,Supplies and Services,Operational Materials,205,12/07/2019,1907-00489,0.00,450.55,R,Air Conditioning Accessories,No
Http://opendatacommunities.org/id/metropolitan-district-council/leeds,Leeds City Council,31/07/2019,Resources and Housing,Leeds Building Services,Supplies and Services,Operational Materials,205,16/07/2019,1907-00490,0.00,93.41,R,Air Conditioning Accessories,No
Http://opendatacommunities.org/id/metropolitan-district-council/leeds,Leeds City Council,31/07/2019,Resources and Housing,Leeds Building Services,Supplies and Services,Operational Materials,205,16/07/2019,1907-00491,0.00,10.22,R,Air Conditioning Accessories,No
Http://opendatacommunities.org/id/metropolitan-district-council/leeds,Leeds City Council,31/07/2019,Resources and Housing,Leeds Building Services,Supplies and Services,Operational Materials,205,16/07/2019,1907-00492,0.00,70.61,R,Air Conditioning Accessories,No
Http://opendatacommunities.org/id/metropolitan-district-council/leeds,Leeds City Council,31/07/2019,Resources and Housing,Leeds Building Services,Supplies and Services,Operational Materials,205,26/07/2019,1907-00493,0.00,12.00,R,Air Conditioning Accessories,No
Http://opendatacommunities.org/id/metropolitan-district-council/leeds,Leeds City Council,31/07/2019,Resources and Housing,Leeds Building Services,Supplies and Services,Operational Materials,205,26/07/2019,1907-00494,0.00,100.56,R,Air Conditioning Accessories,No
Http://opendatacommunities.org/id/metropolitan-district-council/leeds,Leeds City Council,31/07/2019,Resources and Housing,Leeds Building Services,Supplies and Services,Operational Materials,205,26/07/2019,1907-00495,0.00,33.98,R,Air Conditioning Accessories,No
Http://opendatacommunities.org/id/metropolitan-district-council/leeds,Leeds City Council,31/07/2019,Resources and Housing,Leeds Building Services,Supplies and Services,Operational Materials,205,26/07/2019,1907-00496,0.00,160.00,R,Air Conditioning Accessories,No
Http://opendatacommunities.org/id/metropolitan-district-council/leeds,Leeds City Council,31/07/2019,Resources and Housing,Leeds Building Services,Supplies and Services,Operational Materials,205,30/07/2019,1907-00497,0.00,100.56,R,Air Conditioning Accessories,No
Http://opendatacommunities.org/id/metropolitan-district-council/leeds,Leeds City Council,31/07/2019,Resources and Housing,Leeds Building Services,Supplies and Services,Operational Materials,205,01/07/2019,1907-00498,0.00,226.39,R,Air Liquide Uk,No
Http://opendatacommunities.org/id/metropolitan-district-council/leeds,Leeds City Council,31/07/2019,Communities and Environment,Environmental Health,Supplies and Services,Other Hired And Contracted Services,265,17/07/2019,1907-00499,0.00,10.45,R,Air Liquide Uk,No
Http://opendatacommunities.org/id/metropolitan-district-council/leeds,Leeds City Council,31/07/2019,Communities and Environment,Environmental Health,Supplies and Services,Other Hired And Contracted Services,265,17/07/2019,1907-00500,0.00,10.45,R,Air Liquide Uk,No
Http://opendatacommunities.org/id/metropolitan-district-council/leeds,Leeds City Council,31/07/2019,Communities and Environment,Environmental Health,Supplies and Services,Other Hired And Contracted Services,265,17/07/2019,1907-00501,0.00,15.93,R,Air Liquide Uk,No
Http://opendatacommunities.org/id/metropolitan-district-council/leeds,Leeds City Council,31/07/2019,Communities and Environment,Environmental Health,Supplies and Services,Other Hired And Contracted Services,265,17/07/2019,1907-00502,0.00,83.60,R,Air Liquide Uk,No
Http://opendatacommunities.org/id/metropolitan-district-council/leeds,Leeds City Council,31/07/2019,Communities and Environment,Parks and Countryside,Transport,Repair & Maintenance of  Plant,342,25/07/2019,1907-00503,0.00,304.80,R,Air Solutions (Leeds) Ltd,No
Http://opendatacommunities.org/id/metropolitan-district-council/leeds,Leeds City Council,31/07/2019,Adults and Health,Services For Older People - 65 And Over,Third Party Payments,Residential Care Dementia,571,24/07/2019,1907-00504,0.00,35188.64,R,Aire View Residential Home,No
Http://opendatacommunities.org/id/metropolitan-district-council/leeds,Leeds City Council,31/07/2019,Adults and Health,Services For Older People - 65 And Over,Third Party Payments,Residential,580,24/07/2019,1907-00505,0.00,16062.45,R,Aire View Residential Home,No
Http://opendatacommunities.org/id/metropolitan-district-council/leeds,Leeds City Council,31/07/2019,Strategic Accounts,Miscellaneous,Supplies and Services,Non-Recurring Grants,227,08/07/2019,1907-00506,0.00,299.00,R,Aireborough Neighbourhood Development,No
Http://opendatacommunities.org/id/metropolitan-district-council/leeds,Leeds City Council,31/07/2019,Adults and Health,Services For Older People - 65 And Over,Third Party Payments,Residential Care Dementia,571,24/07/2019,1907-00507,0.00,2941.40,R,Airedale Care Home,No
Http://opendatacommunities.org/id/metropolitan-district-council/leeds,Leeds City Council,31/07/2019,Adults and Health,Services For Older People - 65 And Over,Third Party Payments,Residential,580,24/07/2019,1907-00508,0.00,26054.69,R,Airedale Care Home,No
Http://opendatacommunities.org/id/metropolitan-district-council/leeds,Leeds City Council,31/07/2019,Resources and Housing,Commercial Services,Premises,Fixtures & Fittings,131,01/07/2019,1907-00509,0.00,23305.00,R,Airedale Catering Equipment Ltd,No
Http://opendatacommunities.org/id/metropolitan-district-council/leeds,Leeds City Council,31/07/2019,Resources and Housing,Commercial Services,Premises,Fixtures & Fittings,131,19/07/2019,1907-00510,0.00,846.00,R,Airedale Catering Equipment Ltd,No
Http://opendatacommunities.org/id/metropolitan-district-council/leeds,Leeds City Council,31/07/2019,Resources and Housing,Commercial Services,Premises,Fixtures & Fittings,131,19/07/2019,1907-00511,0.00,953.00,R,Airedale Catering Equipment Ltd,No
Http://opendatacommunities.org/id/metropolitan-district-council/leeds,Leeds City Council,31/07/2019,Resources and Housing,Commercial Services,Premises,Fixtures & Fittings,131,19/07/2019,1907-00512,0.00,220.00,R,Airedale Catering Equipment Ltd,No
Http://opendatacommunities.org/id/metropolitan-district-council/leeds,Leeds City Council,31/07/2019,Adults and Health,Services For Adults Under 65 Mental/Dis,Third Party Payments,Services Provided By Other NHS Bodies,522,19/07/2019,1907-00513,0.00,279.50,R,Ait Mitra Limited,No
Http://opendatacommunities.org/id/metropolitan-district-council/leeds,Leeds City Council,31/07/2019,Adults and Health,Services For Adults Under 65 Mental/Dis,Third Party Payments,Services Provided By Other NHS Bodies,522,19/07/2019,1907-00514,0.00,175.00,R,Ait Mitra Limited,No
Http://opendatacommunities.org/id/metropolitan-district-council/leeds,Leeds City Council,31/07/2019,Adults and Health,Services For Adults Under 65 Mental/Dis,Third Party Payments,Services Provided By Other NHS Bodies,522,19/07/2019,1907-00515,0.00,175.00,R,Ait Mitra Limited,No
Http://opendatacommunities.org/id/metropolitan-district-council/leeds,Leeds City Council,31/07/2019,Adults and Health,Services For Adults Under 65 Mental/Dis,Third Party Payments,Services Provided By Other NHS Bodies,522,19/07/2019,1907-00516,0.00,175.00,R,Ait Mitra Limited,No
Http://opendatacommunities.org/id/metropolitan-district-council/leeds,Leeds City Council,31/07/2019,Adults and Health,Services For Adults Under 65 Mental/Dis,Third Party Payments,Services Provided By Other NHS Bodies,522,19/07/2019,1907-00517,0.00,175.00,R,Ait Mitra Limited,No
Http://opendatacommunities.org/id/metropolitan-district-council/leeds,Leeds City Council,31/07/2019,Adults and Health,Services For Adults Under 65 Mental/Dis,Third Party Payments,Services Provided By Other NHS Bodies,522,19/07/2019,1907-00518,0.00,175.00,R,Ait Mitra Limited,No
Http://opendatacommunities.org/id/metropolitan-district-council/leeds,Leeds City Council,31/07/2019,Adults and Health,Services For Adults Under 65 Mental/Dis,Third Party Payments,Services Provided By Other NHS Bodies,522,19/07/2019,1907-00519,0.00,175.00,R,Ait Mitra Limited,No
Http://opendatacommunities.org/id/metropolitan-district-council/leeds,Leeds City Council,31/07/2019,Adults and Health,Services For Adults Under 65 Mental/Dis,Third Party Payments,Services Provided By Other NHS Bodies,522,19/07/2019,1907-00520,0.00,175.00,R,Ait Mitra Limited,No
Http://opendatacommunities.org/id/metropolitan-district-council/leeds,Leeds City Council,31/07/2019,Adults and Health,Services For Adults Under 65 Mental/Dis,Third Party Payments,Services Provided By Other NHS Bodies,522,19/07/2019,1907-00521,0.00,175.00,R,Ait Mitra Limited,No
Http://opendatacommunities.org/id/metropolitan-district-council/leeds,Leeds City Council,31/07/2019,Adults and Health,Services For Adults Under 65 Mental/Dis,Third Party Payments,Services Provided By Other NHS Bodies,522,19/07/2019,1907-00522,0.00,175.00,R,Ait Mitra Limited,No
Http://opendatacommunities.org/id/metropolitan-district-council/leeds,Leeds City Council,31/07/2019,Adults and Health,Services For Adults Under 65 Mental/Dis,Third Party Payments,Services Provided By Other NHS Bodies,522,19/07/2019,1907-00523,0.00,175.00,R,Ait Mitra Limited,No
Http://opendatacommunities.org/id/metropolitan-district-council/leeds,Leeds City Council,31/07/2019,Adults and Health,Services For Adults Under 65 Mental/Dis,Third Party Payments,Services Provided By Other NHS Bodies,522,19/07/2019,1907-00524,0.00,175.00,R,Ait Mitra Limited,No
Http://opendatacommunities.org/id/metropolitan-district-council/leeds,Leeds City Council,31/07/2019,Adults and Health,Services For Adults Under 65 Mental/Dis,Third Party Payments,Services Provided By Other NHS Bodies,522,19/07/2019,1907-00525,0.00,175.00,R,Ait Mitra Limited,No
Http://opendatacommunities.org/id/metropolitan-district-council/leeds,Leeds City Council,31/07/2019,Adults and Health,Services For Adults Under 65 Mental/Dis,Third Party Payments,Services Provided By Other NHS Bodies,522,19/07/2019,1907-00526,0.00,222.30,R,Ait Mitra Limited,No
Http://opendatacommunities.org/id/metropolitan-district-council/leeds,Leeds City Council,31/07/2019,Adults and Health,Services For Adults Under 65 Mental/Dis,Third Party Payments,Services Provided By Other NHS Bodies,522,25/07/2019,1907-00527,0.00,239.50,R,Ait Mitra Limited,No
Http://opendatacommunities.org/id/metropolitan-district-council/leeds,Leeds City Council,31/07/2019,Adults and Health,Services For Adults Under 65 Mental/Dis,Third Party Payments,Services Provided By Other NHS Bodies,522,25/07/2019,1907-00528,0.00,175.00,R,Ait Mitra Limited,No
Http://opendatacommunities.org/id/metropolitan-district-council/leeds,Leeds City Council,31/07/2019,Adults and Health,Services For Adults Under 65 Mental/Dis,Third Party Payments,Services Provided By Other NHS Bodies,522,25/07/2019,1907-00529,0.00,175.00,R,Ait Mitra Limited,No
Http://opendatacommunities.org/id/metropolitan-district-council/leeds,Leeds City Council,31/07/2019,Adults and Health,Services For Adults Under 65 Mental/Dis,Third Party Payments,Services Provided By Other NHS Bodies,522,25/07/2019,1907-00530,0.00,175.00,R,Ait Mitra Limited,No
Http://opendatacommunities.org/id/metropolitan-district-council/leeds,Leeds City Council,31/07/2019,Adults and Health,Services For Adults Under 65 Mental/Dis,Third Party Payments,Services Provided By Other NHS Bodies,522,25/07/2019,1907-00531,0.00,175.00,R,Ait Mitra Limited,No
Http://opendatacommunities.org/id/metropolitan-district-council/leeds,Leeds City Council,31/07/2019,Adults and Health,Services For Adults Under 65 Mental/Dis,Third Party Payments,Services Provided By Other NHS Bodies,522,25/07/2019,1907-00532,0.00,175.00,R,Ait Mitra Limited,No
Http://opendatacommunities.org/id/metropolitan-district-council/leeds,Leeds City Council,31/07/2019,Adults and Health,Services For Adults Under 65 Mental/Dis,Third Party Payments,Services Provided By Other NHS Bodies,522,25/07/2019,1907-00533,0.00,175.00,R,Ait Mitra Limited,No
Http://opendatacommunities.org/id/metropolitan-district-council/leeds,Leeds City Council,31/07/2019,Adults and Health,Services For Adults Under 65 Mental/Dis,Third Party Payments,Services Provided By Other NHS Bodies,522,25/07/2019,1907-00534,0.00,175.00,R,Ait Mitra Limited,No
Http://opendatacommunities.org/id/metropolitan-district-council/leeds,Leeds City Council,31/07/2019,Adults and Health,Services For Adults Under 65 Mental/Dis,Third Party Payments,Services Provided By Other NHS Bodies,522,25/07/2019,1907-00535,0.00,175.00,R,Ait Mitra Limited,No
Http://opendatacommunities.org/id/metropolitan-district-council/leeds,Leeds City Council,31/07/2019,Adults and Health,Services For Adults Under 65 Mental/Dis,Third Party Payments,Services Provided By Other NHS Bodies,522,25/07/2019,1907-00536,0.00,175.00,R,Ait Mitra Limited,No
Http://opendatacommunities.org/id/metropolitan-district-council/leeds,Leeds City Council as Accountable Body,31/07/2019,Social Services Pooled Budgets,Jcs For People With Learning Disabilitie,Third Party Payments,Residential,580,24/07/2019,1907-00537,0.00,6080.84,R,Aitch Care Homes,No
Http://opendatacommunities.org/id/metropolitan-district-council/leeds,Leeds City Council,31/07/2019,Resources and Housing,Commercial Services,Supplies and Services,Other Hired And Contracted Services,265,01/07/2019,1907-00538,0.00,525.00,R,REDACTED PERSONAL DATA,No
Http://opendatacommunities.org/id/metropolitan-district-council/leeds,Leeds City Council,31/07/2019,Resources and Housing,Commercial Services,Supplies and Services,Other Hired And Contracted Services,265,01/07/2019,1907-00539,0.00,675.00,R,REDACTED PERSONAL DATA,No
Http://opendatacommunities.org/id/metropolitan-district-council/leeds,Leeds City Council,31/07/2019,Resources and Housing,Commercial Services,Supplies and Services,Other Hired And Contracted Services,265,01/07/2019,1907-00540,0.00,600.00,R,REDACTED PERSONAL DATA,No
Http://opendatacommunities.org/id/metropolitan-district-council/leeds,Leeds City Council,31/07/2019,Communities and Environment,Elections  Licensing and Registration,Income,Admissions  Booking Fees & Ticket Sales,933,18/07/2019,1907-00541,0.00,330.00,R,REDACTED PERSONAL DATA,No
Http://opendatacommunities.org/id/metropolitan-district-council/leeds,Leeds City Council,31/07/2019,Strategic Landlord,Housing Management,Premises,Premises Security Services,162,04/07/2019,1907-00542,0.00,120.00,R,Ajd Security Ltd,No
Http://opendatacommunities.org/id/metropolitan-district-council/leeds,Leeds City Council,31/07/2019,Resources and Housing,Human Resources,Employees,Occupational Health,85,16/07/2019,1907-00543,0.00,133.00,R,Ajm Duvenage,No
Http://opendatacommunities.org/id/metropolitan-district-council/leeds,Leeds City Council,31/07/2019,Resources and Housing,Human Resources,Employees,Occupational Health,85,19/07/2019,1907-00544,0.00,133.00,R,Ajm Duvenage,No
Http://opendatacommunities.org/id/metropolitan-district-council/leeds,Leeds City Council,31/07/2019,Resources and Housing,Leeds Building Services,Supplies and Services,Operational Furniture And Equipment,203,01/07/2019,1907-00545,0.00,1233.00,R,Ajm Fixings & Power Tools Ltd,No
Http://opendatacommunities.org/id/metropolitan-district-council/leeds,Leeds City Council,31/07/2019,Resources and Housing,Leeds Building Services,Supplies and Services,Operational Furniture And Equipment,203,17/07/2019,1907-00546,0.00,886.98,R,Ajm Fixings & Power Tools Ltd,No
Http://opendatacommunities.org/id/metropolitan-district-council/leeds,Leeds City Council,31/07/2019,Resources and Housing,Leeds Building Services,Supplies and Services,Operational Furniture And Equipment,203,17/07/2019,1907-00547,0.00,143.37,R,Ajm Fixings & Power Tools Ltd,No
Http://opendatacommunities.org/id/metropolitan-district-council/leeds,Leeds City Council,31/07/2019,Resources and Housing,Leeds Building Services,Supplies and Services,Operational Furniture And Equipment,203,17/07/2019,1907-00548,0.00,131.76,R,Ajm Fixings & Power Tools Ltd,No
Http://opendatacommunities.org/id/metropolitan-district-council/leeds,Leeds City Council,31/07/2019,Resources and Housing,Leeds Building Services,Supplies and Services,Operational Furniture And Equipment,203,17/07/2019,1907-00549,0.00,96.10,R,Ajm Fixings & Power Tools Ltd,No
Http://opendatacommunities.org/id/metropolitan-district-council/leeds,Leeds City Council,31/07/2019,Resources and Housing,Leeds Building Services,Supplies and Services,Operational Furniture And Equipment,203,17/07/2019,1907-00550,0.00,1630.00,R,Ajm Fixings & Power Tools Ltd,No
Http://opendatacommunities.org/id/metropolitan-district-council/leeds,Leeds City Council,31/07/2019,Resources and Housing,Leeds Building Services,Supplies and Services,Operational Furniture And Equipment,203,18/07/2019,1907-00551,0.00,60.16,R,Ajm Fixings & Power Tools Ltd,No
Http://opendatacommunities.org/id/metropolitan-district-council/leeds,Leeds City Council,31/07/2019,Resources and Housing,Leeds Building Services,Supplies and Services,Operational Furniture And Equipment,203,18/07/2019,1907-00552,0.00,643.67,R,Ajm Fixings & Power Tools Ltd,No
Http://opendatacommunities.org/id/metropolitan-district-council/leeds,Leeds City Council,31/07/2019,Resources and Housing,Leeds Building Services,Supplies and Services,Stores - Central And Other Depots,5,18/07/2019,1907-00553,0.00,244.62,R,Ajm Fixings & Power Tools Ltd,No
Http://opendatacommunities.org/id/metropolitan-district-council/leeds,Leeds City Council,31/07/2019,Resources and Housing,Leeds Building Services,Supplies and Services,Stores - Central And Other Depots,5,19/07/2019,1907-00554,0.00,598.55,R,Ajm Fixings & Power Tools Ltd,No
Http://opendatacommunities.org/id/metropolitan-district-council/leeds,Leeds City Council,31/07/2019,Resources and Housing,Leeds Building Services,Supplies and Services,Operational Furniture And Equipment,203,24/07/2019,1907-00555,0.00,763.47,R,Ajm Fixings & Power Tools Ltd,No
Http://opendatacommunities.org/id/metropolitan-district-council/leeds,Leeds City Council,31/07/2019,Resources and Housing,Leeds Building Services,Supplies and Services,Operational Furniture And Equipment,203,25/07/2019,1907-00556,0.00,86.70,R,Ajm Fixings & Power Tools Ltd,No
Http://opendatacommunities.org/id/metropolitan-district-council/leeds,Leeds City Council,31/07/2019,Resources and Housing,Leeds Building Services,Supplies and Services,Stores - Central And Other Depots,5,25/07/2019,1907-00557,0.00,466.10,R,Ajm Fixings & Power Tools Ltd,No
Http://opendatacommunities.org/id/metropolitan-district-council/leeds,Leeds City Council,31/07/2019,Resources and Housing,Leeds Building Services,Supplies and Services,Operational Materials,205,29/07/2019,1907-00558,0.00,200.00,R,Ajm Fixings & Power Tools Ltd,No
Http://opendatacommunities.org/id/metropolitan-district-council/leeds,Leeds City Council,31/07/2019,Resources and Housing,Leeds Building Services,Supplies and Services,Clothing & Uniforms,241,29/07/2019,1907-00559,0.00,154.98,R,Ajm Fixings & Power Tools Ltd,No
Http://opendatacommunities.org/id/metropolitan-district-council/leeds,Leeds City Council,31/07/2019,Resources and Housing,Leeds Building Services,Supplies and Services,Operational Furniture And Equipment,203,29/07/2019,1907-00560,0.00,17.20,R,Ajm Fixings & Power Tools Ltd,No
Http://opendatacommunities.org/id/metropolitan-district-council/leeds,Leeds City Council,31/07/2019,Communities and Environment,Communities,Supplies and Services,Other Hired And Contracted Services,265,12/07/2019,1907-00561,0.00,350.00,R,Aksaa Ltd,No
Http://opendatacommunities.org/id/metropolitan-district-council/leeds,Leeds City Council,31/07/2019,Resources and Housing,Commercial Services,Premises,Plant and Machinery,102,03/07/2019,1907-00562,0.00,195.50,R,Akua Uk Ltd,No
Http://opendatacommunities.org/id/metropolitan-district-council/leeds,Leeds City Council,31/07/2019,Resources and Housing,Commercial Services,Premises,Plant and Machinery,102,05/07/2019,1907-00563,0.00,87.50,R,Akua Uk Ltd,No
Http://opendatacommunities.org/id/metropolitan-district-council/leeds,Leeds City Council,31/07/2019,Resources and Housing,Commercial Services,Premises,Plant and Machinery,102,18/07/2019,1907-00564,0.00,175.50,R,Akua Uk Ltd,No
Http://opendatacommunities.org/id/metropolitan-district-council/leeds,Leeds City Council,31/07/2019,Resources and Housing,Leeds Building Services,Supplies and Services,Operational Materials,205,12/07/2019,1907-00565,0.00,112.62,R,Akw Medicare Ltd,No
Http://opendatacommunities.org/id/metropolitan-district-council/leeds,Leeds City Council,31/07/2019,Resources and Housing,Leeds Building Services,Supplies and Services,Operational Materials,205,19/07/2019,1907-00566,0.00,112.62,R,Akw Medicare Ltd,No
Http://opendatacommunities.org/id/metropolitan-district-council/leeds,Leeds City Council,31/07/2019,City Development,Libraries  Arts & Heritage  ,Supplies and Services,Operational Materials,205,21/06/2019,1907-00567,0.00,412.55,R,Akzonobel,Yes
Http://opendatacommunities.org/id/metropolitan-district-council/leeds,Leeds City Council,31/07/2019,Communities and Environment,Communities,Supplies and Services,'Well Being' Large Grants Projects,230,29/07/2019,1907-00568,0.00,35.91,R,Al Khidmat Centre,No
Http://opendatacommunities.org/id/metropolitan-district-council/leeds,Leeds City Council,31/07/2019,City Development,Libraries  Arts & Heritage,Supplies and Services,Other Hired And Contracted Services,265,19/07/2019,1907-00569,0.00,21.67,R,Alaa Enterprises,No
Http://opendatacommunities.org/id/metropolitan-district-council/leeds,Leeds City Council,31/07/2019,City Development,Markets & City Centre Management,Supplies and Services,Publication And Promotion,267,12/07/2019,1907-00570,0.00,166.67,R,Alan Brown Flowers,No
Http://opendatacommunities.org/id/metropolitan-district-council/leeds,Leeds City Council,31/07/2019,Children and Families,Social Care,Third Party Payments,Services Rendered By Other Organisations,511,05/07/2019,1907-00571,0.00,828.50,R,REDACTED PERSONAL DATA,No
Http://opendatacommunities.org/id/metropolitan-district-council/leeds,Leeds City Council,31/07/2019,Adults and Health,Services For Older People - 65 And Over,Third Party Payments,Residential Care Dementia,571,24/07/2019,1907-00572,0.00,1141.68,R,Albemarle,No
Http://opendatacommunities.org/id/metropolitan-district-council/leeds,Leeds City Council,31/07/2019,Resources and Housing,Commercial Services,Transport,Vehicle Spares,345,17/07/2019,1907-00573,0.00,66.67,R,Albert Jagger Limited,No
Http://opendatacommunities.org/id/metropolitan-district-council/leeds,Leeds City Council,31/07/2019,Communities and Environment,Communities,Supplies and Services,Computer Software & Equipment,214,25/07/2019,1907-00574,0.00,1075.00,R,Alcium Software Ltd,No
Http://opendatacommunities.org/id/metropolitan-district-council/leeds,Leeds City Council,31/07/2019,Resources and Housing,Leeds Building Services,Supplies and Services,Memberships,226,10/07/2019,1907-00575,0.00,7245.00,R,Alcumus Sypol Limited,No
Http://opendatacommunities.org/id/metropolitan-district-council/leeds,Leeds City Council,31/07/2019,Children and Families,Social Care  ,Supplies and Services,Food & Drink,231,31/05/2019,1907-00576,0.00,54.43,R,Aldi,Yes
Http://opendatacommunities.org/id/metropolitan-district-council/leeds,Leeds City Council,31/07/2019,Children and Families,Social Care  ,Transfer Payments,Leaving Care Allowances,634,10/06/2019,1907-00577,0.00,83.34,R,Aldi,Yes
Http://opendatacommunities.org/id/metropolitan-district-council/leeds,Leeds City Council,31/07/2019,City Development,Highways  ,Supplies and Services,Food & Drink,231,18/06/2019,1907-00578,0.00,26.21,R,Aldi,Yes
Http://opendatacommunities.org/id/metropolitan-district-council/leeds,Leeds City Council,31/07/2019,Communities and Environment,Customer Access  ,Supplies and Services,Office Furniture & Equipment,201,11/06/2019,1907-00579,0.00,33.06,R,Aldi 40 779,Yes
Http://opendatacommunities.org/id/metropolitan-district-council/leeds,Leeds City Council,31/07/2019,Children and Families,Social Care  ,Supplies and Services,Food & Drink,231,15/06/2019,1907-00580,0.00,36.01,R,Aldi 40 779,Yes
Http://opendatacommunities.org/id/metropolitan-district-council/leeds,Leeds City Council,31/07/2019,Children and Families,Social Care  ,Transfer Payments,Leaving Care Allowances,634,27/06/2019,1907-00581,0.00,69.74,R,Aldi 40 779,Yes
Http://opendatacommunities.org/id/metropolitan-district-council/leeds,Leeds City Council,31/07/2019,Children and Families,Social Care  ,Supplies and Services,Food & Drink,231,03/06/2019,1907-00582,0.00,86.38,R,Aldi 49 779,Yes
Http://opendatacommunities.org/id/metropolitan-district-council/leeds,Leeds City Council,31/07/2019,Children and Families,Social Care  ,Supplies and Services,Food & Drink,231,19/06/2019,1907-00583,0.00,5.29,R,Aldi 49 779,Yes
Http://opendatacommunities.org/id/metropolitan-district-council/leeds,Leeds City Council,31/07/2019,Communities and Environment,Customer Access  ,Supplies and Services,Operational Materials,205,21/06/2019,1907-00584,0.00,1.95,R,Aldi 49 779,Yes
Http://opendatacommunities.org/id/metropolitan-district-council/leeds,Leeds City Council,31/07/2019,Children and Families,Social Care  ,Supplies and Services,Food & Drink,231,24/06/2019,1907-00585,0.00,15.60,R,Aldi 49 779,Yes
Http://opendatacommunities.org/id/metropolitan-district-council/leeds,Leeds City Council,31/07/2019,Children and Families,Social Care  ,Supplies and Services,Food & Drink,231,24/06/2019,1907-00586,0.00,2.04,R,Aldi 49 779,Yes
Http://opendatacommunities.org/id/metropolitan-district-council/leeds,Leeds City Council,31/07/2019,Children and Families,Social Care  ,Supplies and Services,Food & Drink,231,24/06/2019,1907-00587,0.00,60.63,R,Aldi 49 779,Yes
Http://opendatacommunities.org/id/metropolitan-district-council/leeds,Leeds City Council,31/07/2019,Children and Families,Social Care  ,Supplies and Services,Food & Drink,231,24/06/2019,1907-00588,0.00,18.20,R,Aldi 71 779,Yes
Http://opendatacommunities.org/id/metropolitan-district-council/leeds,Leeds City Council,31/07/2019,Communities and Environment,Customer Access  ,Supplies and Services,Office Consumables,210,07/06/2019,1907-00589,0.00,14.60,R,Aldi 779-90,Yes
Http://opendatacommunities.org/id/metropolitan-district-council/leeds,Leeds City Council,31/07/2019,Children and Families,Social Care  ,Supplies and Services,Food & Drink,231,10/06/2019,1907-00590,0.00,80.86,R,Aldi 88 779,Yes
Http://opendatacommunities.org/id/metropolitan-district-council/leeds,Leeds City Council,31/07/2019,Communities and Environment,Waste Management  ,Supplies and Services,Operational Furniture And Equipment,203,24/06/2019,1907-00591,0.00,1.98,R,Aldi 89 779,Yes
Http://opendatacommunities.org/id/metropolitan-district-council/leeds,Leeds City Council,31/07/2019,Children and Families,Social Care  ,Supplies and Services,Food & Drink,231,19/06/2019,1907-00592,0.00,23.26,R,Aldi Stores,Yes
Http://opendatacommunities.org/id/metropolitan-district-council/leeds,Leeds City Council,31/07/2019,Communities and Environment,Customer Access,Support Services,Internal Income to corporate Governance,895,10/07/2019,1907-00593,0.00,743.10,R,Alena Zueva,No
Http://opendatacommunities.org/id/metropolitan-district-council/leeds,Leeds City Council,31/07/2019,Children and Families,Social Care,Support Services,Legal Disbursements,411,12/07/2019,1907-00594,0.00,449.00,R,Alere Toxicology Plc,No
Http://opendatacommunities.org/id/metropolitan-district-council/leeds,Leeds City Council,31/07/2019,Children and Families,Social Care,Support Services,Legal Disbursements,411,18/07/2019,1907-00595,0.00,77.75,R,Alere Toxicology Plc,No
Http://opendatacommunities.org/id/metropolitan-district-council/leeds,Leeds City Council,31/07/2019,Resources and Housing,Commercial Services,Supplies and Services,Other Hired And Contracted Services,265,05/07/2019,1907-00596,0.00,140.00,R,Alex Wagg,No
Http://opendatacommunities.org/id/metropolitan-district-council/leeds,Leeds City Council,31/07/2019,Resources and Housing,Commercial Services,Supplies and Services,Other Hired And Contracted Services,265,05/07/2019,1907-00597,0.00,160.00,R,Alex Wagg,No
Http://opendatacommunities.org/id/metropolitan-district-council/leeds,Leeds City Council,31/07/2019,Resources and Housing,Commercial Services,Supplies and Services,Other Hired And Contracted Services,265,05/07/2019,1907-00598,0.00,280.00,R,Alex Wagg,No
Http://opendatacommunities.org/id/metropolitan-district-council/leeds,Leeds City Council,31/07/2019,Resources and Housing,Commercial Services,Supplies and Services,Other Hired And Contracted Services,265,17/07/2019,1907-00599,0.00,390.00,R,Alex Wagg,No
Http://opendatacommunities.org/id/metropolitan-district-council/leeds,Leeds City Council,31/07/2019,Resources and Housing,Commercial Services,Supplies and Services,Other Hired And Contracted Services,265,17/07/2019,1907-00600,0.00,160.00,R,Alex Wagg,No
Http://opendatacommunities.org/id/metropolitan-district-council/leeds,Leeds City Council,31/07/2019,Resources and Housing,Commercial Services,Supplies and Services,Other Hired And Contracted Services,265,17/07/2019,1907-00601,0.00,108.00,R,Alex Wagg,No
Http://opendatacommunities.org/id/metropolitan-district-council/leeds,Leeds City Council,31/07/2019,Resources and Housing,Commercial Services,Supplies and Services,Other Hired And Contracted Services,265,18/07/2019,1907-00602,0.00,355.00,R,Alex Wagg,No
Http://opendatacommunities.org/id/metropolitan-district-council/leeds,Leeds City Council,31/07/2019,Resources and Housing,Commercial Services,Supplies and Services,Other Hired And Contracted Services,265,18/07/2019,1907-00603,0.00,80.00,R,Alex Wagg,No
Http://opendatacommunities.org/id/metropolitan-district-council/leeds,Leeds City Council,31/07/2019,Resources and Housing,Commercial Services,Supplies and Services,Other Hired And Contracted Services,265,18/07/2019,1907-00604,0.00,320.00,R,Alex Wagg,No
Http://opendatacommunities.org/id/metropolitan-district-council/leeds,Leeds City Council,31/07/2019,Resources and Housing,Commercial Services,Supplies and Services,Other Hired And Contracted Services,265,19/07/2019,1907-00605,0.00,160.00,R,Alex Wagg,No
Http://opendatacommunities.org/id/metropolitan-district-council/leeds,Leeds City Council,31/07/2019,Resources and Housing,Leeds Building Services,Transport,Miscellaneous Transport Related Costs,324,25/07/2019,1907-00606,0.00,240.00,R,Alex Wagg,No
Http://opendatacommunities.org/id/metropolitan-district-council/leeds,Leeds City Council,31/07/2019,Resources and Housing,Commercial Services,Supplies and Services,Other Hired And Contracted Services,265,30/07/2019,1907-00607,0.00,880.00,R,Alex Wagg,No
Http://opendatacommunities.org/id/metropolitan-district-council/leeds,Leeds City Council,31/07/2019,Resources and Housing,Commercial Services,Supplies and Services,Other Hired And Contracted Services,265,30/07/2019,1907-00608,0.00,80.00,R,Alex Wagg,No
Http://opendatacommunities.org/id/metropolitan-district-council/leeds,Leeds City Council,31/07/2019,Communities and Environment,Car Parking Services,Income,Penalties  Fines & Car Parking Charges,934,04/07/2019,1907-00609,0.00,98.00,R,REDACTED PERSONAL DATA,No
Http://opendatacommunities.org/id/metropolitan-district-council/leeds,Leeds City Council,31/07/2019,Adults and Health,Services For Older People - 65 And Over,Third Party Payments,Residential Care Dementia,571,24/07/2019,1907-00610,0.00,5861.42,R,Alexander Residential Home,No
Http://opendatacommunities.org/id/metropolitan-district-council/leeds,Leeds City Council,31/07/2019,Adults and Health,Services For Older People - 65 And Over,Third Party Payments,Residential,580,24/07/2019,1907-00611,0.00,22866.78,R,Alexander Residential Home,No
Http://opendatacommunities.org/id/metropolitan-district-council/leeds,Leeds City Council,31/07/2019,Children and Families,Social Care,Transport,Public Transport Expenses,310,04/07/2019,1907-00612,0.00,18.80,R,REDACTED PERSONAL DATA,No
Http://opendatacommunities.org/id/metropolitan-district-council/leeds,Leeds City Council,31/07/2019,Communities and Environment,Customer Access,Support Services,Internal Income to corporate Governance,895,10/07/2019,1907-00613,0.00,18.00,R,Alexandra Costenco,No
Http://opendatacommunities.org/id/metropolitan-district-council/leeds,Leeds City Council,31/07/2019,Adults and Health,Services For Older People - 65 And Over,Third Party Payments,Residential Care Dementia,571,24/07/2019,1907-00614,0.00,8354.85,R,Alexandra Court,No
Http://opendatacommunities.org/id/metropolitan-district-council/leeds,Leeds City Council,31/07/2019,Adults and Health,Services For Older People - 65 And Over,Third Party Payments,Residential,580,24/07/2019,1907-00615,0.00,12105.50,R,Alexandra Court,No
Http://opendatacommunities.org/id/metropolitan-district-council/leeds,Leeds City Council,31/07/2019,Communities and Environment,Customer Access,Support Services,Internal Income to corporate Governance,895,10/07/2019,1907-00616,0.00,173.00,R,Alexandra Hirst,No
Http://opendatacommunities.org/id/metropolitan-district-council/leeds,Leeds City Council,31/07/2019,Adults and Health,Home Care Services  ,Supplies and Services,Clothing & Uniforms,241,17/06/2019,1907-00617,0.00,130.60,R,Alexandra Website,Yes
Http://opendatacommunities.org/id/metropolitan-district-council/leeds,Leeds City Council,31/07/2019,Children and Families,Learning,Supplies and Services,Bought In Professional Services,277,12/07/2019,1907-00618,0.00,250.00,R,Alexandra Willans,No
Http://opendatacommunities.org/id/metropolitan-district-council/leeds,Leeds City Council,31/07/2019,Resources and Housing,Strategic Housing Partnership & Support,Supplies and Services,Other Hired And Contracted Services,265,17/07/2019,1907-00619,0.00,1500.00,R,REDACTED PERSONAL DATA,No
Http://opendatacommunities.org/id/metropolitan-district-council/leeds,Leeds City Council,31/07/2019,Children and Families,Social Care,Supplies and Services,Operational Furniture And Equipment,203,01/07/2019,1907-00620,0.00,733.06,R,Alfred Bagnall & Sons (Leeds) Ltd,No
Http://opendatacommunities.org/id/metropolitan-district-council/leeds,Leeds City Council,31/07/2019,Resources and Housing,Leeds Building Services,Supplies and Services,Other Hired And Contracted Services,265,03/07/2019,1907-00621,0.00,200.00,R,Alfred Bagnall & Sons (Leeds) Ltd,No
Http://opendatacommunities.org/id/metropolitan-district-council/leeds,Leeds City Council,31/07/2019,Resources and Housing,Leeds Building Services,Supplies and Services,Other Hired And Contracted Services,265,04/07/2019,1907-00622,0.00,-350.00,R,Alfred Bagnall & Sons (Leeds) Ltd,No
Http://opendatacommunities.org/id/metropolitan-district-council/leeds,Leeds City Council,31/07/2019,Resources and Housing,Leeds Building Services,Supplies and Services,Other Hired And Contracted Services,265,04/07/2019,1907-00623,0.00,600.00,R,Alfred Bagnall & Sons (Leeds) Ltd,No
Http://opendatacommunities.org/id/metropolitan-district-council/leeds,Leeds City Council,31/07/2019,Resources and Housing,Leeds Building Services,Supplies and Services,Other Hired And Contracted Services,265,05/07/2019,1907-00624,0.00,600.00,R,Alfred Bagnall & Sons (Leeds) Ltd,No
Http://opendatacommunities.org/id/metropolitan-district-council/leeds,Leeds City Council,31/07/2019,Resources and Housing,Leeds Building Services,Supplies and Services,Other Hired And Contracted Services,265,05/07/2019,1907-00625,0.00,680.00,R,Alfred Bagnall & Sons (Leeds) Ltd,No
Http://opendatacommunities.org/id/metropolitan-district-council/leeds,Leeds City Council,31/07/2019,Resources and Housing,Leeds Building Services,Supplies and Services,Other Hired And Contracted Services,265,05/07/2019,1907-00626,0.00,680.00,R,Alfred Bagnall & Sons (Leeds) Ltd,No
Http://opendatacommunities.org/id/metropolitan-district-council/leeds,Leeds City Council,31/07/2019,Resources and Housing,Leeds Building Services,Supplies and Services,Other Hired And Contracted Services,265,05/07/2019,1907-00627,0.00,220.00,R,Alfred Bagnall & Sons (Leeds) Ltd,No
Http://opendatacommunities.org/id/metropolitan-district-council/leeds,Leeds City Council,31/07/2019,Resources and Housing,Leeds Building Services,Supplies and Services,Other Hired And Contracted Services,265,05/07/2019,1907-00628,0.00,620.00,R,Alfred Bagnall & Sons (Leeds) Ltd,No
Http://opendatacommunities.org/id/metropolitan-district-council/leeds,Leeds City Council,31/07/2019,Resources and Housing,Leeds Building Services,Supplies and Services,Other Hired And Contracted Services,265,05/07/2019,1907-00629,0.00,380.00,R,Alfred Bagnall & Sons (Leeds) Ltd,No
Http://opendatacommunities.org/id/metropolitan-district-council/leeds,Leeds City Council,31/07/2019,Resources and Housing,Leeds Building Services,Supplies and Services,Other Hired And Contracted Services,265,05/07/2019,1907-00630,0.00,380.00,R,Alfred Bagnall & Sons (Leeds) Ltd,No
Http://opendatacommunities.org/id/metropolitan-district-council/leeds,Leeds City Council,31/07/2019,Resources and Housing,Leeds Building Services,Supplies and Services,Other Hired And Contracted Services,265,05/07/2019,1907-00631,0.00,570.00,R,Alfred Bagnall & Sons (Leeds) Ltd,No
Http://opendatacommunities.org/id/metropolitan-district-council/leeds,Leeds City Council,31/07/2019,Resources and Housing,Leeds Building Services,Supplies and Services,Other Hired And Contracted Services,265,05/07/2019,1907-00632,0.00,180.00,R,Alfred Bagnall & Sons (Leeds) Ltd,No
Http://opendatacommunities.org/id/metropolitan-district-council/leeds,Leeds City Council,31/07/2019,Resources and Housing,Leeds Building Services,Supplies and Services,Other Hired And Contracted Services,265,05/07/2019,1907-00633,0.00,1133.50,R,Alfred Bagnall & Sons (Leeds) Ltd,No
Http://opendatacommunities.org/id/metropolitan-district-council/leeds,Leeds City Council,31/07/2019,Resources and Housing,Leeds Building Services,Supplies and Services,Other Hired And Contracted Services,265,05/07/2019,1907-00634,0.00,1133.50,R,Alfred Bagnall & Sons (Leeds) Ltd,No
Http://opendatacommunities.org/id/metropolitan-district-council/leeds,Leeds City Council,31/07/2019,Resources and Housing,Leeds Building Services,Supplies and Services,Other Hired And Contracted Services,265,05/07/2019,1907-00635,0.00,670.00,R,Alfred Bagnall & Sons (Leeds) Ltd,No
Http://opendatacommunities.org/id/metropolitan-district-council/leeds,Leeds City Council,31/07/2019,Resources and Housing,Leeds Building Services,Supplies and Services,Other Hired And Contracted Services,265,05/07/2019,1907-00636,0.00,480.00,R,Alfred Bagnall & Sons (Leeds) Ltd,No
Http://opendatacommunities.org/id/metropolitan-district-council/leeds,Leeds City Council,31/07/2019,Resources and Housing,Leeds Building Services,Supplies and Services,Other Hired And Contracted Services,265,05/07/2019,1907-00637,0.00,380.00,R,Alfred Bagnall & Sons (Leeds) Ltd,No
Http://opendatacommunities.org/id/metropolitan-district-council/leeds,Leeds City Council,31/07/2019,Resources and Housing,Leeds Building Services,Supplies and Services,Other Hired And Contracted Services,265,05/07/2019,1907-00638,0.00,670.00,R,Alfred Bagnall & Sons (Leeds) Ltd,No
Http://opendatacommunities.org/id/metropolitan-district-council/leeds,Leeds City Council,31/07/2019,Resources and Housing,Leeds Building Services,Supplies and Services,Other Hired And Contracted Services,265,05/07/2019,1907-00639,0.00,590.00,R,Alfred Bagnall & Sons (Leeds) Ltd,No
Http://opendatacommunities.org/id/metropolitan-district-council/leeds,Leeds City Council,31/07/2019,Resources and Housing,Leeds Building Services,Supplies and Services,Other Hired And Contracted Services,265,05/07/2019,1907-00640,0.00,670.00,R,Alfred Bagnall & Sons (Leeds) Ltd,No
Http://opendatacommunities.org/id/metropolitan-district-council/leeds,Leeds City Council,31/07/2019,Resources and Housing,Leeds Building Services,Supplies and Services,Other Hired And Contracted Services,265,10/07/2019,1907-00641,0.00,900.00,R,Alfred Bagnall & Sons (Leeds) Ltd,No
Http://opendatacommunities.org/id/metropolitan-district-council/leeds,Leeds City Council,31/07/2019,Resources and Housing,Leeds Building Services,Supplies and Services,Other Hired And Contracted Services,265,10/07/2019,1907-00642,0.00,1750.00,R,Alfred Bagnall & Sons (Leeds) Ltd,No
Http://opendatacommunities.org/id/metropolitan-district-council/leeds,Leeds City Council,31/07/2019,Communities and Environment,Customer Access,Supplies and Services,Other Hired And Contracted Services,265,12/07/2019,1907-00643,0.00,980.00,R,Alfred Bagnall & Sons (Leeds) Ltd,No
Http://opendatacommunities.org/id/metropolitan-district-council/leeds,Leeds City Council,31/07/2019,Resources and Housing,Leeds Building Services,Supplies and Services,Other Hired And Contracted Services,265,12/07/2019,1907-00644,0.00,280.00,R,Alfred Bagnall & Sons (Leeds) Ltd,No
Http://opendatacommunities.org/id/metropolitan-district-council/leeds,Leeds City Council,31/07/2019,Resources and Housing,Leeds Building Services,Supplies and Services,Other Hired And Contracted Services,265,16/07/2019,1907-00645,0.00,700.00,R,Alfred Bagnall & Sons (Leeds) Ltd,No
Http://opendatacommunities.org/id/metropolitan-district-council/leeds,Leeds City Council,31/07/2019,Resources and Housing,Leeds Building Services,Supplies and Services,Other Hired And Contracted Services,265,16/07/2019,1907-00646,0.00,85.00,R,Alfred Bagnall & Sons (Leeds) Ltd,No
Http://opendatacommunities.org/id/metropolitan-district-council/leeds,Leeds City Council,31/07/2019,Resources and Housing,Leeds Building Services,Supplies and Services,Other Hired And Contracted Services,265,19/07/2019,1907-00647,0.00,200.00,R,Alfred Bagnall & Sons (Leeds) Ltd,No
Http://opendatacommunities.org/id/metropolitan-district-council/leeds,Leeds City Council,31/07/2019,Resources and Housing,Leeds Building Services,Supplies and Services,Other Hired And Contracted Services,265,19/07/2019,1907-00648,0.00,200.00,R,Alfred Bagnall & Sons (Leeds) Ltd,No
Http://opendatacommunities.org/id/metropolitan-district-council/leeds,Leeds City Council,31/07/2019,Resources and Housing,Leeds Building Services,Supplies and Services,Other Hired And Contracted Services,265,23/07/2019,1907-00649,0.00,1000.00,R,Alfred Bagnall & Sons (Leeds) Ltd,No
Http://opendatacommunities.org/id/metropolitan-district-council/leeds,Leeds City Council,31/07/2019,Resources and Housing,Leeds Building Services,Supplies and Services,Other Hired And Contracted Services,265,26/07/2019,1907-00650,0.00,420.00,R,Alfred Bagnall & Sons (Leeds) Ltd,No
Http://opendatacommunities.org/id/metropolitan-district-council/leeds,Leeds City Council,31/07/2019,Resources and Housing,Leeds Building Services,Supplies and Services,Other Hired And Contracted Services,265,30/07/2019,1907-00651,0.00,5750.00,R,Alfred Bagnall & Sons (Leeds) Ltd,No
Http://opendatacommunities.org/id/metropolitan-district-council/leeds,Leeds City Council,31/07/2019,Resources and Housing,Leeds Building Services,Supplies and Services,Other Hired And Contracted Services,265,30/07/2019,1907-00652,0.00,6025.00,R,Alfred Bagnall & Sons (Leeds) Ltd,No
Http://opendatacommunities.org/id/metropolitan-district-council/leeds,Leeds City Council,31/07/2019,Resources and Housing,Leeds Building Services,Supplies and Services,Other Hired And Contracted Services,265,30/07/2019,1907-00653,0.00,1800.00,R,Alfred Bagnall & Sons (Leeds) Ltd,No
Http://opendatacommunities.org/id/metropolitan-district-council/leeds,Leeds City Council,31/07/2019,Communities and Environment,Customer Access,Support Services,Internal Income to corporate Governance,895,10/07/2019,1907-00654,0.00,99.00,R,Ali Pourakaberian,No
Http://opendatacommunities.org/id/metropolitan-district-council/leeds,Leeds City Council,31/07/2019,City Development,Libraries  Arts & Heritage,Supplies and Services,Bought In Professional Services,277,12/07/2019,1907-00655,0.00,1346.40,R,Alice Mary Duggan,No
Http://opendatacommunities.org/id/metropolitan-district-council/leeds,Leeds City Council,31/07/2019,Children and Families,Social Care,Third Party Payments,Services Rendered By Other Organisations,511,05/07/2019,1907-00656,0.00,167.70,R,REDACTED PERSONAL DATA,No
Http://opendatacommunities.org/id/metropolitan-district-council/leeds,Leeds City Council,31/07/2019,Communities and Environment,Waste Management,Supplies and Services,Publication And Promotion,267,16/07/2019,1907-00657,0.00,30.00,R,REDACTED PERSONAL DATA,No
Http://opendatacommunities.org/id/metropolitan-district-council/leeds,Leeds City Council,31/07/2019,Resources and Housing,Leeds Building Services,Supplies and Services,Other Hired And Contracted Services,265,12/07/2019,1907-00658,0.00,195.00,R,All Clear Solutions Ltd,No
Http://opendatacommunities.org/id/metropolitan-district-council/leeds,Leeds City Council,31/07/2019,Resources and Housing,Leeds Building Services,Supplies and Services,Other Hired And Contracted Services,265,12/07/2019,1907-00659,0.00,195.00,R,All Clear Solutions Ltd,No
Http://opendatacommunities.org/id/metropolitan-district-council/leeds,Leeds City Council,31/07/2019,Resources and Housing,Leeds Building Services,Supplies and Services,Other Hired And Contracted Services,265,12/07/2019,1907-00660,0.00,235.00,R,All Clear Solutions Ltd,No
Http://opendatacommunities.org/id/metropolitan-district-council/leeds,Leeds City Council,31/07/2019,Resources and Housing,Leeds Building Services,Supplies and Services,Other Hired And Contracted Services,265,19/07/2019,1907-00661,0.00,195.00,R,All Clear Solutions Ltd,No
Http://opendatacommunities.org/id/metropolitan-district-council/leeds,Leeds City Council,31/07/2019,Resources and Housing,Leeds Building Services,Supplies and Services,Other Hired And Contracted Services,265,19/07/2019,1907-00662,0.00,195.00,R,All Clear Solutions Ltd,No
Http://opendatacommunities.org/id/metropolitan-district-council/leeds,Leeds City Council,31/07/2019,Resources and Housing,Leeds Building Services,Supplies and Services,Other Hired And Contracted Services,265,19/07/2019,1907-00663,0.00,195.00,R,All Clear Solutions Ltd,No
Http://opendatacommunities.org/id/metropolitan-district-council/leeds,Leeds City Council,31/07/2019,Resources and Housing,Leeds Building Services,Supplies and Services,Other Hired And Contracted Services,265,19/07/2019,1907-00664,0.00,195.00,R,All Clear Solutions Ltd,No
Http://opendatacommunities.org/id/metropolitan-district-council/leeds,Leeds City Council,31/07/2019,Resources and Housing,Leeds Building Services,Supplies and Services,Other Hired And Contracted Services,265,19/07/2019,1907-00665,0.00,195.00,R,All Clear Solutions Ltd,No
Http://opendatacommunities.org/id/metropolitan-district-council/leeds,Leeds City Council,31/07/2019,Resources and Housing,Leeds Building Services,Supplies and Services,Other Hired And Contracted Services,265,19/07/2019,1907-00666,0.00,195.00,R,All Clear Solutions Ltd,No
Http://opendatacommunities.org/id/metropolitan-district-council/leeds,Leeds City Council,31/07/2019,Resources and Housing,Leeds Building Services,Supplies and Services,Other Hired And Contracted Services,265,19/07/2019,1907-00667,0.00,195.00,R,All Clear Solutions Ltd,No
Http://opendatacommunities.org/id/metropolitan-district-council/leeds,Leeds City Council,31/07/2019,Resources and Housing,Leeds Building Services,Supplies and Services,Other Hired And Contracted Services,265,19/07/2019,1907-00668,0.00,195.00,R,All Clear Solutions Ltd,No
Http://opendatacommunities.org/id/metropolitan-district-council/leeds,Leeds City Council,31/07/2019,Resources and Housing,Leeds Building Services,Supplies and Services,Other Hired And Contracted Services,265,19/07/2019,1907-00669,0.00,195.00,R,All Clear Solutions Ltd,No
Http://opendatacommunities.org/id/metropolitan-district-council/leeds,Leeds City Council,31/07/2019,Resources and Housing,Leeds Building Services,Supplies and Services,Other Hired And Contracted Services,265,19/07/2019,1907-00670,0.00,195.00,R,All Clear Solutions Ltd,No
Http://opendatacommunities.org/id/metropolitan-district-council/leeds,Leeds City Council,31/07/2019,Resources and Housing,Leeds Building Services,Supplies and Services,Other Hired And Contracted Services,265,19/07/2019,1907-00671,0.00,195.00,R,All Clear Solutions Ltd,No
Http://opendatacommunities.org/id/metropolitan-district-council/leeds,Leeds City Council,31/07/2019,Resources and Housing,Leeds Building Services,Supplies and Services,Other Hired And Contracted Services,265,19/07/2019,1907-00672,0.00,195.00,R,All Clear Solutions Ltd,No
Http://opendatacommunities.org/id/metropolitan-district-council/leeds,Leeds City Council,31/07/2019,Resources and Housing,Leeds Building Services,Supplies and Services,Other Hired And Contracted Services,265,24/07/2019,1907-00673,0.00,195.00,R,All Clear Solutions Ltd,No
Http://opendatacommunities.org/id/metropolitan-district-council/leeds,Leeds City Council,31/07/2019,Resources and Housing,Leeds Building Services,Supplies and Services,Other Hired And Contracted Services,265,31/07/2019,1907-00674,0.00,545.00,R,All Clear Solutions Ltd,No
Http://opendatacommunities.org/id/metropolitan-district-council/leeds,Leeds City Council,31/07/2019,Adults and Health,Services For Adults Under 65 Mental/Dis,Third Party Payments,Home Care,568,16/07/2019,1907-00675,0.00,1273.00,R,All Seasons Home Care,No
Http://opendatacommunities.org/id/metropolitan-district-council/leeds,Leeds City Council,31/07/2019,Children and Families,Social Care,Third Party Payments,Services Rendered By Other Organisations,511,03/07/2019,1907-00676,0.00,1318.20,R,All Stars Childcare,No
Http://opendatacommunities.org/id/metropolitan-district-council/leeds,Leeds City Council,31/07/2019,Children and Families,Social Care,Third Party Payments,Services Rendered By Other Organisations,511,05/07/2019,1907-00677,0.00,22762.05,R,All Stars Childcare,No
Http://opendatacommunities.org/id/metropolitan-district-council/leeds,Leeds City Council as Accountable Body,31/07/2019,Social Services Pooled Budgets,Jcs For People With Learning Disabilitie,Third Party Payments,Sheltered Accommodation,569,24/07/2019,1907-00678,0.00,11950.76,R,Allerton Avenue,No
Http://opendatacommunities.org/id/metropolitan-district-council/leeds,Leeds City Council,31/07/2019,Strategic Accounts,Miscellaneous,Supplies and Services,Non-Recurring Grants,227,17/07/2019,1907-00679,0.00,300.00,R,Allerton Bywater Fc,No
Http://opendatacommunities.org/id/metropolitan-district-council/leeds,Leeds City Council,31/07/2019,Strategic Accounts,Miscellaneous,Supplies and Services,Non-Recurring Grants,227,17/07/2019,1907-00680,0.00,302.35,R,Allerton Bywater Miners,No
Http://opendatacommunities.org/id/metropolitan-district-council/leeds,Leeds City Council,31/07/2019,Adults and Health,Services For Older People - 65 And Over,Third Party Payments,Nursing Care Dementia,574,24/07/2019,1907-00681,0.00,2224.00,R,Allerton Park N H,No
Http://opendatacommunities.org/id/metropolitan-district-council/leeds,Leeds City Council,31/07/2019,Resources and Housing,Finance,Supplies and Services,Bank Charges,263,01/07/2019,1907-00682,0.00,-57.12,R,Alliance & Leicester Commercial Bank,No
Http://opendatacommunities.org/id/metropolitan-district-council/leeds,Leeds City Council,31/07/2019,Communities and Environment,Parks and Countryside,Supplies and Services,Food & Drink,231,05/07/2019,1907-00683,0.00,70.20,R,Alliance Disposables Ltd,No
Http://opendatacommunities.org/id/metropolitan-district-council/leeds,Leeds City Council,31/07/2019,Resources and Housing,Commercial Services,Supplies and Services,Crockery  Cutlery & Utensils,221,15/07/2019,1907-00684,0.00,125.83,R,Alliance Disposables Ltd,No
Http://opendatacommunities.org/id/metropolitan-district-council/leeds,Leeds City Council,31/07/2019,Resources and Housing,Commercial Services,Supplies and Services,Crockery  Cutlery & Utensils,221,26/07/2019,1907-00685,0.00,193.79,R,Alliance Disposables Ltd,No
Http://opendatacommunities.org/id/metropolitan-district-council/leeds,Leeds City Council,31/07/2019,Resources and Housing,Commercial Services,Supplies and Services,Crockery  Cutlery & Utensils,221,26/07/2019,1907-00686,0.00,75.60,R,Alliance Disposables Ltd,No
Http://opendatacommunities.org/id/metropolitan-district-council/leeds,Leeds City Council,31/07/2019,City Development,Recreation,Employees,Training & Development,70,04/07/2019,1907-00687,0.00,937.50,R,Alliance Leisure Service Ltd,No
Http://opendatacommunities.org/id/metropolitan-district-council/leeds,Leeds City Council,31/07/2019,City Development,Recreation,Supplies and Services,Publication And Promotion,267,05/07/2019,1907-00688,0.00,500.00,R,Alliance Leisure Service Ltd,No
Http://opendatacommunities.org/id/metropolitan-district-council/leeds,Leeds City Council,31/07/2019,City Development,Highways,Capital,Other Costs,7,08/07/2019,1907-00689,0.00,4520.00,C,Allied Exploration & Geotechnics Ltd,No
Http://opendatacommunities.org/id/metropolitan-district-council/leeds,Leeds City Council,31/07/2019,City Development,Highways,Supplies and Services,Other Hired And Contracted Services,265,16/07/2019,1907-00690,0.00,6565.00,R,Allied Exploration & Geotechnics Ltd,No
Http://opendatacommunities.org/id/metropolitan-district-council/leeds,Leeds City Council,31/07/2019,City Development,Highways,Supplies and Services,Other Hired And Contracted Services,265,16/07/2019,1907-00691,0.00,1312.60,R,Allied Exploration & Geotechnics Ltd,No
Http://opendatacommunities.org/id/metropolitan-district-council/leeds,Leeds City Council,31/07/2019,City Development,Highways,Supplies and Services,Other Hired And Contracted Services,265,29/07/2019,1907-00692,0.00,4817.90,R,Allied Exploration & Geotechnics Ltd,No
Http://opendatacommunities.org/id/metropolitan-district-council/leeds,Leeds City Council as Accountable Body,31/07/2019,Social Services Pooled Budgets,Jcs For People With Learning Disabilitie,Third Party Payments,Home Care,568,04/07/2019,1907-00693,0.00,15367.12,R,Allied Healthcare,No
Http://opendatacommunities.org/id/metropolitan-district-council/leeds,Leeds City Council,31/07/2019,Children and Families,Social Care,Third Party Payments,Services Rendered By Voluntary Sector,505,10/07/2019,1907-00694,0.00,684.00,R,Allied Healthcare,No
Http://opendatacommunities.org/id/metropolitan-district-council/leeds,Leeds City Council as Accountable Body,31/07/2019,Social Services Pooled Budgets,Jcs For People With Learning Disabilitie,Third Party Payments,Home Care,568,22/07/2019,1907-00695,0.00,742.58,R,Allied Healthcare,No
Http://opendatacommunities.org/id/metropolitan-district-council/leeds,Leeds City Council as Accountable Body,31/07/2019,Social Services Pooled Budgets,Jcs For People With Learning Disabilitie,Third Party Payments,Home Care,568,22/07/2019,1907-00696,0.00,189.05,R,Allied Healthcare,No
Http://opendatacommunities.org/id/metropolitan-district-council/leeds,Leeds City Council as Accountable Body,31/07/2019,Social Services Pooled Budgets,Jcs For People With Learning Disabilitie,Third Party Payments,Home Care,568,23/07/2019,1907-00697,0.00,742.58,R,Allied Healthcare,No
Http://opendatacommunities.org/id/metropolitan-district-council/leeds,Leeds City Council,31/07/2019,Adults and Health,Other Generic Services,Third Party Payments,Home Care,568,25/07/2019,1907-00698,0.00,9946.26,R,Allied Healthcare,No
Http://opendatacommunities.org/id/metropolitan-district-council/leeds,Leeds City Council,31/07/2019,Adults and Health,Other Generic Services,Third Party Payments,Home Care,568,25/07/2019,1907-00699,0.00,5559.93,R,Allied Healthcare,No
Http://opendatacommunities.org/id/metropolitan-district-council/leeds,Leeds City Council,31/07/2019,Adults and Health,Other Generic Services,Third Party Payments,Home Care,568,25/07/2019,1907-00700,0.00,4951.13,R,Allied Healthcare,No
Http://opendatacommunities.org/id/metropolitan-district-council/leeds,Leeds City Council,31/07/2019,Adults and Health,Other Generic Services,Third Party Payments,Home Care,568,25/07/2019,1907-00701,0.00,7789.81,R,Allied Healthcare,No
Http://opendatacommunities.org/id/metropolitan-district-council/leeds,Leeds City Council,31/07/2019,Adults and Health,Other Generic Services,Third Party Payments,Home Care,568,25/07/2019,1907-00702,0.00,4518.36,R,Allied Healthcare,No
Http://opendatacommunities.org/id/metropolitan-district-council/leeds,Leeds City Council,31/07/2019,Communities and Environment,Customer Access,Supplies and Services,Other Hired And Contracted Services,265,03/07/2019,1907-00703,0.00,2556.57,R,Allied Publicity Services,No
Http://opendatacommunities.org/id/metropolitan-district-council/leeds,Leeds City Council,31/07/2019,Communities and Environment,Customer Access,Supplies and Services,Other Hired And Contracted Services,265,03/07/2019,1907-00704,0.00,2327.47,R,Allied Publicity Services,No
Http://opendatacommunities.org/id/metropolitan-district-council/leeds,Leeds City Council,31/07/2019,Communities and Environment,Customer Access,Supplies and Services,Other Hired And Contracted Services,265,03/07/2019,1907-00705,0.00,2985.24,R,Allied Publicity Services,No
Http://opendatacommunities.org/id/metropolitan-district-council/leeds,Leeds City Council,31/07/2019,Communities and Environment,Customer Access,Supplies and Services,Other Hired And Contracted Services,265,26/07/2019,1907-00706,0.00,2460.24,R,Allied Publicity Services,No
Http://opendatacommunities.org/id/metropolitan-district-council/leeds,Leeds City Council,31/07/2019,Children and Families,Social Care,Third Party Payments,Services Rendered By Other Organisations,511,05/07/2019,1907-00707,0.00,209.63,R,REDACTED PERSONAL DATA,No
Http://opendatacommunities.org/id/metropolitan-district-council/leeds,Leeds City Council,31/07/2019,Resources and Housing,Strategic Housing Partnership & Support  ,Supplies and Services,Other Hired And Contracted Services,265,12/06/2019,1907-00708,0.00,73.82,R,Allpay *your Housing Grou,Yes
Http://opendatacommunities.org/id/metropolitan-district-council/leeds,Leeds City Council,31/07/2019,Resources and Housing,Finance,Supplies and Services,Bank Charges,263,02/07/2019,1907-00709,0.00,327.06,R,Allpay Limted,No
Http://opendatacommunities.org/id/metropolitan-district-council/leeds,Leeds City Council,31/07/2019,Resources and Housing,Finance,Supplies and Services,Bank Charges,263,02/07/2019,1907-00710,0.00,4311.63,R,Allpay Limted,No
Http://opendatacommunities.org/id/metropolitan-district-council/leeds,Leeds City Council,31/07/2019,Resources and Housing,Finance,Supplies and Services,Bank Charges,263,02/07/2019,1907-00711,0.00,10654.12,R,Allpay Limted,No
Http://opendatacommunities.org/id/metropolitan-district-council/leeds,Leeds City Council,31/07/2019,Resources and Housing,Finance,Supplies and Services,Bank Charges,263,02/07/2019,1907-00712,0.00,5.00,R,Allpay Limted,No
Http://opendatacommunities.org/id/metropolitan-district-council/leeds,Leeds City Council,31/07/2019,Resources and Housing,Finance,Supplies and Services,Bank Charges,263,02/07/2019,1907-00713,0.00,2967.91,R,Allpay Limted,No
Http://opendatacommunities.org/id/metropolitan-district-council/leeds,Leeds City Council,31/07/2019,Resources and Housing,Finance,Supplies and Services,Bank Charges,263,02/07/2019,1907-00714,0.00,122.79,R,Allpay Limted,No
Http://opendatacommunities.org/id/metropolitan-district-council/leeds,Leeds City Council,31/07/2019,Strategic Landlord,Housing Management,Supplies and Services,Other Hired And Contracted Services,265,11/07/2019,1907-00715,0.00,1.10,R,Allpay Limted,No
Http://opendatacommunities.org/id/metropolitan-district-council/leeds,Leeds City Council,31/07/2019,Strategic Landlord,Housing Management,Supplies and Services,Other Hired And Contracted Services,265,11/07/2019,1907-00716,0.00,518.43,R,Allpay Limted,No
Http://opendatacommunities.org/id/metropolitan-district-council/leeds,Leeds City Council,31/07/2019,Strategic Landlord,Housing Management,Supplies and Services,Other Hired And Contracted Services,265,11/07/2019,1907-00717,0.00,25.74,R,Allpay Limted,No
Http://opendatacommunities.org/id/metropolitan-district-council/leeds,Leeds City Council,31/07/2019,Resources and Housing,Leeds Building Services,Transport,Fuel (Non LCC Supplies),321,15/07/2019,1907-00718,0.00,23.88,R,Allstar Business Solutions Ltd,No
Http://opendatacommunities.org/id/metropolitan-district-council/leeds,Leeds City Council,31/07/2019,Adults and Health,Public Health  ,Supplies and Services,Publication And Promotion,267,06/06/2019,1907-00719,0.00,1999.00,R,Alpha Card,Yes
Http://opendatacommunities.org/id/metropolitan-district-council/leeds,Leeds City Council,31/07/2019,Children and Families,Social Care,Support Services,Legal Disbursements,411,03/07/2019,1907-00720,0.00,23.75,R,Alphabiolabs,No
Http://opendatacommunities.org/id/metropolitan-district-council/leeds,Leeds City Council,31/07/2019,Children and Families,Social Care,Support Services,Legal Disbursements,411,03/07/2019,1907-00721,0.00,454.00,R,Alphabiolabs,No
Http://opendatacommunities.org/id/metropolitan-district-council/leeds,Leeds City Council,31/07/2019,Children and Families,Social Care,Support Services,Legal Disbursements,411,05/07/2019,1907-00722,0.00,70.00,R,Alphabiolabs,No
Http://opendatacommunities.org/id/metropolitan-district-council/leeds,Leeds City Council,31/07/2019,Children and Families,Social Care,Support Services,Legal Disbursements,411,11/07/2019,1907-00723,0.00,75.00,R,Alphabiolabs,No
Http://opendatacommunities.org/id/metropolitan-district-council/leeds,Leeds City Council,31/07/2019,Children and Families,Social Care,Support Services,Legal Disbursements,411,24/07/2019,1907-00724,0.00,236.25,R,Alphabiolabs,No
Http://opendatacommunities.org/id/metropolitan-district-council/leeds,Leeds City Council,31/07/2019,Children and Families,Social Care,Support Services,Legal Disbursements,411,26/07/2019,1907-00725,0.00,258.00,R,Alphabiolabs,No
Http://opendatacommunities.org/id/metropolitan-district-council/leeds,Leeds City Council,31/07/2019,Children and Families,Social Care,Support Services,Legal Disbursements,411,26/07/2019,1907-00726,0.00,133.01,R,Alphabiolabs,No
Http://opendatacommunities.org/id/metropolitan-district-council/leeds,Leeds City Council,31/07/2019,Children and Families,Social Care,Support Services,Legal Disbursements,411,26/07/2019,1907-00727,0.00,99.75,R,Alphabiolabs,No
Http://opendatacommunities.org/id/metropolitan-district-council/leeds,Leeds City Council,31/07/2019,Resources and Housing,Strategy and Improvement,Supplies and Services,Memberships,226,05/07/2019,1907-00728,0.00,9063.88,R,Alps (Alkemygold Ltd),No
Http://opendatacommunities.org/id/metropolitan-district-council/leeds,Leeds City Council,31/07/2019,Insurance,Insurance,Supplies and Services,Insurance Claims,248,03/07/2019,1907-00729,0.00,576.00,R,Alps Legal Practice,No
Http://opendatacommunities.org/id/metropolitan-district-council/leeds,Leeds City Council,31/07/2019,Insurance,Insurance,Supplies and Services,Insurance Claims,248,16/07/2019,1907-00730,0.00,720.00,R,Alps Legal Practice,No
Http://opendatacommunities.org/id/metropolitan-district-council/leeds,Leeds City Council,31/07/2019,Resources and Housing,Commercial Services,Transport,Vehicle Spares,345,19/07/2019,1907-00731,0.00,122.10,R,Als Laboratories (Uk) Ltd,No
Http://opendatacommunities.org/id/metropolitan-district-council/leeds,Leeds City Council,31/07/2019,Resources and Housing,Leeds Building Services,Supplies and Services,Operational Materials,205,17/07/2019,1907-00732,0.00,30.00,R,Alternative Windows (Leeds) Ltd,No
Http://opendatacommunities.org/id/metropolitan-district-council/leeds,Leeds City Council,31/07/2019,Children and Families,Social Care  ,Supplies and Services,Admission Charges To Schools,283,12/06/2019,1907-00733,0.00,880.00,R,Alton Towers Park,Yes
Http://opendatacommunities.org/id/metropolitan-district-council/leeds,Leeds City Council,31/07/2019,Children and Families,Social Care  ,Supplies and Services,Admission Charges To Schools,283,17/06/2019,1907-00734,0.00,645.83,R,Alton Towers Park,Yes
Http://opendatacommunities.org/id/metropolitan-district-council/leeds,Leeds City Council,31/07/2019,Children and Families,Social Care  ,Supplies and Services,Teaching Furniture & Equipment,207,05/06/2019,1907-00735,0.00,6.00,R,Always Foowers,Yes
Http://opendatacommunities.org/id/metropolitan-district-council/leeds,Leeds City Council,31/07/2019,Children and Families,Social Care,Third Party Payments,Placement Support,550,25/07/2019,1907-00736,0.00,200.00,R,Alwoodley Scouts,No
Http://opendatacommunities.org/id/metropolitan-district-council/leeds,Leeds City Council,31/07/2019,Children and Families,Social Care,Third Party Payments,Services Rendered By Other Organisations,511,05/07/2019,1907-00737,0.00,447.20,R,REDACTED PERSONAL DATA,No
Http://opendatacommunities.org/id/metropolitan-district-council/leeds,Leeds City Council,31/07/2019,Children and Families,Social Care,Third Party Payments,Services Rendered By Other Organisations,511,05/07/2019,1907-00738,0.00,447.20,R,REDACTED PERSONAL DATA,No
Http://opendatacommunities.org/id/metropolitan-district-council/leeds,Leeds City Council,31/07/2019,City Development,Recreation,Supplies and Services,Bought In Professional Services,277,02/07/2019,1907-00739,0.00,160.00,R,Amanda Ellis,No
Http://opendatacommunities.org/id/metropolitan-district-council/leeds,Leeds City Council,31/07/2019,City Development,Recreation,Supplies and Services,Other Hired And Contracted Services,265,02/07/2019,1907-00740,0.00,1020.00,R,Amanda Ellis,No
Http://opendatacommunities.org/id/metropolitan-district-council/leeds,Leeds City Council,31/07/2019,City Development,Recreation,Supplies and Services,Bought In Professional Services,277,25/07/2019,1907-00741,0.00,160.00,R,Amanda Ellis,No
Http://opendatacommunities.org/id/metropolitan-district-council/leeds,Leeds City Council,31/07/2019,City Development,Recreation,Supplies and Services,Bought In Professional Services,277,30/07/2019,1907-00742,0.00,930.00,R,Amanda Ellis,No
Http://opendatacommunities.org/id/metropolitan-district-council/leeds,Leeds City Council,31/07/2019,Children and Families,Social Care,Third Party Payments,Services Rendered By Other Organisations,511,05/07/2019,1907-00743,0.00,167.70,R,REDACTED PERSONAL DATA,No
Http://opendatacommunities.org/id/metropolitan-district-council/leeds,Leeds City Council,31/07/2019,Adults and Health,Services For Adults Under 65 Mental/Dis,Support Services,Legal Disbursements,411,17/07/2019,1907-00744,0.00,575.00,R,Amanda Murphy Limited,No
Http://opendatacommunities.org/id/metropolitan-district-council/leeds,Leeds City Council,31/07/2019,Adults and Health,Services For Adults Under 65 Mental/Dis,Support Services,Legal Disbursements,411,19/07/2019,1907-00745,0.00,575.00,R,Amanda Murphy Limited,No
Http://opendatacommunities.org/id/metropolitan-district-council/leeds,Leeds City Council,31/07/2019,Children and Families,Social Care,Third Party Payments,Services Rendered By Other Organisations,511,05/07/2019,1907-00746,0.00,1006.20,R,REDACTED PERSONAL DATA,No
Http://opendatacommunities.org/id/metropolitan-district-council/leeds,Leeds City Council,31/07/2019,Resources and Housing,Leeds Building Services,Supplies and Services,Operational Materials,205,12/07/2019,1907-00747,0.00,270.00,R,Amari Plastics Plc,No
Http://opendatacommunities.org/id/metropolitan-district-council/leeds,Leeds City Council,31/07/2019,Resources and Housing,Leeds Building Services,Supplies and Services,Operational Materials,205,16/07/2019,1907-00748,0.00,49.82,R,Amari Plastics Plc,No
Http://opendatacommunities.org/id/metropolitan-district-council/leeds,Leeds City Council,31/07/2019,Resources and Housing,Leeds Building Services,Supplies and Services,Operational Materials,205,16/07/2019,1907-00749,0.00,75.00,R,Amari Plastics Plc,No
Http://opendatacommunities.org/id/metropolitan-district-council/leeds,Leeds City Council,31/07/2019,Resources and Housing,Leeds Building Services,Supplies and Services,Operational Materials,205,16/07/2019,1907-00750,0.00,55.00,R,Amari Plastics Plc,No
Http://opendatacommunities.org/id/metropolitan-district-council/leeds,Leeds City Council,31/07/2019,Resources and Housing,Leeds Building Services,Supplies and Services,Operational Materials,205,18/07/2019,1907-00751,0.00,130.00,R,Amari Plastics Plc,No
Http://opendatacommunities.org/id/metropolitan-district-council/leeds,Leeds City Council,31/07/2019,Resources and Housing,Leeds Building Services,Supplies and Services,Operational Materials,205,19/07/2019,1907-00752,0.00,156.00,R,Amari Plastics Plc,No
Http://opendatacommunities.org/id/metropolitan-district-council/leeds,Leeds City Council,31/07/2019,Resources and Housing,Shared Services,Supplies and Services,Operational Materials,205,24/07/2019,1907-00753,0.00,60.00,R,Amari Plastics Plc,No
Http://opendatacommunities.org/id/metropolitan-district-council/leeds,Leeds City Council,31/07/2019,Resources and Housing,Shared Services,Supplies and Services,Operational Materials,205,24/07/2019,1907-00754,0.00,184.97,R,Amari Plastics Plc,No
Http://opendatacommunities.org/id/metropolitan-district-council/leeds,Leeds City Council,31/07/2019,Resources and Housing,Leeds Building Services,Supplies and Services,Operational Materials,205,25/07/2019,1907-00755,0.00,23.32,R,Amari Plastics Plc,No
Http://opendatacommunities.org/id/metropolitan-district-council/leeds,Leeds City Council,31/07/2019,Resources and Housing,Leeds Building Services,Supplies and Services,Operational Materials,205,25/07/2019,1907-00756,0.00,54.00,R,Amari Plastics Plc,No
Http://opendatacommunities.org/id/metropolitan-district-council/leeds,Leeds City Council,31/07/2019,Resources and Housing,Leeds Building Services,Supplies and Services,Operational Materials,205,29/07/2019,1907-00757,0.00,2339.00,R,Amari Plastics Plc,No
Http://opendatacommunities.org/id/metropolitan-district-council/leeds,Leeds City Council,31/07/2019,City Development,Libraries  Arts & Heritage,Supplies and Services,Other Hired And Contracted Services,265,18/07/2019,1907-00758,0.00,100000.00,R,Amaury Sports Organisation,No
Http://opendatacommunities.org/id/metropolitan-district-council/leeds,Leeds City Council,31/07/2019,Children and Families,Social Care,Third Party Payments,Services Rendered By Other Organisations,511,03/07/2019,1907-00759,0.00,2636.40,R,Amazing Grace Early Years Childcare,No
Http://opendatacommunities.org/id/metropolitan-district-council/leeds,Leeds City Council,31/07/2019,Children and Families,Social Care,Third Party Payments,Services Rendered By Other Organisations,511,05/07/2019,1907-00760,0.00,6875.70,R,Amazing Grace Early Years Childcare,No
Http://opendatacommunities.org/id/metropolitan-district-council/leeds,Leeds City Council,31/07/2019,City Development,Recreation,Supplies and Services,Operational Furniture And Equipment,203,05/07/2019,1907-00761,0.00,396.13,R,Amazon Leisure Uk Ltd,No
Http://opendatacommunities.org/id/metropolitan-district-council/leeds,Leeds City Council,31/07/2019,City Development,Recreation,Supplies and Services,Operational Furniture And Equipment,203,05/07/2019,1907-00762,0.00,105.00,R,Amazon Leisure Uk Ltd,No
Http://opendatacommunities.org/id/metropolitan-district-council/leeds,Leeds City Council,31/07/2019,City Development,Recreation,Supplies and Services,Operational Furniture And Equipment,203,12/07/2019,1907-00763,0.00,105.00,R,Amazon Leisure Uk Ltd,No
Http://opendatacommunities.org/id/metropolitan-district-council/leeds,Leeds City Council,31/07/2019,City Development,Recreation,Supplies and Services,Operational Furniture And Equipment,203,17/07/2019,1907-00764,0.00,237.25,R,Amazon Leisure Uk Ltd,No
Http://opendatacommunities.org/id/metropolitan-district-council/leeds,Leeds City Council,31/07/2019,City Development,Recreation,Supplies and Services,Operational Furniture And Equipment,203,17/07/2019,1907-00765,0.00,38.25,R,Amazon Leisure Uk Ltd,No
Http://opendatacommunities.org/id/metropolitan-district-council/leeds,Leeds City Council,31/07/2019,City Development,Recreation,Supplies and Services,Operational Furniture And Equipment,203,19/07/2019,1907-00766,0.00,85.50,R,Amazon Leisure Uk Ltd,No
